Body Name,Body,Date,Department,Beneficiary,Summary of Purpose (SeRCOP),Amount,Merchant Code,Transaction Number
Sandwell Metropolitan Borough Council,http://www.sandwell.gov.uk/info/200202/performance_and_spending/3233/government_procurement_cards,06-Jul-20,Regeneration & Growth,AMZNMKTPLACE AMAZON.CO,Regeneration And The Economy,37.3,Equipment & Furniture,2020-21Jul_PC00001
Sandwell Metropolitan Borough Council,http://www.sandwell.gov.uk/info/200202/performance_and_spending/3233/government_procurement_cards,06-Jul-20,Adult Social Care Health and Wellbeing - Total,Amazon.co.uk MB62Q29I5,Total Adult Social Care,24.96,Telephones,2020-21Jul_PC00002
Sandwell Metropolitan Borough Council,http://www.sandwell.gov.uk/info/200202/performance_and_spending/3233/government_procurement_cards,06-Jul-20,Adult Social Care Health and Wellbeing - Total,Amazon.co.uk 9G6MQ7C15,Total Adult Social Care,24.96,Telephones,2020-21Jul_PC00003
Sandwell Metropolitan Borough Council,http://www.sandwell.gov.uk/info/200202/performance_and_spending/3233/government_procurement_cards,06-Jul-20,Regeneration & Growth,AMZNMktplace,Regeneration And The Economy,40.51,Equipment & Furniture,2020-21Jul_PC00004
Sandwell Metropolitan Borough Council,http://www.sandwell.gov.uk/info/200202/performance_and_spending/3233/government_procurement_cards,06-Jul-20,Childrens Services,AMZNMktplace,Childrens Services,12.08,Materials & Consumables,2020-21Jul_PC00005
Sandwell Metropolitan Borough Council,http://www.sandwell.gov.uk/info/200202/performance_and_spending/3233/government_procurement_cards,06-Jul-20,Adult Social Care Health and Wellbeing - Total,TESCO ONLINE,Total Adult Social Care,25,Telephones,2020-21Jul_PC00006
Sandwell Metropolitan Borough Council,http://www.sandwell.gov.uk/info/200202/performance_and_spending/3233/government_procurement_cards,06-Jul-20,Childrens Services,AELP.ORG.UK,Childrens Services,49,Ind. Emp Exp-Staff Dev&Training,2020-21Jul_PC00007
Sandwell Metropolitan Borough Council,http://www.sandwell.gov.uk/info/200202/performance_and_spending/3233/government_procurement_cards,06-Jul-20,Adult Social Care Health and Wellbeing - Total,PAYPAL  MEDISAVEUKL,Total Adult Social Care,69.9,Materials & Consumables,2020-21Jul_PC00008
Sandwell Metropolitan Borough Council,http://www.sandwell.gov.uk/info/200202/performance_and_spending/3233/government_procurement_cards,06-Jul-20,Regeneration & Growth,AMZNMktplace,Regeneration And The Economy,47.85,Equipment & Furniture,2020-21Jul_PC00009
Sandwell Metropolitan Borough Council,http://www.sandwell.gov.uk/info/200202/performance_and_spending/3233/government_procurement_cards,06-Jul-20,Housing & Communities,Amazon.co.uk EI02A90B5,Neighbourhoods,33.34,ICT,2020-21Jul_PC00010
Sandwell Metropolitan Borough Council,http://www.sandwell.gov.uk/info/200202/performance_and_spending/3233/government_procurement_cards,06-Jul-20,Regeneration & Growth,AMZNMktplace,Regeneration And The Economy,66.58,ICT,2020-21Jul_PC00011
Sandwell Metropolitan Borough Council,http://www.sandwell.gov.uk/info/200202/performance_and_spending/3233/government_procurement_cards,06-Jul-20,Regeneration & Growth,AMZNMKTPLACE AMAZON.CO,Regeneration And The Economy,35.1,Equipment & Furniture,2020-21Jul_PC00012
Sandwell Metropolitan Borough Council,http://www.sandwell.gov.uk/info/200202/performance_and_spending/3233/government_procurement_cards,06-Jul-20,Regeneration & Growth,AMZNMktplace,Regeneration And The Economy,37.3,Equipment & Furniture,2020-21Jul_PC00013
Sandwell Metropolitan Borough Council,http://www.sandwell.gov.uk/info/200202/performance_and_spending/3233/government_procurement_cards,06-Jul-20,Housing & Communities,AMZNMktplace,Neighbourhoods,24.18,Materials & Consumables,2020-21Jul_PC00014
Sandwell Metropolitan Borough Council,http://www.sandwell.gov.uk/info/200202/performance_and_spending/3233/government_procurement_cards,06-Jul-20,Regeneration & Growth,AMZNMKTPLACE AMAZON.CO,Regeneration And The Economy,49.48,Equipment & Furniture,2020-21Jul_PC00015
Sandwell Metropolitan Borough Council,http://www.sandwell.gov.uk/info/200202/performance_and_spending/3233/government_procurement_cards,06-Jul-20,Regeneration & Growth,AMZNMKTPLACE AMAZON.CO,Regeneration And The Economy,44.83,Equipment & Furniture,2020-21Jul_PC00016
Sandwell Metropolitan Borough Council,http://www.sandwell.gov.uk/info/200202/performance_and_spending/3233/government_procurement_cards,06-Jul-20,Resources (Inc SIU),AMZNMktplace,Assistant Chief Executive (Excl SIU),110.38,ICT,2020-21Jul_PC00017
Sandwell Metropolitan Borough Council,http://www.sandwell.gov.uk/info/200202/performance_and_spending/3233/government_procurement_cards,06-Jul-20,Housing & Communities,Amazon Prime A21HA1FY5,Neighbourhoods,6.66,Subscriptions,2020-21Jul_PC00018
Sandwell Metropolitan Borough Council,http://www.sandwell.gov.uk/info/200202/performance_and_spending/3233/government_procurement_cards,06-Jul-20,Resources (Inc SIU),OFFICE DEPOT UK,Assistant Chief Executive (Excl SIU),-17.4,Equipment & Furniture,2020-21Jul_PC00019
Sandwell Metropolitan Borough Council,http://www.sandwell.gov.uk/info/200202/performance_and_spending/3233/government_procurement_cards,06-Jul-20,Resources (Inc SIU),OFFICE DEPOT UK,Assistant Chief Executive (Excl SIU),-8.67,Contract Catering,2020-21Jul_PC00020
Sandwell Metropolitan Borough Council,http://www.sandwell.gov.uk/info/200202/performance_and_spending/3233/government_procurement_cards,06-Jul-20,Resources (Inc SIU),OFFICE DEPOT UK,Assistant Chief Executive (Excl SIU),-14.34,Equipment & Furniture,2020-21Jul_PC00021
Sandwell Metropolitan Borough Council,http://www.sandwell.gov.uk/info/200202/performance_and_spending/3233/government_procurement_cards,06-Jul-20,Childrens Services,CONTEXTUAL CONSULTING,Childrens Services,84,Ind. Emp Exp-Staff Dev&Training,2020-21Jul_PC00022
Sandwell Metropolitan Borough Council,http://www.sandwell.gov.uk/info/200202/performance_and_spending/3233/government_procurement_cards,06-Jul-20,Childrens Services,OFFICE DEPOT UK,Childrens Services,43.24,Printing Stationery&Gen Office,2020-21Jul_PC00023
Sandwell Metropolitan Borough Council,http://www.sandwell.gov.uk/info/200202/performance_and_spending/3233/government_procurement_cards,06-Jul-20,Childrens Services,OFFICE DEPOT UK,Childrens Services,1.66,Printing Stationery&Gen Office,2020-21Jul_PC00024
Sandwell Metropolitan Borough Council,http://www.sandwell.gov.uk/info/200202/performance_and_spending/3233/government_procurement_cards,06-Jul-20,Childrens Services,AMZNMktplace,Childrens Services,19.78,Materials & Consumables,2020-21Jul_PC00025
Sandwell Metropolitan Borough Council,http://www.sandwell.gov.uk/info/200202/performance_and_spending/3233/government_procurement_cards,06-Jul-20,Resources (Inc SIU),AMZNMktplace,Assistant Chief Executive (Excl SIU),78.3,Equipment & Furniture,2020-21Jul_PC00026
Sandwell Metropolitan Borough Council,http://www.sandwell.gov.uk/info/200202/performance_and_spending/3233/government_procurement_cards,07-Jul-20,Regeneration & Growth,AMZ hemuduplus,Regeneration And The Economy,-103.95,ICT,2020-21Jul_PC00027
Sandwell Metropolitan Borough Council,http://www.sandwell.gov.uk/info/200202/performance_and_spending/3233/government_procurement_cards,07-Jul-20,Total Housing Revenue Account,AMZNMKTPLACE AMAZON.CO,Total Housing Revenue Account,49.17,Equipment & Furniture,2020-21Jul_PC00028
Sandwell Metropolitan Borough Council,http://www.sandwell.gov.uk/info/200202/performance_and_spending/3233/government_procurement_cards,07-Jul-20,Total Housing Revenue Account,AMZNMktplace,Total Housing Revenue Account,99.99,Employee Expenses,2020-21Jul_PC00029
Sandwell Metropolitan Borough Council,http://www.sandwell.gov.uk/info/200202/performance_and_spending/3233/government_procurement_cards,07-Jul-20,Regeneration & Growth,AMZNMKTPLACE AMAZON.CO,Regeneration And The Economy,12.48,Equipment & Furniture,2020-21Jul_PC00030
Sandwell Metropolitan Borough Council,http://www.sandwell.gov.uk/info/200202/performance_and_spending/3233/government_procurement_cards,07-Jul-20,Childrens Services,NEWITTS.COM,Childrens Services,164.73,Equipment & Furniture,2020-21Jul_PC00031
Sandwell Metropolitan Borough Council,http://www.sandwell.gov.uk/info/200202/performance_and_spending/3233/government_procurement_cards,07-Jul-20,Regeneration & Growth,AMZNMKTPLACE AMAZON.CO,Regeneration And The Economy,19.16,Equipment & Furniture,2020-21Jul_PC00032
Sandwell Metropolitan Borough Council,http://www.sandwell.gov.uk/info/200202/performance_and_spending/3233/government_procurement_cards,07-Jul-20,Resources (Inc SIU),Amazon.co.uk JG7TA5YL5,Assistant Chief Executive (Excl SIU),59.98,Equipment & Furniture,2020-21Jul_PC00033
Sandwell Metropolitan Borough Council,http://www.sandwell.gov.uk/info/200202/performance_and_spending/3233/government_procurement_cards,07-Jul-20,Adult Social Care Health and Wellbeing - Total,AMZNMktplace,Total Adult Social Care,46.17,Printing Stationery&Gen Office,2020-21Jul_PC00034
Sandwell Metropolitan Borough Council,http://www.sandwell.gov.uk/info/200202/performance_and_spending/3233/government_procurement_cards,07-Jul-20,Housing & Communities,AMZNMktplace,Neighbourhoods,110.38,Telephones,2020-21Jul_PC00035
Sandwell Metropolitan Borough Council,http://www.sandwell.gov.uk/info/200202/performance_and_spending/3233/government_procurement_cards,07-Jul-20,Regeneration & Growth,OFFICE DEPOT UK,Regeneration And The Economy,12.99,Printing Stationery&Gen Office,2020-21Jul_PC00036
Sandwell Metropolitan Borough Council,http://www.sandwell.gov.uk/info/200202/performance_and_spending/3233/government_procurement_cards,07-Jul-20,Resources (Inc SIU),WWW.TOOLSTATION.COM,Assistant Chief Executive (Excl SIU),27.93,Materials & Consumables,2020-21Jul_PC00037
Sandwell Metropolitan Borough Council,http://www.sandwell.gov.uk/info/200202/performance_and_spending/3233/government_procurement_cards,07-Jul-20,Housing & Communities,CHERRY LANE GARDEN CEN,Neighbourhoods,8.99,Grounds Maint&Improvements,2020-21Jul_PC00038
Sandwell Metropolitan Borough Council,http://www.sandwell.gov.uk/info/200202/performance_and_spending/3233/government_procurement_cards,07-Jul-20,Individual School Budgets With Inclusion,AMZNMktplace,Individual School Budgets With Inclusion,13.99,Printing Stationery&Gen Office,2020-21Jul_PC00039
Sandwell Metropolitan Borough Council,http://www.sandwell.gov.uk/info/200202/performance_and_spending/3233/government_procurement_cards,08-Jul-20,Resources (Inc SIU),AMZNMKTPLACE AMAZON.CO,Assistant Chief Executive (Excl SIU),-16.67,Equipment & Furniture,2020-21Jul_PC00040
Sandwell Metropolitan Borough Council,http://www.sandwell.gov.uk/info/200202/performance_and_spending/3233/government_procurement_cards,08-Jul-20,Regeneration & Growth,AMZNMktplace,Regeneration And The Economy,50.87,Equipment & Furniture,2020-21Jul_PC00041
Sandwell Metropolitan Borough Council,http://www.sandwell.gov.uk/info/200202/performance_and_spending/3233/government_procurement_cards,08-Jul-20,Regeneration & Growth,SMS CONNECTIONS,Regeneration And The Economy,1540.2,R& M - Building Maint&Imp.,2020-21Jul_PC00042
Sandwell Metropolitan Borough Council,http://www.sandwell.gov.uk/info/200202/performance_and_spending/3233/government_procurement_cards,08-Jul-20,Regeneration & Growth,Amazon.co.uk Z30IG4885,Regeneration And The Economy,14.56,Equipment & Furniture,2020-21Jul_PC00043
Sandwell Metropolitan Borough Council,http://www.sandwell.gov.uk/info/200202/performance_and_spending/3233/government_procurement_cards,08-Jul-20,Adult Social Care Health and Wellbeing - Total,ARGOS LTD,Total Adult Social Care,74.87,Telephones,2020-21Jul_PC00044
Sandwell Metropolitan Borough Council,http://www.sandwell.gov.uk/info/200202/performance_and_spending/3233/government_procurement_cards,08-Jul-20,Regeneration & Growth,AMZNMktplace,Regeneration And The Economy,50.87,Equipment & Furniture,2020-21Jul_PC00045
Sandwell Metropolitan Borough Council,http://www.sandwell.gov.uk/info/200202/performance_and_spending/3233/government_procurement_cards,08-Jul-20,Regeneration & Growth,AMZNMktplace,Regeneration And The Economy,34.55,Equipment & Furniture,2020-21Jul_PC00046
Sandwell Metropolitan Borough Council,http://www.sandwell.gov.uk/info/200202/performance_and_spending/3233/government_procurement_cards,08-Jul-20,Regeneration & Growth,AMZNMktplace,Regeneration And The Economy,23.73,Equipment & Furniture,2020-21Jul_PC00047
Sandwell Metropolitan Borough Council,http://www.sandwell.gov.uk/info/200202/performance_and_spending/3233/government_procurement_cards,08-Jul-20,Regeneration & Growth,AMZNMktplace,Regeneration And The Economy,34.55,Equipment & Furniture,2020-21Jul_PC00048
Sandwell Metropolitan Borough Council,http://www.sandwell.gov.uk/info/200202/performance_and_spending/3233/government_procurement_cards,08-Jul-20,Adult Social Care Health and Wellbeing - Total,TESCO ONLINE,Total Adult Social Care,25,Telephones,2020-21Jul_PC00049
Sandwell Metropolitan Borough Council,http://www.sandwell.gov.uk/info/200202/performance_and_spending/3233/government_procurement_cards,08-Jul-20,Adult Social Care Health and Wellbeing - Total,TESCO ONLINE,Total Adult Social Care,25,Telephones,2020-21Jul_PC00050
Sandwell Metropolitan Borough Council,http://www.sandwell.gov.uk/info/200202/performance_and_spending/3233/government_procurement_cards,08-Jul-20,Regeneration & Growth,AMZNMKTPLACE AMAZON.CO,Regeneration And The Economy,7.48,Equipment & Furniture,2020-21Jul_PC00051
Sandwell Metropolitan Borough Council,http://www.sandwell.gov.uk/info/200202/performance_and_spending/3233/government_procurement_cards,08-Jul-20,Housing & Communities,AMZNMktplace,Neighbourhoods,20.29,Equipment & Furniture,2020-21Jul_PC00052
Sandwell Metropolitan Borough Council,http://www.sandwell.gov.uk/info/200202/performance_and_spending/3233/government_procurement_cards,08-Jul-20,Regeneration & Growth,AMZNMktplace,Regeneration And The Economy,103.53,ICT,2020-21Jul_PC00053
Sandwell Metropolitan Borough Council,http://www.sandwell.gov.uk/info/200202/performance_and_spending/3233/government_procurement_cards,08-Jul-20,Adult Social Care Health and Wellbeing - Total,AMZNMktplace,Public Health,110.38,Printing Stationery&Gen Office,2020-21Jul_PC00054
Sandwell Metropolitan Borough Council,http://www.sandwell.gov.uk/info/200202/performance_and_spending/3233/government_procurement_cards,08-Jul-20,Housing & Communities,POUNDLAND LTD 1729,Neighbourhoods,4.17,Protective Clothing&Uniforms,2020-21Jul_PC00055
Sandwell Metropolitan Borough Council,http://www.sandwell.gov.uk/info/200202/performance_and_spending/3233/government_procurement_cards,08-Jul-20,Housing & Communities,AMZNMKTPLACE AMAZON.CO,Neighbourhoods,103.72,Telephones,2020-21Jul_PC00056
Sandwell Metropolitan Borough Council,http://www.sandwell.gov.uk/info/200202/performance_and_spending/3233/government_procurement_cards,08-Jul-20,Housing & Communities,OFFICE DEPOT UK,Neighbourhoods,30.29,Equipment & Furniture,2020-21Jul_PC00057
Sandwell Metropolitan Borough Council,http://www.sandwell.gov.uk/info/200202/performance_and_spending/3233/government_procurement_cards,08-Jul-20,Adult Social Care Health and Wellbeing - Total,Amazon Prime,Total Adult Social Care,-5.11,Rent Allowances Local Scheme,2020-21Jul_PC00058
Sandwell Metropolitan Borough Council,http://www.sandwell.gov.uk/info/200202/performance_and_spending/3233/government_procurement_cards,08-Jul-20,Adult Social Care Health and Wellbeing - Total,Amazon Prime UH8TS6LA5,Total Adult Social Care,79,Printing Stationery&Gen Office,2020-21Jul_PC00059
Sandwell Metropolitan Borough Council,http://www.sandwell.gov.uk/info/200202/performance_and_spending/3233/government_procurement_cards,09-Jul-20,Regeneration & Growth,AMZNMKTPLACE AMAZON.CO,Regeneration And The Economy,34.55,Equipment & Furniture,2020-21Jul_PC00060
Sandwell Metropolitan Borough Council,http://www.sandwell.gov.uk/info/200202/performance_and_spending/3233/government_procurement_cards,09-Jul-20,Regeneration & Growth,AMZNMKTPLACE AMAZON.CO,Regeneration And The Economy,34.55,Equipment & Furniture,2020-21Jul_PC00061
Sandwell Metropolitan Borough Council,http://www.sandwell.gov.uk/info/200202/performance_and_spending/3233/government_procurement_cards,09-Jul-20,Regeneration & Growth,AMZNMKTPLACE AMAZON.CO,Regeneration And The Economy,30.39,Equipment & Furniture,2020-21Jul_PC00062
Sandwell Metropolitan Borough Council,http://www.sandwell.gov.uk/info/200202/performance_and_spending/3233/government_procurement_cards,09-Jul-20,Regeneration & Growth,AMZNMKTPLACE AMAZON.CO,Regeneration And The Economy,34.55,Equipment & Furniture,2020-21Jul_PC00063
Sandwell Metropolitan Borough Council,http://www.sandwell.gov.uk/info/200202/performance_and_spending/3233/government_procurement_cards,09-Jul-20,Regeneration & Growth,AMZNMKTPLACE AMAZON.CO,Regeneration And The Economy,14.23,Equipment & Furniture,2020-21Jul_PC00064
Sandwell Metropolitan Borough Council,http://www.sandwell.gov.uk/info/200202/performance_and_spending/3233/government_procurement_cards,09-Jul-20,Resources (Inc SIU),DRI CISCO WEBEX,Assistant Chief Executive (Excl SIU),356.4,Ind. Emp Exp-Staff Dev&Training,2020-21Jul_PC00065
Sandwell Metropolitan Borough Council,http://www.sandwell.gov.uk/info/200202/performance_and_spending/3233/government_procurement_cards,09-Jul-20,Resources (Inc SIU),Amazon Prime,Assistant Chief Executive (Excl SIU),-6.66,Equipment & Furniture,2020-21Jul_PC00066
Sandwell Metropolitan Borough Council,http://www.sandwell.gov.uk/info/200202/performance_and_spending/3233/government_procurement_cards,09-Jul-20,Resources (Inc SIU),Amazon.co.uk 4N3G36PN5,Assistant Chief Executive (Excl SIU),33.32,Fixtures & Fittings,2020-21Jul_PC00067
Sandwell Metropolitan Borough Council,http://www.sandwell.gov.uk/info/200202/performance_and_spending/3233/government_procurement_cards,09-Jul-20,Resources (Inc SIU),WWW.RIBABOOKSHOPS.COM,Assistant Chief Executive (Excl SIU),50,Printing Stationery&Gen Office,2020-21Jul_PC00068
Sandwell Metropolitan Borough Council,http://www.sandwell.gov.uk/info/200202/performance_and_spending/3233/government_procurement_cards,09-Jul-20,Resources (Inc SIU),WWW.RIBABOOKSHOPS.COM,Assistant Chief Executive (Excl SIU),35,Printing Stationery&Gen Office,2020-21Jul_PC00069
Sandwell Metropolitan Borough Council,http://www.sandwell.gov.uk/info/200202/performance_and_spending/3233/government_procurement_cards,09-Jul-20,Resources (Inc SIU),Amazon Prime 7F2H680B5,Assistant Chief Executive (Excl SIU),6.66,Equipment & Furniture,2020-21Jul_PC00070
Sandwell Metropolitan Borough Council,http://www.sandwell.gov.uk/info/200202/performance_and_spending/3233/government_procurement_cards,09-Jul-20,Housing & Communities,Amazon.co.uk QK4JG3HX5,Neighbourhoods,38.27,Equipment & Furniture,2020-21Jul_PC00071
Sandwell Metropolitan Borough Council,http://www.sandwell.gov.uk/info/200202/performance_and_spending/3233/government_procurement_cards,09-Jul-20,Resources (Inc SIU),Amazon Prime TW69C2V95,Assistant Chief Executive (Excl SIU),6.66,Subscriptions,2020-21Jul_PC00072
Sandwell Metropolitan Borough Council,http://www.sandwell.gov.uk/info/200202/performance_and_spending/3233/government_procurement_cards,09-Jul-20,Total Housing Revenue Account,AMZNMktplace,Total Housing Revenue Account,192.54,Materials & Consumables,2020-21Jul_PC00073
Sandwell Metropolitan Borough Council,http://www.sandwell.gov.uk/info/200202/performance_and_spending/3233/government_procurement_cards,09-Jul-20,Resources (Inc SIU),AMZNMktplace,Assistant Chief Executive (Excl SIU),44.61,Equipment & Furniture,2020-21Jul_PC00074
Sandwell Metropolitan Borough Council,http://www.sandwell.gov.uk/info/200202/performance_and_spending/3233/government_procurement_cards,09-Jul-20,Regeneration & Growth,OFFICE DEPOT UK,Regeneration And The Economy,31.28,Equipment & Furniture,2020-21Jul_PC00075
Sandwell Metropolitan Borough Council,http://www.sandwell.gov.uk/info/200202/performance_and_spending/3233/government_procurement_cards,09-Jul-20,Regeneration & Growth,OFFICE DEPOT UK,Regeneration And The Economy,75.33,Printing Stationery&Gen Office,2020-21Jul_PC00076
Sandwell Metropolitan Borough Council,http://www.sandwell.gov.uk/info/200202/performance_and_spending/3233/government_procurement_cards,09-Jul-20,Adult Social Care Health and Wellbeing - Total,Amazon.co.uk 806W62EF5,Total Adult Social Care,89.98,ICT,2020-21Jul_PC00077
Sandwell Metropolitan Borough Council,http://www.sandwell.gov.uk/info/200202/performance_and_spending/3233/government_procurement_cards,09-Jul-20,Regeneration & Growth,XMA LTD,Regeneration And The Economy,146.54,Telephones,2020-21Jul_PC00078
Sandwell Metropolitan Borough Council,http://www.sandwell.gov.uk/info/200202/performance_and_spending/3233/government_procurement_cards,09-Jul-20,Housing & Communities,DVSA,Neighbourhoods,410,Licences&Test Fees,2020-21Jul_PC00079
Sandwell Metropolitan Borough Council,http://www.sandwell.gov.uk/info/200202/performance_and_spending/3233/government_procurement_cards,10-Jul-20,Housing & Communities,PAYPAL  UKPOINTSALE,Neighbourhoods,-492.5,R& M - Building Maint&Imp.,2020-21Jul_PC00080
Sandwell Metropolitan Borough Council,http://www.sandwell.gov.uk/info/200202/performance_and_spending/3233/government_procurement_cards,10-Jul-20,Housing & Communities,AMZ PRO 5 WORLDWIDE,Neighbourhoods,-13.95,Equipment & Furniture,2020-21Jul_PC00081
Sandwell Metropolitan Borough Council,http://www.sandwell.gov.uk/info/200202/performance_and_spending/3233/government_procurement_cards,10-Jul-20,Total Housing Revenue Account,Staffordshire Builders,Total Housing Revenue Account,9.3,Materials & Consumables,2020-21Jul_PC00082
Sandwell Metropolitan Borough Council,http://www.sandwell.gov.uk/info/200202/performance_and_spending/3233/government_procurement_cards,10-Jul-20,Housing & Communities,SECURITY INDUSTRY,Neighbourhoods,158.33,Subscriptions,2020-21Jul_PC00083
Sandwell Metropolitan Borough Council,http://www.sandwell.gov.uk/info/200202/performance_and_spending/3233/government_procurement_cards,10-Jul-20,Regeneration & Growth,TIMPSON LTD,Regeneration And The Economy,20,R & M - Security,2020-21Jul_PC00084
Sandwell Metropolitan Borough Council,http://www.sandwell.gov.uk/info/200202/performance_and_spending/3233/government_procurement_cards,10-Jul-20,Adult Social Care Health and Wellbeing - Total,CALDMORE HARDWARE LIMI,Total Adult Social Care,12.46,Materials & Consumables,2020-21Jul_PC00085
Sandwell Metropolitan Borough Council,http://www.sandwell.gov.uk/info/200202/performance_and_spending/3233/government_procurement_cards,10-Jul-20,Housing & Communities,WWW.UKPOS.COM,Neighbourhoods,78.3,R& M - Building Maint&Imp.,2020-21Jul_PC00086
Sandwell Metropolitan Borough Council,http://www.sandwell.gov.uk/info/200202/performance_and_spending/3233/government_procurement_cards,10-Jul-20,Childrens Services,WICKES BUILDING,Childrens Services,108.33,Grounds Maint&Improvements,2020-21Jul_PC00087
Sandwell Metropolitan Borough Council,http://www.sandwell.gov.uk/info/200202/performance_and_spending/3233/government_procurement_cards,10-Jul-20,Housing & Communities,SCREWFIX DIRECT,Neighbourhoods,53.68,R& M - Building Maint&Imp.,2020-21Jul_PC00088
Sandwell Metropolitan Borough Council,http://www.sandwell.gov.uk/info/200202/performance_and_spending/3233/government_procurement_cards,10-Jul-20,Housing & Communities,Amazon.co.uk FM7W02LA5,Neighbourhoods,13.48,Equipment & Furniture,2020-21Jul_PC00089
Sandwell Metropolitan Borough Council,http://www.sandwell.gov.uk/info/200202/performance_and_spending/3233/government_procurement_cards,10-Jul-20,Housing & Communities,AQUAID WATERCOOLERS,Neighbourhoods,485.75,Catering Provisions,2020-21Jul_PC00090
Sandwell Metropolitan Borough Council,http://www.sandwell.gov.uk/info/200202/performance_and_spending/3233/government_procurement_cards,10-Jul-20,Regeneration & Growth,Amazon.co.uk NX4JD4LO5,Regeneration And The Economy,11,Equipment & Furniture,2020-21Jul_PC00091
Sandwell Metropolitan Borough Council,http://www.sandwell.gov.uk/info/200202/performance_and_spending/3233/government_procurement_cards,10-Jul-20,Resources (Inc SIU),AMZNMktplace,Assistant Chief Executive (Excl SIU),99.99,Telephones,2020-21Jul_PC00092
Sandwell Metropolitan Borough Council,http://www.sandwell.gov.uk/info/200202/performance_and_spending/3233/government_procurement_cards,10-Jul-20,Housing & Communities,AMZNMktplace,Neighbourhoods,36.09,Equipment & Furniture,2020-21Jul_PC00093
Sandwell Metropolitan Borough Council,http://www.sandwell.gov.uk/info/200202/performance_and_spending/3233/government_procurement_cards,10-Jul-20,Childrens Services,AMZNMktplace,Childrens Services,7.79,Telephones,2020-21Jul_PC00094
Sandwell Metropolitan Borough Council,http://www.sandwell.gov.uk/info/200202/performance_and_spending/3233/government_procurement_cards,10-Jul-20,Regeneration & Growth,OFFICE DEPOT UK,Regeneration And The Economy,2.64,Printing Stationery&Gen Office,2020-21Jul_PC00095
Sandwell Metropolitan Borough Council,http://www.sandwell.gov.uk/info/200202/performance_and_spending/3233/government_procurement_cards,10-Jul-20,Housing & Communities,SP   FLU SUPPLIES,Neighbourhoods,72.27,Protective Clothing&Uniforms,2020-21Jul_PC00096
Sandwell Metropolitan Borough Council,http://www.sandwell.gov.uk/info/200202/performance_and_spending/3233/government_procurement_cards,10-Jul-20,Regeneration & Growth,XMA LTD,Regeneration And The Economy,146.54,Telephones,2020-21Jul_PC00097
Sandwell Metropolitan Borough Council,http://www.sandwell.gov.uk/info/200202/performance_and_spending/3233/government_procurement_cards,13-Jul-20,Housing & Communities,PREMIER INN,Neighbourhoods,45.42,Rents,2020-21Jul_PC00098
Sandwell Metropolitan Borough Council,http://www.sandwell.gov.uk/info/200202/performance_and_spending/3233/government_procurement_cards,13-Jul-20,Housing & Communities,AMZNMKTPLACE AMAZON.CO,Neighbourhoods,12.07,Equipment & Furniture,2020-21Jul_PC00099
Sandwell Metropolitan Borough Council,http://www.sandwell.gov.uk/info/200202/performance_and_spending/3233/government_procurement_cards,13-Jul-20,Resources (Inc SIU),AMZNMKTPLACE AMAZON.CO,Assistant Chief Executive (Excl SIU),19.07,Equipment & Furniture,2020-21Jul_PC00100
Sandwell Metropolitan Borough Council,http://www.sandwell.gov.uk/info/200202/performance_and_spending/3233/government_procurement_cards,13-Jul-20,Housing & Communities,PREMIER INN,Neighbourhoods,182.08,Operational Services,2020-21Jul_PC00101
Sandwell Metropolitan Borough Council,http://www.sandwell.gov.uk/info/200202/performance_and_spending/3233/government_procurement_cards,13-Jul-20,Resources (Inc SIU),AMZNMKTPLACE AMAZON.CO,Assistant Chief Executive (Excl SIU),29.92,Printing Stationery&Gen Office,2020-21Jul_PC00102
Sandwell Metropolitan Borough Council,http://www.sandwell.gov.uk/info/200202/performance_and_spending/3233/government_procurement_cards,13-Jul-20,Adult Social Care Health and Wellbeing - Total,SCREWFIX DIRECT,Public Health,5.85,Fixtures & Fittings,2020-21Jul_PC00103
Sandwell Metropolitan Borough Council,http://www.sandwell.gov.uk/info/200202/performance_and_spending/3233/government_procurement_cards,13-Jul-20,Housing & Communities,GEN REGISTER OFFICE,Neighbourhoods,23.33,Operational Services,2020-21Jul_PC00104
Sandwell Metropolitan Borough Council,http://www.sandwell.gov.uk/info/200202/performance_and_spending/3233/government_procurement_cards,13-Jul-20,Total Housing Revenue Account,AMZNMKTPLACE AMAZON.CO,Total Housing Revenue Account,22.9,Operational Services,2020-21Jul_PC00105
Sandwell Metropolitan Borough Council,http://www.sandwell.gov.uk/info/200202/performance_and_spending/3233/government_procurement_cards,13-Jul-20,Housing & Communities,ASDA SUPERSTORE,Neighbourhoods,8.33,R& M - Building Maint&Imp.,2020-21Jul_PC00106
Sandwell Metropolitan Borough Council,http://www.sandwell.gov.uk/info/200202/performance_and_spending/3233/government_procurement_cards,13-Jul-20,Adult Social Care Health and Wellbeing - Total,Amazon.co.uk AH3N49W65,Public Health,9.57,Printing Stationery&Gen Office,2020-21Jul_PC00107
Sandwell Metropolitan Borough Council,http://www.sandwell.gov.uk/info/200202/performance_and_spending/3233/government_procurement_cards,13-Jul-20,Childrens Services,AMZNMktplace,Childrens Services,20.98,Materials & Consumables,2020-21Jul_PC00108
Sandwell Metropolitan Borough Council,http://www.sandwell.gov.uk/info/200202/performance_and_spending/3233/government_procurement_cards,13-Jul-20,Resources (Inc SIU),Amazon.co.uk 634KW2DS5,Assistant Chief Executive (Excl SIU),37.06,Equipment & Furniture,2020-21Jul_PC00109
Sandwell Metropolitan Borough Council,http://www.sandwell.gov.uk/info/200202/performance_and_spending/3233/government_procurement_cards,13-Jul-20,Adult Social Care Health and Wellbeing - Total,Adobe.com,Public Health,41.62,Advertising & Publicity,2020-21Jul_PC00110
Sandwell Metropolitan Borough Council,http://www.sandwell.gov.uk/info/200202/performance_and_spending/3233/government_procurement_cards,13-Jul-20,Housing & Communities,ASDA SUPERSTORE,Neighbourhoods,16.33,Materials & Consumables,2020-21Jul_PC00111
Sandwell Metropolitan Borough Council,http://www.sandwell.gov.uk/info/200202/performance_and_spending/3233/government_procurement_cards,13-Jul-20,Adult Social Care Health and Wellbeing - Total,Amazon Prime XG92V6005,Total Adult Social Care,6.66,Subscriptions,2020-21Jul_PC00112
Sandwell Metropolitan Borough Council,http://www.sandwell.gov.uk/info/200202/performance_and_spending/3233/government_procurement_cards,13-Jul-20,Childrens Services,AMZNMKTPLACE AMAZON.CO,Childrens Services,90.46,Ind. Emp Exp-Emp. Welfare,2020-21Jul_PC00113
Sandwell Metropolitan Borough Council,http://www.sandwell.gov.uk/info/200202/performance_and_spending/3233/government_procurement_cards,13-Jul-20,Adult Social Care Health and Wellbeing - Total,ARGOS LTD,Total Adult Social Care,24.99,ICT,2020-21Jul_PC00114
Sandwell Metropolitan Borough Council,http://www.sandwell.gov.uk/info/200202/performance_and_spending/3233/government_procurement_cards,13-Jul-20,Adult Social Care Health and Wellbeing - Total,CARESHOP,Total Adult Social Care,70,Protective Clothing&Uniforms,2020-21Jul_PC00115
Sandwell Metropolitan Borough Council,http://www.sandwell.gov.uk/info/200202/performance_and_spending/3233/government_procurement_cards,13-Jul-20,Adult Social Care Health and Wellbeing - Total,CARESHOP,Total Adult Social Care,70,Protective Clothing&Uniforms,2020-21Jul_PC00116
Sandwell Metropolitan Borough Council,http://www.sandwell.gov.uk/info/200202/performance_and_spending/3233/government_procurement_cards,13-Jul-20,Adult Social Care Health and Wellbeing - Total,CARESHOP,Total Adult Social Care,70,Protective Clothing&Uniforms,2020-21Jul_PC00117
Sandwell Metropolitan Borough Council,http://www.sandwell.gov.uk/info/200202/performance_and_spending/3233/government_procurement_cards,13-Jul-20,Adult Social Care Health and Wellbeing - Total,AMZNMktplace,Total Adult Social Care,13.99,Repairs & Maintenance,2020-21Jul_PC00118
Sandwell Metropolitan Borough Council,http://www.sandwell.gov.uk/info/200202/performance_and_spending/3233/government_procurement_cards,13-Jul-20,Adult Social Care Health and Wellbeing - Total,Amazon.co.uk 579EJ6IK5,Total Adult Social Care,15.96,Printing Stationery&Gen Office,2020-21Jul_PC00119
Sandwell Metropolitan Borough Council,http://www.sandwell.gov.uk/info/200202/performance_and_spending/3233/government_procurement_cards,14-Jul-20,Total Housing Revenue Account,AMZNMKTPLACE AMAZON.CO,Total Housing Revenue Account,54.56,ICT,2020-21Jul_PC00120
Sandwell Metropolitan Borough Council,http://www.sandwell.gov.uk/info/200202/performance_and_spending/3233/government_procurement_cards,14-Jul-20,Housing & Communities,AMZNMKTPLACE AMAZON.CO,Neighbourhoods,19.98,R& M - Building Maint&Imp.,2020-21Jul_PC00121
Sandwell Metropolitan Borough Council,http://www.sandwell.gov.uk/info/200202/performance_and_spending/3233/government_procurement_cards,14-Jul-20,Regeneration & Growth,AMZ Amazon.co.uk,Regeneration And The Economy,-7.91,Equipment & Furniture,2020-21Jul_PC00122
Sandwell Metropolitan Borough Council,http://www.sandwell.gov.uk/info/200202/performance_and_spending/3233/government_procurement_cards,14-Jul-20,Regeneration & Growth,AMZNMktplace,Regeneration And The Economy,24.97,Equipment & Furniture,2020-21Jul_PC00123
Sandwell Metropolitan Borough Council,http://www.sandwell.gov.uk/info/200202/performance_and_spending/3233/government_procurement_cards,14-Jul-20,Housing & Communities,WICKES BUILDING,Neighbourhoods,105.83,R& M - Building Maint&Imp.,2020-21Jul_PC00124
Sandwell Metropolitan Borough Council,http://www.sandwell.gov.uk/info/200202/performance_and_spending/3233/government_procurement_cards,14-Jul-20,Housing & Communities,HOMEBASE LTD 085,Neighbourhoods,30,R& M - Building Maint&Imp.,2020-21Jul_PC00125
Sandwell Metropolitan Borough Council,http://www.sandwell.gov.uk/info/200202/performance_and_spending/3233/government_procurement_cards,14-Jul-20,Resources (Inc SIU),AMZNMktplace,Assistant Chief Executive (Excl SIU),7.07,Printing Stationery&Gen Office,2020-21Jul_PC00126
Sandwell Metropolitan Borough Council,http://www.sandwell.gov.uk/info/200202/performance_and_spending/3233/government_procurement_cards,14-Jul-20,Adult Social Care Health and Wellbeing - Total,SAINSBURYS 0558,Total Adult Social Care,10,Materials & Consumables,2020-21Jul_PC00127
Sandwell Metropolitan Borough Council,http://www.sandwell.gov.uk/info/200202/performance_and_spending/3233/government_procurement_cards,15-Jul-20,Adult Social Care Health and Wellbeing - Total,CARESHOP,Total Adult Social Care,-212.5,Protective Clothing&Uniforms,2020-21Jul_PC00128
Sandwell Metropolitan Borough Council,http://www.sandwell.gov.uk/info/200202/performance_and_spending/3233/government_procurement_cards,15-Jul-20,Individual School Budgets With Inclusion,Amazon.co.uk DB90668C5,Individual School Budgets With Inclusion,8.99,Printing Stationery&Gen Office,2020-21Jul_PC00129
Sandwell Metropolitan Borough Council,http://www.sandwell.gov.uk/info/200202/performance_and_spending/3233/government_procurement_cards,15-Jul-20,Childrens Services,AMZNMktplace,Childrens Services,79.13,Protective Clothing&Uniforms,2020-21Jul_PC00130
Sandwell Metropolitan Borough Council,http://www.sandwell.gov.uk/info/200202/performance_and_spending/3233/government_procurement_cards,15-Jul-20,Childrens Services,VODAFONE LTD,Childrens Services,17.63,ICT,2020-21Jul_PC00131
Sandwell Metropolitan Borough Council,http://www.sandwell.gov.uk/info/200202/performance_and_spending/3233/government_procurement_cards,15-Jul-20,Housing & Communities,WICKES PERRY BARR,Neighbourhoods,39.94,R& M - Building Maint&Imp.,2020-21Jul_PC00132
Sandwell Metropolitan Borough Council,http://www.sandwell.gov.uk/info/200202/performance_and_spending/3233/government_procurement_cards,15-Jul-20,Housing & Communities,AMZNMktplace,Neighbourhoods,29.37,Materials & Consumables,2020-21Jul_PC00133
Sandwell Metropolitan Borough Council,http://www.sandwell.gov.uk/info/200202/performance_and_spending/3233/government_procurement_cards,15-Jul-20,Housing & Communities,WWW.WILSTONE.CO.UK,Neighbourhoods,191.67,Materials & Consumables,2020-21Jul_PC00134
Sandwell Metropolitan Borough Council,http://www.sandwell.gov.uk/info/200202/performance_and_spending/3233/government_procurement_cards,15-Jul-20,Housing & Communities,WWW.WILSTONE.CO.UK,Neighbourhoods,127.07,Materials & Consumables,2020-21Jul_PC00135
Sandwell Metropolitan Borough Council,http://www.sandwell.gov.uk/info/200202/performance_and_spending/3233/government_procurement_cards,15-Jul-20,Housing & Communities,PAYPAL  SAVVYSURFCO EB,Neighbourhoods,32.49,Materials & Consumables,2020-21Jul_PC00136
Sandwell Metropolitan Borough Council,http://www.sandwell.gov.uk/info/200202/performance_and_spending/3233/government_procurement_cards,15-Jul-20,Adult Social Care Health and Wellbeing - Total,STK Shutterstock,Public Health,29,Licences&Test Fees,2020-21Jul_PC00137
Sandwell Metropolitan Borough Council,http://www.sandwell.gov.uk/info/200202/performance_and_spending/3233/government_procurement_cards,15-Jul-20,Adult Social Care Health and Wellbeing - Total,AMZNMktplace,Total Adult Social Care,110.38,Telephones,2020-21Jul_PC00138
Sandwell Metropolitan Borough Council,http://www.sandwell.gov.uk/info/200202/performance_and_spending/3233/government_procurement_cards,15-Jul-20,Adult Social Care Health and Wellbeing - Total,AMZNMktplace,Total Adult Social Care,110.38,Telephones,2020-21Jul_PC00139
Sandwell Metropolitan Borough Council,http://www.sandwell.gov.uk/info/200202/performance_and_spending/3233/government_procurement_cards,15-Jul-20,Childrens Services,AMZNMktplace,Childrens Services,15.31,ICT,2020-21Jul_PC00140
Sandwell Metropolitan Borough Council,http://www.sandwell.gov.uk/info/200202/performance_and_spending/3233/government_procurement_cards,15-Jul-20,Resources (Inc SIU),OFFICE DEPOT UK,Assistant Chief Executive (Excl SIU),22.08,Printing Stationery&Gen Office,2020-21Jul_PC00141
Sandwell Metropolitan Borough Council,http://www.sandwell.gov.uk/info/200202/performance_and_spending/3233/government_procurement_cards,15-Jul-20,Resources (Inc SIU),AMZNMKTPLACE AMAZON.CO,Assistant Chief Executive (Excl SIU),-50,Materials & Consumables,2020-21Jul_PC00142
Sandwell Metropolitan Borough Council,http://www.sandwell.gov.uk/info/200202/performance_and_spending/3233/government_procurement_cards,15-Jul-20,Adult Social Care Health and Wellbeing - Total,CARESHOP,Total Adult Social Care,36.67,Protective Clothing&Uniforms,2020-21Jul_PC00143
Sandwell Metropolitan Borough Council,http://www.sandwell.gov.uk/info/200202/performance_and_spending/3233/government_procurement_cards,15-Jul-20,Childrens Services,WWW.QUALSAFE.COM,Childrens Services,390,Protective Clothing&Uniforms,2020-21Jul_PC00144
Sandwell Metropolitan Borough Council,http://www.sandwell.gov.uk/info/200202/performance_and_spending/3233/government_procurement_cards,15-Jul-20,Housing & Communities,"SQ  FLIP, DIPPY & CO.",Neighbourhoods,75,Advertising & Publicity,2020-21Jul_PC00145
Sandwell Metropolitan Borough Council,http://www.sandwell.gov.uk/info/200202/performance_and_spending/3233/government_procurement_cards,16-Jul-20,Housing & Communities,AMZNMKTPLACE AMAZON.CO,Neighbourhoods,25.28,Equipment & Furniture,2020-21Jul_PC00146
Sandwell Metropolitan Borough Council,http://www.sandwell.gov.uk/info/200202/performance_and_spending/3233/government_procurement_cards,16-Jul-20,Regeneration & Growth,AMZNMKTPLACE AMAZON.CO,Regeneration And The Economy,15.41,Ind. Emp Exp-Emp. Welfare,2020-21Jul_PC00147
Sandwell Metropolitan Borough Council,http://www.sandwell.gov.uk/info/200202/performance_and_spending/3233/government_procurement_cards,16-Jul-20,Regeneration & Growth,Amazon.co.uk V94VK09B5,Regeneration And The Economy,103.73,ICT,2020-21Jul_PC00148
Sandwell Metropolitan Borough Council,http://www.sandwell.gov.uk/info/200202/performance_and_spending/3233/government_procurement_cards,16-Jul-20,Regeneration & Growth,Amazon.co.uk PF00641Y5,Regeneration And The Economy,103.73,ICT,2020-21Jul_PC00149
Sandwell Metropolitan Borough Council,http://www.sandwell.gov.uk/info/200202/performance_and_spending/3233/government_procurement_cards,16-Jul-20,Childrens Services,AMZNMktplace,Childrens Services,13.67,Telephones,2020-21Jul_PC00150
Sandwell Metropolitan Borough Council,http://www.sandwell.gov.uk/info/200202/performance_and_spending/3233/government_procurement_cards,16-Jul-20,Regeneration & Growth,Amazon.co.uk AE3EG59L5,Regeneration And The Economy,99.99,ICT,2020-21Jul_PC00151
Sandwell Metropolitan Borough Council,http://www.sandwell.gov.uk/info/200202/performance_and_spending/3233/government_procurement_cards,16-Jul-20,Adult Social Care Health and Wellbeing - Total,AMZNMKTPLACE AMAZON.CO,Total Adult Social Care,42.9,ICT,2020-21Jul_PC00152
Sandwell Metropolitan Borough Council,http://www.sandwell.gov.uk/info/200202/performance_and_spending/3233/government_procurement_cards,16-Jul-20,Adult Social Care Health and Wellbeing - Total,PAYPAL  TRAVELLERMO TR,Total Adult Social Care,16.67,Ind. Emp Exp-Staff Dev&Training,2020-21Jul_PC00153
Sandwell Metropolitan Borough Council,http://www.sandwell.gov.uk/info/200202/performance_and_spending/3233/government_procurement_cards,16-Jul-20,Regeneration & Growth,Amazon.co.uk 6R3763IY5,Regeneration And The Economy,104.15,ICT,2020-21Jul_PC00154
Sandwell Metropolitan Borough Council,http://www.sandwell.gov.uk/info/200202/performance_and_spending/3233/government_procurement_cards,16-Jul-20,Total Housing Revenue Account,AMZNMktplace,Total Housing Revenue Account,103.73,Employee Expenses,2020-21Jul_PC00155
Sandwell Metropolitan Borough Council,http://www.sandwell.gov.uk/info/200202/performance_and_spending/3233/government_procurement_cards,16-Jul-20,Individual School Budgets With Inclusion,AMZNMktplace,Individual School Budgets With Inclusion,36.64,Printing Stationery&Gen Office,2020-21Jul_PC00156
Sandwell Metropolitan Borough Council,http://www.sandwell.gov.uk/info/200202/performance_and_spending/3233/government_procurement_cards,16-Jul-20,Childrens Services,HTTPS://WWW.GDJONES.CO,Childrens Services,221.84,Energy Costs-Oil,2020-21Jul_PC00157
Sandwell Metropolitan Borough Council,http://www.sandwell.gov.uk/info/200202/performance_and_spending/3233/government_procurement_cards,16-Jul-20,Childrens Services,WWW.POSTOFFICESHOP.CO.,Childrens Services,90.49,Printing Stationery&Gen Office,2020-21Jul_PC00158
Sandwell Metropolitan Borough Council,http://www.sandwell.gov.uk/info/200202/performance_and_spending/3233/government_procurement_cards,16-Jul-20,Adult Social Care Health and Wellbeing - Total,OFFICE DEPOT UK,Total Adult Social Care,52.17,Printing Stationery&Gen Office,2020-21Jul_PC00159
Sandwell Metropolitan Borough Council,http://www.sandwell.gov.uk/info/200202/performance_and_spending/3233/government_procurement_cards,16-Jul-20,Adult Social Care Health and Wellbeing - Total,TVLICENSING.CO.UK,Total Adult Social Care,157.5,Licences,2020-21Jul_PC00160
Sandwell Metropolitan Borough Council,http://www.sandwell.gov.uk/info/200202/performance_and_spending/3233/government_procurement_cards,16-Jul-20,Adult Social Care Health and Wellbeing - Total,OFFICE DEPOT UK,Total Adult Social Care,72.06,Printing Stationery&Gen Office,2020-21Jul_PC00161
Sandwell Metropolitan Borough Council,http://www.sandwell.gov.uk/info/200202/performance_and_spending/3233/government_procurement_cards,16-Jul-20,Housing & Communities,AMZNMktplace,Neighbourhoods,10.42,Materials & Consumables,2020-21Jul_PC00162
Sandwell Metropolitan Borough Council,http://www.sandwell.gov.uk/info/200202/performance_and_spending/3233/government_procurement_cards,17-Jul-20,Housing & Communities,MORPLAN.COM,Neighbourhoods,19.7,Protective Clothing&Uniforms,2020-21Jul_PC00163
Sandwell Metropolitan Borough Council,http://www.sandwell.gov.uk/info/200202/performance_and_spending/3233/government_procurement_cards,17-Jul-20,Individual School Budgets With Inclusion,AMZNMktplace,Individual School Budgets With Inclusion,8.79,Printing Stationery&Gen Office,2020-21Jul_PC00164
Sandwell Metropolitan Borough Council,http://www.sandwell.gov.uk/info/200202/performance_and_spending/3233/government_procurement_cards,17-Jul-20,Housing & Communities,AMZNMktplace,Neighbourhoods,103.73,Telephones,2020-21Jul_PC00165
Sandwell Metropolitan Borough Council,http://www.sandwell.gov.uk/info/200202/performance_and_spending/3233/government_procurement_cards,17-Jul-20,Regeneration & Growth,Amazon.co.uk TS8VE05O5,Regeneration And The Economy,99.99,ICT,2020-21Jul_PC00166
Sandwell Metropolitan Borough Council,http://www.sandwell.gov.uk/info/200202/performance_and_spending/3233/government_procurement_cards,17-Jul-20,Regeneration & Growth,Amazon.co.uk HM1PE0O35,Regeneration And The Economy,99.99,ICT,2020-21Jul_PC00167
Sandwell Metropolitan Borough Council,http://www.sandwell.gov.uk/info/200202/performance_and_spending/3233/government_procurement_cards,17-Jul-20,Regeneration & Growth,Amazon.co.uk NS2DH88E5,Regeneration And The Economy,99.99,ICT,2020-21Jul_PC00168
Sandwell Metropolitan Borough Council,http://www.sandwell.gov.uk/info/200202/performance_and_spending/3233/government_procurement_cards,17-Jul-20,Regeneration & Growth,AMZNMKTPLACE AMAZON.CO,Regeneration And The Economy,8.48,R & M - Security,2020-21Jul_PC00169
Sandwell Metropolitan Borough Council,http://www.sandwell.gov.uk/info/200202/performance_and_spending/3233/government_procurement_cards,17-Jul-20,Childrens Services,AMZNMKTPLACE AMAZON.CO,Childrens Services,12.42,Printing Stationery&Gen Office,2020-21Jul_PC00170
Sandwell Metropolitan Borough Council,http://www.sandwell.gov.uk/info/200202/performance_and_spending/3233/government_procurement_cards,17-Jul-20,Individual School Budgets With Inclusion,Flextronics,Individual School Budgets With Inclusion,351.2,ICT,2020-21Jul_PC00171
Sandwell Metropolitan Borough Council,http://www.sandwell.gov.uk/info/200202/performance_and_spending/3233/government_procurement_cards,17-Jul-20,Resources (Inc SIU),AMZNMktplace,Assistant Chief Executive (Excl SIU),44.95,Materials & Consumables,2020-21Jul_PC00172
Sandwell Metropolitan Borough Council,http://www.sandwell.gov.uk/info/200202/performance_and_spending/3233/government_procurement_cards,17-Jul-20,Individual School Budgets With Inclusion,Flextronics,Individual School Budgets With Inclusion,351.2,ICT,2020-21Jul_PC00173
Sandwell Metropolitan Borough Council,http://www.sandwell.gov.uk/info/200202/performance_and_spending/3233/government_procurement_cards,17-Jul-20,Housing & Communities,WICKES BUILDING,Neighbourhoods,105.83,R& M - Building Maint&Imp.,2020-21Jul_PC00174
Sandwell Metropolitan Borough Council,http://www.sandwell.gov.uk/info/200202/performance_and_spending/3233/government_procurement_cards,17-Jul-20,Housing & Communities,AMZNMktplace,Neighbourhoods,79.09,Protective Clothing&Uniforms,2020-21Jul_PC00175
Sandwell Metropolitan Borough Council,http://www.sandwell.gov.uk/info/200202/performance_and_spending/3233/government_procurement_cards,17-Jul-20,Housing & Communities,AB  ABEBOOKS GJLGZC,Neighbourhoods,31.35,Materials & Consumables,2020-21Jul_PC00176
Sandwell Metropolitan Borough Council,http://www.sandwell.gov.uk/info/200202/performance_and_spending/3233/government_procurement_cards,17-Jul-20,Adult Social Care Health and Wellbeing - Total,OFFICE DEPOT UK,Total Adult Social Care,30.38,Printing Stationery&Gen Office,2020-21Jul_PC00177
Sandwell Metropolitan Borough Council,http://www.sandwell.gov.uk/info/200202/performance_and_spending/3233/government_procurement_cards,17-Jul-20,Adult Social Care Health and Wellbeing - Total,OFFICE DEPOT UK,Total Adult Social Care,6.45,Printing Stationery&Gen Office,2020-21Jul_PC00178
Sandwell Metropolitan Borough Council,http://www.sandwell.gov.uk/info/200202/performance_and_spending/3233/government_procurement_cards,17-Jul-20,Regeneration & Growth,AMZNMktplace,Regeneration And The Economy,120.03,ICT,2020-21Jul_PC00179
Sandwell Metropolitan Borough Council,http://www.sandwell.gov.uk/info/200202/performance_and_spending/3233/government_procurement_cards,17-Jul-20,Adult Social Care Health and Wellbeing - Total,CARESHOP,Total Adult Social Care,70,Protective Clothing&Uniforms,2020-21Jul_PC00180
Sandwell Metropolitan Borough Council,http://www.sandwell.gov.uk/info/200202/performance_and_spending/3233/government_procurement_cards,17-Jul-20,Adult Social Care Health and Wellbeing - Total,CARESHOP,Total Adult Social Care,70,Protective Clothing&Uniforms,2020-21Jul_PC00181
Sandwell Metropolitan Borough Council,http://www.sandwell.gov.uk/info/200202/performance_and_spending/3233/government_procurement_cards,17-Jul-20,Adult Social Care Health and Wellbeing - Total,CARESHOP,Total Adult Social Care,70,Protective Clothing&Uniforms,2020-21Jul_PC00182
Sandwell Metropolitan Borough Council,http://www.sandwell.gov.uk/info/200202/performance_and_spending/3233/government_procurement_cards,17-Jul-20,Resources (Inc SIU),HARMONY HEALTH & BEAUT,Assistant Chief Executive (Excl SIU),122.69,Equipment & Furniture,2020-21Jul_PC00183
Sandwell Metropolitan Borough Council,http://www.sandwell.gov.uk/info/200202/performance_and_spending/3233/government_procurement_cards,20-Jul-20,Housing & Communities,SECURITYSAFETYPRODUCTS,Neighbourhoods,22.15,Equipment & Furniture,2020-21Jul_PC00184
Sandwell Metropolitan Borough Council,http://www.sandwell.gov.uk/info/200202/performance_and_spending/3233/government_procurement_cards,20-Jul-20,Housing & Communities,WWW.ASPLI.COM,Neighbourhoods,63.72,Ind. Emp Exp-Emp. Welfare,2020-21Jul_PC00185
Sandwell Metropolitan Borough Council,http://www.sandwell.gov.uk/info/200202/performance_and_spending/3233/government_procurement_cards,20-Jul-20,Regeneration & Growth,Amazon.co.uk YN7UR2U05,Regeneration And The Economy,99.99,ICT,2020-21Jul_PC00186
Sandwell Metropolitan Borough Council,http://www.sandwell.gov.uk/info/200202/performance_and_spending/3233/government_procurement_cards,20-Jul-20,Adult Social Care Health and Wellbeing - Total,AMZNMKTPLACE AMAZON.CO,Total Adult Social Care,19.99,Telephones,2020-21Jul_PC00187
Sandwell Metropolitan Borough Council,http://www.sandwell.gov.uk/info/200202/performance_and_spending/3233/government_procurement_cards,20-Jul-20,Adult Social Care Health and Wellbeing - Total,AMZNMktplace,Total Adult Social Care,19.99,Telephones,2020-21Jul_PC00188
Sandwell Metropolitan Borough Council,http://www.sandwell.gov.uk/info/200202/performance_and_spending/3233/government_procurement_cards,20-Jul-20,Adult Social Care Health and Wellbeing - Total,ELLISON EUROPE STG,Total Adult Social Care,22.07,Equipment & Furniture,2020-21Jul_PC00189
Sandwell Metropolitan Borough Council,http://www.sandwell.gov.uk/info/200202/performance_and_spending/3233/government_procurement_cards,20-Jul-20,Adult Social Care Health and Wellbeing - Total,AMZNMKTPLACE AMAZON.CO,Total Adult Social Care,19.99,Telephones,2020-21Jul_PC00190
Sandwell Metropolitan Borough Council,http://www.sandwell.gov.uk/info/200202/performance_and_spending/3233/government_procurement_cards,20-Jul-20,Adult Social Care Health and Wellbeing - Total,AMZNMktplace,Total Adult Social Care,19.99,Telephones,2020-21Jul_PC00191
Sandwell Metropolitan Borough Council,http://www.sandwell.gov.uk/info/200202/performance_and_spending/3233/government_procurement_cards,20-Jul-20,Resources (Inc SIU),HEADSETS4BUSINESS,Assistant Chief Executive (Excl SIU),138,Equipment & Furniture,2020-21Jul_PC00192
Sandwell Metropolitan Borough Council,http://www.sandwell.gov.uk/info/200202/performance_and_spending/3233/government_procurement_cards,20-Jul-20,Resources (Inc SIU),HEADSETS4BUSINESS,Assistant Chief Executive (Excl SIU),138,Equipment & Furniture,2020-21Jul_PC00193
Sandwell Metropolitan Borough Council,http://www.sandwell.gov.uk/info/200202/performance_and_spending/3233/government_procurement_cards,20-Jul-20,Adult Social Care Health and Wellbeing - Total,ADOBE CREATIVE CLOUD,Public Health,41.62,Advertising & Publicity,2020-21Jul_PC00194
Sandwell Metropolitan Borough Council,http://www.sandwell.gov.uk/info/200202/performance_and_spending/3233/government_procurement_cards,20-Jul-20,Childrens Services,AMZNMKTPLACE AMAZON.CO,Childrens Services,16.23,Materials & Consumables,2020-21Jul_PC00195
Sandwell Metropolitan Borough Council,http://www.sandwell.gov.uk/info/200202/performance_and_spending/3233/government_procurement_cards,20-Jul-20,Childrens Services,AMZNMKTPLACE AMAZON.CO,Childrens Services,58.32,Materials & Consumables,2020-21Jul_PC00196
Sandwell Metropolitan Borough Council,http://www.sandwell.gov.uk/info/200202/performance_and_spending/3233/government_procurement_cards,20-Jul-20,Childrens Services,AMZNMKTPLACE AMAZON.CO,Childrens Services,12.49,Materials & Consumables,2020-21Jul_PC00197
Sandwell Metropolitan Borough Council,http://www.sandwell.gov.uk/info/200202/performance_and_spending/3233/government_procurement_cards,20-Jul-20,Adult Social Care Health and Wellbeing - Total,WILLOW CATERING SERVIC,Total Adult Social Care,120,Catering Equipment,2020-21Jul_PC00198
Sandwell Metropolitan Borough Council,http://www.sandwell.gov.uk/info/200202/performance_and_spending/3233/government_procurement_cards,20-Jul-20,Housing & Communities,BESTWAY WHOLESALE,Neighbourhoods,9.75,Materials & Consumables,2020-21Jul_PC00199
Sandwell Metropolitan Borough Council,http://www.sandwell.gov.uk/info/200202/performance_and_spending/3233/government_procurement_cards,20-Jul-20,Housing & Communities,HOMEBASE LTD 085,Neighbourhoods,46.67,R& M - Building Maint&Imp.,2020-21Jul_PC00200
Sandwell Metropolitan Borough Council,http://www.sandwell.gov.uk/info/200202/performance_and_spending/3233/government_procurement_cards,20-Jul-20,Housing & Communities,AMZNMktplace,Neighbourhoods,110.38,Telephones,2020-21Jul_PC00201
Sandwell Metropolitan Borough Council,http://www.sandwell.gov.uk/info/200202/performance_and_spending/3233/government_procurement_cards,20-Jul-20,Housing & Communities,AMZNMktplace,Neighbourhoods,24.32,R& M - Building Maint&Imp.,2020-21Jul_PC00202
Sandwell Metropolitan Borough Council,http://www.sandwell.gov.uk/info/200202/performance_and_spending/3233/government_procurement_cards,20-Jul-20,Housing & Communities,WWW.BUNZLCLEANINGSUPPL,Neighbourhoods,34.31,Equipment & Furniture,2020-21Jul_PC00203
Sandwell Metropolitan Borough Council,http://www.sandwell.gov.uk/info/200202/performance_and_spending/3233/government_procurement_cards,20-Jul-20,Housing & Communities,Amazon.co.uk PM5YF5YY5,Neighbourhoods,379.03,Equipment & Furniture,2020-21Jul_PC00204
Sandwell Metropolitan Borough Council,http://www.sandwell.gov.uk/info/200202/performance_and_spending/3233/government_procurement_cards,20-Jul-20,Adult Social Care Health and Wellbeing - Total,AMZNMktplace,Total Adult Social Care,16.23,Printing Stationery&Gen Office,2020-21Jul_PC00205
Sandwell Metropolitan Borough Council,http://www.sandwell.gov.uk/info/200202/performance_and_spending/3233/government_procurement_cards,20-Jul-20,Adult Social Care Health and Wellbeing - Total,OFFICE DEPOT UK,Total Adult Social Care,0.14,Printing Stationery&Gen Office,2020-21Jul_PC00206
Sandwell Metropolitan Borough Council,http://www.sandwell.gov.uk/info/200202/performance_and_spending/3233/government_procurement_cards,20-Jul-20,Adult Social Care Health and Wellbeing - Total,OFFICE DEPOT UK,Total Adult Social Care,31.48,Printing Stationery&Gen Office,2020-21Jul_PC00207
Sandwell Metropolitan Borough Council,http://www.sandwell.gov.uk/info/200202/performance_and_spending/3233/government_procurement_cards,20-Jul-20,Childrens Services,EB  RSE THEMED CAFE-CO,Childrens Services,24.99,Ind. Emp Exp-Staff Dev&Training,2020-21Jul_PC00208
Sandwell Metropolitan Borough Council,http://www.sandwell.gov.uk/info/200202/performance_and_spending/3233/government_procurement_cards,20-Jul-20,Childrens Services,EB  THEMED RSE CAFE FG,Childrens Services,24.99,Ind. Emp Exp-Staff Dev&Training,2020-21Jul_PC00209
Sandwell Metropolitan Borough Council,http://www.sandwell.gov.uk/info/200202/performance_and_spending/3233/government_procurement_cards,20-Jul-20,Adult Social Care Health and Wellbeing - Total,CHARTERED INSTITUTE OF,Total Adult Social Care,35,Ind. Emp Exp-Staff Dev&Training,2020-21Jul_PC00210
Sandwell Metropolitan Borough Council,http://www.sandwell.gov.uk/info/200202/performance_and_spending/3233/government_procurement_cards,20-Jul-20,Individual School Budgets With Inclusion,POSITIVE EYE LTD,Individual School Budgets With Inclusion,110,Ind. Emp Exp-Staff Dev&Training,2020-21Jul_PC00211
Sandwell Metropolitan Borough Council,http://www.sandwell.gov.uk/info/200202/performance_and_spending/3233/government_procurement_cards,20-Jul-20,Adult Social Care Health and Wellbeing - Total,CHARTERED INSTITUTE OF,Total Adult Social Care,35,Ind. Emp Exp-Staff Dev&Training,2020-21Jul_PC00212
Sandwell Metropolitan Borough Council,http://www.sandwell.gov.uk/info/200202/performance_and_spending/3233/government_procurement_cards,21-Jul-20,Housing & Communities,WWW.ASPLI.COM,Neighbourhoods,369.45,Equipment & Furniture,2020-21Jul_PC00213
Sandwell Metropolitan Borough Council,http://www.sandwell.gov.uk/info/200202/performance_and_spending/3233/government_procurement_cards,21-Jul-20,Housing & Communities,HORNERSHEARING.COM,Neighbourhoods,64,Equipment & Furniture,2020-21Jul_PC00214
Sandwell Metropolitan Borough Council,http://www.sandwell.gov.uk/info/200202/performance_and_spending/3233/government_procurement_cards,21-Jul-20,Childrens Services,CARTRIDGEPEOPLE.COM,Childrens Services,13.32,ICT,2020-21Jul_PC00215
Sandwell Metropolitan Borough Council,http://www.sandwell.gov.uk/info/200202/performance_and_spending/3233/government_procurement_cards,21-Jul-20,Adult Social Care Health and Wellbeing - Total,OFFICE DEPOT UK,Total Adult Social Care,53,Protective Clothing&Uniforms,2020-21Jul_PC00216
Sandwell Metropolitan Borough Council,http://www.sandwell.gov.uk/info/200202/performance_and_spending/3233/government_procurement_cards,21-Jul-20,Housing & Communities,PAYPAL  THEATRETOTS,Neighbourhoods,200,Advertising & Publicity,2020-21Jul_PC00217
Sandwell Metropolitan Borough Council,http://www.sandwell.gov.uk/info/200202/performance_and_spending/3233/government_procurement_cards,21-Jul-20,Childrens Services,YORKSHIRE PURCHASING O,Childrens Services,110.4,Materials & Consumables,2020-21Jul_PC00218
Sandwell Metropolitan Borough Council,http://www.sandwell.gov.uk/info/200202/performance_and_spending/3233/government_procurement_cards,22-Jul-20,Individual School Budgets With Inclusion,WWW.A1LAWN.CO.UK,Individual School Budgets With Inclusion,291.58,Repairs & Maintenance,2020-21Jul_PC00219
Sandwell Metropolitan Borough Council,http://www.sandwell.gov.uk/info/200202/performance_and_spending/3233/government_procurement_cards,22-Jul-20,Adult Social Care Health and Wellbeing - Total,AMZNMKTPLACE AMAZON.CO,Total Adult Social Care,19.99,Telephones,2020-21Jul_PC00220
Sandwell Metropolitan Borough Council,http://www.sandwell.gov.uk/info/200202/performance_and_spending/3233/government_procurement_cards,22-Jul-20,Regeneration & Growth,AMZNMktplace,Regeneration And The Economy,25.82,Printing Stationery&Gen Office,2020-21Jul_PC00221
Sandwell Metropolitan Borough Council,http://www.sandwell.gov.uk/info/200202/performance_and_spending/3233/government_procurement_cards,22-Jul-20,Adult Social Care Health and Wellbeing - Total,ADOBE STOCK,Public Health,19.99,Advertising & Publicity,2020-21Jul_PC00222
Sandwell Metropolitan Borough Council,http://www.sandwell.gov.uk/info/200202/performance_and_spending/3233/government_procurement_cards,22-Jul-20,Adult Social Care Health and Wellbeing - Total,ARGOS LTD,Total Adult Social Care,20.82,Telephones,2020-21Jul_PC00223
Sandwell Metropolitan Borough Council,http://www.sandwell.gov.uk/info/200202/performance_and_spending/3233/government_procurement_cards,22-Jul-20,Adult Social Care Health and Wellbeing - Total,ARGOS LTD,Total Adult Social Care,20.82,Telephones,2020-21Jul_PC00224
Sandwell Metropolitan Borough Council,http://www.sandwell.gov.uk/info/200202/performance_and_spending/3233/government_procurement_cards,22-Jul-20,Total Housing Revenue Account,AMZNMktplace,Total Housing Revenue Account,1.35,Materials & Consumables,2020-21Jul_PC00225
Sandwell Metropolitan Borough Council,http://www.sandwell.gov.uk/info/200202/performance_and_spending/3233/government_procurement_cards,22-Jul-20,Housing & Communities,AMZNMktplace,Neighbourhoods,103.73,Telephones,2020-21Jul_PC00226
Sandwell Metropolitan Borough Council,http://www.sandwell.gov.uk/info/200202/performance_and_spending/3233/government_procurement_cards,22-Jul-20,Housing & Communities,AMZNMKTPLACE AMAZON.CO,Neighbourhoods,103.73,Telephones,2020-21Jul_PC00227
Sandwell Metropolitan Borough Council,http://www.sandwell.gov.uk/info/200202/performance_and_spending/3233/government_procurement_cards,22-Jul-20,Housing & Communities,Amazon.co.uk TN9BM7AZ5,Neighbourhoods,12.79,Printing Stationery&Gen Office,2020-21Jul_PC00228
Sandwell Metropolitan Borough Council,http://www.sandwell.gov.uk/info/200202/performance_and_spending/3233/government_procurement_cards,22-Jul-20,Adult Social Care Health and Wellbeing - Total,OFFICE DEPOT UK,Total Adult Social Care,2.92,Printing Stationery&Gen Office,2020-21Jul_PC00229
Sandwell Metropolitan Borough Council,http://www.sandwell.gov.uk/info/200202/performance_and_spending/3233/government_procurement_cards,22-Jul-20,Adult Social Care Health and Wellbeing - Total,OFFICE DEPOT UK,Total Adult Social Care,17.88,Printing Stationery&Gen Office,2020-21Jul_PC00230
Sandwell Metropolitan Borough Council,http://www.sandwell.gov.uk/info/200202/performance_and_spending/3233/government_procurement_cards,22-Jul-20,Childrens Services,AMZNMKTPLACE AMAZON.CO,Childrens Services,17.96,Printing Stationery&Gen Office,2020-21Jul_PC00231
Sandwell Metropolitan Borough Council,http://www.sandwell.gov.uk/info/200202/performance_and_spending/3233/government_procurement_cards,22-Jul-20,Childrens Services,AMZNMktplace,Childrens Services,17.96,Printing Stationery&Gen Office,2020-21Jul_PC00232
Sandwell Metropolitan Borough Council,http://www.sandwell.gov.uk/info/200202/performance_and_spending/3233/government_procurement_cards,22-Jul-20,Regeneration & Growth,PAYPAL  ROYAL MAIL,Regeneration And The Economy,4.58,"Postages, Carriage & Courier Services",2020-21Jul_PC00233
Sandwell Metropolitan Borough Council,http://www.sandwell.gov.uk/info/200202/performance_and_spending/3233/government_procurement_cards,22-Jul-20,Regeneration & Growth,PAYPAL  ROYAL MAIL,Regeneration And The Economy,4.58,"Postages, Carriage & Courier Services",2020-21Jul_PC00234
Sandwell Metropolitan Borough Council,http://www.sandwell.gov.uk/info/200202/performance_and_spending/3233/government_procurement_cards,22-Jul-20,Regeneration & Growth,PAYPAL  ROYAL MAIL,Regeneration And The Economy,4.58,"Postages, Carriage & Courier Services",2020-21Jul_PC00235
Sandwell Metropolitan Borough Council,http://www.sandwell.gov.uk/info/200202/performance_and_spending/3233/government_procurement_cards,22-Jul-20,Regeneration & Growth,PAYPAL  ROYAL MAIL,Regeneration And The Economy,2.45,"Postages, Carriage & Courier Services",2020-21Jul_PC00236
Sandwell Metropolitan Borough Council,http://www.sandwell.gov.uk/info/200202/performance_and_spending/3233/government_procurement_cards,22-Jul-20,Childrens Services,Amazon.co.uk NA29042X5,Childrens Services,134.77,Materials & Consumables,2020-21Jul_PC00237
Sandwell Metropolitan Borough Council,http://www.sandwell.gov.uk/info/200202/performance_and_spending/3233/government_procurement_cards,23-Jul-20,Regeneration & Growth,AMZNMKTPLACE AMAZON.CO,Regeneration And The Economy,37.04,ICT,2020-21Jul_PC00238
Sandwell Metropolitan Borough Council,http://www.sandwell.gov.uk/info/200202/performance_and_spending/3233/government_procurement_cards,23-Jul-20,Adult Social Care Health and Wellbeing - Total,AMZNMktplace,Total Adult Social Care,19.98,Telephones,2020-21Jul_PC00239
Sandwell Metropolitan Borough Council,http://www.sandwell.gov.uk/info/200202/performance_and_spending/3233/government_procurement_cards,23-Jul-20,Housing & Communities,WWW.ASPLI.COM,Neighbourhoods,15,R& M - Building Maint&Imp.,2020-21Jul_PC00240
Sandwell Metropolitan Borough Council,http://www.sandwell.gov.uk/info/200202/performance_and_spending/3233/government_procurement_cards,23-Jul-20,Total Housing Revenue Account,SECURITY INDUSTRY,Total Housing Revenue Account,158.33,Subscriptions,2020-21Jul_PC00241
Sandwell Metropolitan Borough Council,http://www.sandwell.gov.uk/info/200202/performance_and_spending/3233/government_procurement_cards,23-Jul-20,Housing & Communities,BOND LOC UK LTD,Neighbourhoods,69.75,Materials & Consumables,2020-21Jul_PC00242
Sandwell Metropolitan Borough Council,http://www.sandwell.gov.uk/info/200202/performance_and_spending/3233/government_procurement_cards,23-Jul-20,Adult Social Care Health and Wellbeing - Total,AMZNMktplace,Public Health,103.73,Printing Stationery&Gen Office,2020-21Jul_PC00243
Sandwell Metropolitan Borough Council,http://www.sandwell.gov.uk/info/200202/performance_and_spending/3233/government_procurement_cards,23-Jul-20,Adult Social Care Health and Wellbeing - Total,AMZNMktplace,Total Adult Social Care,12.07,Printing Stationery&Gen Office,2020-21Jul_PC00244
Sandwell Metropolitan Borough Council,http://www.sandwell.gov.uk/info/200202/performance_and_spending/3233/government_procurement_cards,23-Jul-20,Total Housing Revenue Account,AMZNMktplace,Total Housing Revenue Account,22.06,Equipment & Furniture,2020-21Jul_PC00245
Sandwell Metropolitan Borough Council,http://www.sandwell.gov.uk/info/200202/performance_and_spending/3233/government_procurement_cards,23-Jul-20,Individual School Budgets With Inclusion,Amazon.co.uk 6P3KX45E5,Individual School Budgets With Inclusion,30.52,Materials & Consumables,2020-21Jul_PC00246
Sandwell Metropolitan Borough Council,http://www.sandwell.gov.uk/info/200202/performance_and_spending/3233/government_procurement_cards,23-Jul-20,Adult Social Care Health and Wellbeing - Total,OFFICE DEPOT UK,Total Adult Social Care,63.22,Printing Stationery&Gen Office,2020-21Jul_PC00247
Sandwell Metropolitan Borough Council,http://www.sandwell.gov.uk/info/200202/performance_and_spending/3233/government_procurement_cards,23-Jul-20,Resources (Inc SIU),HARMONY HEALTH & BEAUT,Assistant Chief Executive (Excl SIU),-12.69,Equipment & Furniture,2020-21Jul_PC00248
Sandwell Metropolitan Borough Council,http://www.sandwell.gov.uk/info/200202/performance_and_spending/3233/government_procurement_cards,23-Jul-20,Total Housing Revenue Account,OFFICE DEPOT UK,Total Housing Revenue Account,130,Printing Stationery&Gen Office,2020-21Jul_PC00249
Sandwell Metropolitan Borough Council,http://www.sandwell.gov.uk/info/200202/performance_and_spending/3233/government_procurement_cards,23-Jul-20,Adult Social Care Health and Wellbeing - Total,CHARTERED INSTITUTE OF,Total Adult Social Care,35,Ind. Emp Exp-Staff Dev&Training,2020-21Jul_PC00250
Sandwell Metropolitan Borough Council,http://www.sandwell.gov.uk/info/200202/performance_and_spending/3233/government_procurement_cards,24-Jul-20,Total Housing Revenue Account,AMZNMKTPLACE AMAZON.CO,Total Housing Revenue Account,9.98,Telephones,2020-21Jul_PC00251
Sandwell Metropolitan Borough Council,http://www.sandwell.gov.uk/info/200202/performance_and_spending/3233/government_procurement_cards,24-Jul-20,Adult Social Care Health and Wellbeing - Total,AMZNMKTPLACE AMAZON.CO,Total Adult Social Care,19.99,Telephones,2020-21Jul_PC00252
Sandwell Metropolitan Borough Council,http://www.sandwell.gov.uk/info/200202/performance_and_spending/3233/government_procurement_cards,24-Jul-20,Housing & Communities,TIMPSON LTD,Neighbourhoods,23.83,R& M - Building Maint&Imp.,2020-21Jul_PC00253
Sandwell Metropolitan Borough Council,http://www.sandwell.gov.uk/info/200202/performance_and_spending/3233/government_procurement_cards,24-Jul-20,Regeneration & Growth,AMZNMktplace,Regeneration And The Economy,23.73,Printing Stationery&Gen Office,2020-21Jul_PC00254
Sandwell Metropolitan Borough Council,http://www.sandwell.gov.uk/info/200202/performance_and_spending/3233/government_procurement_cards,24-Jul-20,Resources (Inc SIU),Amazon.co.uk V703L4Q75,Assistant Chief Executive (Excl SIU),15.12,Equipment & Furniture,2020-21Jul_PC00255
Sandwell Metropolitan Borough Council,http://www.sandwell.gov.uk/info/200202/performance_and_spending/3233/government_procurement_cards,24-Jul-20,Resources (Inc SIU),AMZNMktplace,Assistant Chief Executive (Excl SIU),10.31,Equipment & Furniture,2020-21Jul_PC00256
Sandwell Metropolitan Borough Council,http://www.sandwell.gov.uk/info/200202/performance_and_spending/3233/government_procurement_cards,24-Jul-20,Adult Social Care Health and Wellbeing - Total,CHARTERED INSTITUTE OF,Total Adult Social Care,35,Ind. Emp Exp-Staff Dev&Training,2020-21Jul_PC00257
Sandwell Metropolitan Borough Council,http://www.sandwell.gov.uk/info/200202/performance_and_spending/3233/government_procurement_cards,27-Jul-20,Regeneration & Growth,Trimble Solutions,Regeneration And The Economy,1313,Subscriptions,2020-21Jul_PC00258
Sandwell Metropolitan Borough Council,http://www.sandwell.gov.uk/info/200202/performance_and_spending/3233/government_procurement_cards,27-Jul-20,Regeneration & Growth,AMZNMKTPLACE AMAZON.CO,Regeneration And The Economy,11.2,Printing Stationery&Gen Office,2020-21Jul_PC00259
Sandwell Metropolitan Borough Council,http://www.sandwell.gov.uk/info/200202/performance_and_spending/3233/government_procurement_cards,27-Jul-20,Housing & Communities,AMZNMKTPLACE AMAZON.CO,Neighbourhoods,16.57,Materials & Consumables,2020-21Jul_PC00260
Sandwell Metropolitan Borough Council,http://www.sandwell.gov.uk/info/200202/performance_and_spending/3233/government_procurement_cards,27-Jul-20,Resources (Inc SIU),BRITISH DYSLEXIA ASSOC,Assistant Chief Executive (Excl SIU),375,Ind. Emp Exp-Emp. Welfare,2020-21Jul_PC00261
Sandwell Metropolitan Borough Council,http://www.sandwell.gov.uk/info/200202/performance_and_spending/3233/government_procurement_cards,27-Jul-20,Resources (Inc SIU),MOUSER ELECTRONICS INC,Assistant Chief Executive (Excl SIU),404.4,ICT,2020-21Jul_PC00262
Sandwell Metropolitan Borough Council,http://www.sandwell.gov.uk/info/200202/performance_and_spending/3233/government_procurement_cards,27-Jul-20,Childrens Services,Amazon.co.uk YS7450LM5,Childrens Services,18.7,Telephones,2020-21Jul_PC00263
Sandwell Metropolitan Borough Council,http://www.sandwell.gov.uk/info/200202/performance_and_spending/3233/government_procurement_cards,27-Jul-20,Adult Social Care Health and Wellbeing - Total,Amazon.co.uk 3W7529KL5,Total Adult Social Care,21.45,Printing Stationery&Gen Office,2020-21Jul_PC00264
Sandwell Metropolitan Borough Council,http://www.sandwell.gov.uk/info/200202/performance_and_spending/3233/government_procurement_cards,27-Jul-20,Resources Capital,AMZNMktplace,Resources Capital,40.65,ICT,2020-21Jul_PC00265
Sandwell Metropolitan Borough Council,http://www.sandwell.gov.uk/info/200202/performance_and_spending/3233/government_procurement_cards,27-Jul-20,Regeneration & Growth,AMZNMktplace,Regeneration And The Economy,23.72,Printing Stationery&Gen Office,2020-21Jul_PC00266
Sandwell Metropolitan Borough Council,http://www.sandwell.gov.uk/info/200202/performance_and_spending/3233/government_procurement_cards,27-Jul-20,Childrens Services,OFFICE DEPOT UK,Childrens Services,2.91,Printing Stationery&Gen Office,2020-21Jul_PC00267
Sandwell Metropolitan Borough Council,http://www.sandwell.gov.uk/info/200202/performance_and_spending/3233/government_procurement_cards,27-Jul-20,Adult Social Care Health and Wellbeing - Total,OFFICE DEPOT UK,Total Adult Social Care,42.3,Printing Stationery&Gen Office,2020-21Jul_PC00268
Sandwell Metropolitan Borough Council,http://www.sandwell.gov.uk/info/200202/performance_and_spending/3233/government_procurement_cards,27-Jul-20,Individual School Budgets With Inclusion,AMZNMKTPLACE AMAZON.CO,Individual School Budgets With Inclusion,78.91,Repairs & Maintenance,2020-21Jul_PC00269
Sandwell Metropolitan Borough Council,http://www.sandwell.gov.uk/info/200202/performance_and_spending/3233/government_procurement_cards,27-Jul-20,Adult Social Care Health and Wellbeing - Total,AMZNMktplace,Total Adult Social Care,242.94,Repairs & Maintenance,2020-21Jul_PC00270
Sandwell Metropolitan Borough Council,http://www.sandwell.gov.uk/info/200202/performance_and_spending/3233/government_procurement_cards,27-Jul-20,Corporate Management,Amazon Prime 024RQ8E85,Corporate Management,6.66,Subscriptions,2020-21Jul_PC00271
Sandwell Metropolitan Borough Council,http://www.sandwell.gov.uk/info/200202/performance_and_spending/3233/government_procurement_cards,28-Jul-20,Regeneration & Growth,Amazon.co.uk V402C7HG5,Regeneration And The Economy,72.77,Materials & Consumables,2020-21Jul_PC00272
Sandwell Metropolitan Borough Council,http://www.sandwell.gov.uk/info/200202/performance_and_spending/3233/government_procurement_cards,28-Jul-20,Childrens Services,Dropbox,Childrens Services,36,Licences,2020-21Jul_PC00273
Sandwell Metropolitan Borough Council,http://www.sandwell.gov.uk/info/200202/performance_and_spending/3233/government_procurement_cards,28-Jul-20,Total Housing Revenue Account,AMZNMktplace,Total Housing Revenue Account,66.6,ICT,2020-21Jul_PC00274
Sandwell Metropolitan Borough Council,http://www.sandwell.gov.uk/info/200202/performance_and_spending/3233/government_procurement_cards,28-Jul-20,Housing & Communities,SP   SAM TURNER & SONS,Neighbourhoods,23.47,Equipment & Furniture,2020-21Jul_PC00275
Sandwell Metropolitan Borough Council,http://www.sandwell.gov.uk/info/200202/performance_and_spending/3233/government_procurement_cards,28-Jul-20,Housing & Communities,SAFETYSUPPL,Neighbourhoods,199,Protective Clothing&Uniforms,2020-21Jul_PC00276
Sandwell Metropolitan Borough Council,http://www.sandwell.gov.uk/info/200202/performance_and_spending/3233/government_procurement_cards,28-Jul-20,Childrens Services,PAYPAL  CAREERDEVEL,Childrens Services,50,Ind. Emp Exp-Staff Dev&Training,2020-21Jul_PC00277
Sandwell Metropolitan Borough Council,http://www.sandwell.gov.uk/info/200202/performance_and_spending/3233/government_procurement_cards,28-Jul-20,Childrens Services,AMZNMktplace,Childrens Services,13.32,Telephones,2020-21Jul_PC00278
Sandwell Metropolitan Borough Council,http://www.sandwell.gov.uk/info/200202/performance_and_spending/3233/government_procurement_cards,28-Jul-20,Housing & Communities,AMZNMktplace,Neighbourhoods,34.13,Printing Stationery&Gen Office,2020-21Jul_PC00279
Sandwell Metropolitan Borough Council,http://www.sandwell.gov.uk/info/200202/performance_and_spending/3233/government_procurement_cards,28-Jul-20,Adult Social Care Health and Wellbeing - Total,OFFICE DEPOT UK,Total Adult Social Care,64.42,Printing Stationery&Gen Office,2020-21Jul_PC00280
Sandwell Metropolitan Borough Council,http://www.sandwell.gov.uk/info/200202/performance_and_spending/3233/government_procurement_cards,28-Jul-20,Adult Social Care Health and Wellbeing - Total,AMZNMktplace,Total Adult Social Care,6.99,Printing Stationery&Gen Office,2020-21Jul_PC00281
Sandwell Metropolitan Borough Council,http://www.sandwell.gov.uk/info/200202/performance_and_spending/3233/government_procurement_cards,28-Jul-20,Adult Social Care Health and Wellbeing - Total,AMZNMktplace,Total Adult Social Care,8.99,Printing Stationery&Gen Office,2020-21Jul_PC00282
Sandwell Metropolitan Borough Council,http://www.sandwell.gov.uk/info/200202/performance_and_spending/3233/government_procurement_cards,28-Jul-20,Housing & Communities,PP MR MARQUEE,Neighbourhoods,960,External Contract Hire,2020-21Jul_PC00283
Sandwell Metropolitan Borough Council,http://www.sandwell.gov.uk/info/200202/performance_and_spending/3233/government_procurement_cards,28-Jul-20,Housing & Communities,MAIN EVENT,Neighbourhoods,469.8,Equipment & Furniture,2020-21Jul_PC00284
Sandwell Metropolitan Borough Council,http://www.sandwell.gov.uk/info/200202/performance_and_spending/3233/government_procurement_cards,29-Jul-20,Total Housing Revenue Account,AMZNMKTPLACE AMAZON.CO,Total Housing Revenue Account,99.9,ICT,2020-21Jul_PC00285
Sandwell Metropolitan Borough Council,http://www.sandwell.gov.uk/info/200202/performance_and_spending/3233/government_procurement_cards,29-Jul-20,Regeneration & Growth,AMZNMktplace,Regeneration And The Economy,8.2,Printing Stationery&Gen Office,2020-21Jul_PC00286
Sandwell Metropolitan Borough Council,http://www.sandwell.gov.uk/info/200202/performance_and_spending/3233/government_procurement_cards,29-Jul-20,Resources (Inc SIU),AMZNMktplace,Assistant Chief Executive (Excl SIU),29.15,Equipment & Furniture,2020-21Jul_PC00287
Sandwell Metropolitan Borough Council,http://www.sandwell.gov.uk/info/200202/performance_and_spending/3233/government_procurement_cards,29-Jul-20,Housing & Communities,SignMax AB,Neighbourhoods,187,Fixtures & Fittings,2020-21Jul_PC00288
Sandwell Metropolitan Borough Council,http://www.sandwell.gov.uk/info/200202/performance_and_spending/3233/government_procurement_cards,29-Jul-20,Regeneration & Growth,AMZNMktplace,Regeneration And The Economy,599.11,ICT,2020-21Jul_PC00289
Sandwell Metropolitan Borough Council,http://www.sandwell.gov.uk/info/200202/performance_and_spending/3233/government_procurement_cards,29-Jul-20,Adult Social Care Health and Wellbeing - Total,PAYPAL  AMPACSECURI,Total Adult Social Care,228.28,Printing Stationery&Gen Office,2020-21Jul_PC00290
Sandwell Metropolitan Borough Council,http://www.sandwell.gov.uk/info/200202/performance_and_spending/3233/government_procurement_cards,29-Jul-20,Adult Social Care Health and Wellbeing - Total,CURRYS,Total Adult Social Care,757.47,Equipment & Furniture,2020-21Jul_PC00291
Sandwell Metropolitan Borough Council,http://www.sandwell.gov.uk/info/200202/performance_and_spending/3233/government_procurement_cards,29-Jul-20,Housing & Communities,TIMPSON LTD,Neighbourhoods,18.33,Printing Stationery&Gen Office,2020-21Jul_PC00292
Sandwell Metropolitan Borough Council,http://www.sandwell.gov.uk/info/200202/performance_and_spending/3233/government_procurement_cards,29-Jul-20,Adult Social Care Health and Wellbeing - Total,SAFETYSIGNS,Total Adult Social Care,73.31,Equipment & Furniture,2020-21Jul_PC00293
Sandwell Metropolitan Borough Council,http://www.sandwell.gov.uk/info/200202/performance_and_spending/3233/government_procurement_cards,29-Jul-20,Individual School Budgets With Inclusion,OUTSIDETHEBOXLEARNING.,Individual School Budgets With Inclusion,246.56,Materials & Consumables,2020-21Jul_PC00294
Sandwell Metropolitan Borough Council,http://www.sandwell.gov.uk/info/200202/performance_and_spending/3233/government_procurement_cards,29-Jul-20,Regeneration & Growth,AMZNMktplace,Regeneration And The Economy,19.98,Equipment & Furniture,2020-21Jul_PC00295
Sandwell Metropolitan Borough Council,http://www.sandwell.gov.uk/info/200202/performance_and_spending/3233/government_procurement_cards,29-Jul-20,Adult Social Care Health and Wellbeing - Total,AMZNMktplace,Total Adult Social Care,112.49,Telephones,2020-21Jul_PC00296
Sandwell Metropolitan Borough Council,http://www.sandwell.gov.uk/info/200202/performance_and_spending/3233/government_procurement_cards,29-Jul-20,Adult Social Care Health and Wellbeing - Total,AMZNMktplace,Total Adult Social Care,112.49,Telephones,2020-21Jul_PC00297
Sandwell Metropolitan Borough Council,http://www.sandwell.gov.uk/info/200202/performance_and_spending/3233/government_procurement_cards,29-Jul-20,Housing & Communities,MAIN EVENT,Neighbourhoods,446.4,Equipment & Furniture,2020-21Jul_PC00298
Sandwell Metropolitan Borough Council,http://www.sandwell.gov.uk/info/200202/performance_and_spending/3233/government_procurement_cards,29-Jul-20,Adult Social Care Health and Wellbeing - Total,XMA LTD,Total Adult Social Care,98.36,ICT,2020-21Jul_PC00299
Sandwell Metropolitan Borough Council,http://www.sandwell.gov.uk/info/200202/performance_and_spending/3233/government_procurement_cards,30-Jul-20,Adult Social Care Health and Wellbeing - Total,OFFICE DEPOT UK,Total Adult Social Care,48.67,Printing Stationery&Gen Office,2020-21Jul_PC00300
Sandwell Metropolitan Borough Council,http://www.sandwell.gov.uk/info/200202/performance_and_spending/3233/government_procurement_cards,30-Jul-20,Childrens Services,WWW.BESTINTHECOUNTRY.C,Childrens Services,51.95,Protective Clothing&Uniforms,2020-21Jul_PC00301
Sandwell Metropolitan Borough Council,http://www.sandwell.gov.uk/info/200202/performance_and_spending/3233/government_procurement_cards,30-Jul-20,Childrens Services,SAFETYSUPPL,Childrens Services,27.55,Materials & Consumables,2020-21Jul_PC00302
Sandwell Metropolitan Borough Council,http://www.sandwell.gov.uk/info/200202/performance_and_spending/3233/government_procurement_cards,30-Jul-20,Childrens Services,GOMPELS HEALTHCARE LTD,Childrens Services,151.84,Materials & Consumables,2020-21Jul_PC00303
Sandwell Metropolitan Borough Council,http://www.sandwell.gov.uk/info/200202/performance_and_spending/3233/government_procurement_cards,30-Jul-20,Individual School Budgets With Inclusion,AMZNMKTPLACE AMAZON.CO,Individual School Budgets With Inclusion,238.22,Printing Stationery&Gen Office,2020-21Jul_PC00304
Sandwell Metropolitan Borough Council,http://www.sandwell.gov.uk/info/200202/performance_and_spending/3233/government_procurement_cards,30-Jul-20,Childrens Services,Amazon.co.uk ND9KH80C5,Childrens Services,9.99,Materials & Consumables,2020-21Jul_PC00305
Sandwell Metropolitan Borough Council,http://www.sandwell.gov.uk/info/200202/performance_and_spending/3233/government_procurement_cards,30-Jul-20,Adult Social Care Health and Wellbeing - Total,OFFICE DEPOT UK,Total Adult Social Care,9.99,Printing Stationery&Gen Office,2020-21Jul_PC00306
Sandwell Metropolitan Borough Council,http://www.sandwell.gov.uk/info/200202/performance_and_spending/3233/government_procurement_cards,30-Jul-20,Adult Social Care Health and Wellbeing - Total,OFFICE DEPOT UK,Total Adult Social Care,45.16,Printing Stationery&Gen Office,2020-21Jul_PC00307
Sandwell Metropolitan Borough Council,http://www.sandwell.gov.uk/info/200202/performance_and_spending/3233/government_procurement_cards,30-Jul-20,Regeneration & Growth,OFFICE DEPOT UK,Regeneration And The Economy,3.78,Printing Stationery&Gen Office,2020-21Jul_PC00308
Sandwell Metropolitan Borough Council,http://www.sandwell.gov.uk/info/200202/performance_and_spending/3233/government_procurement_cards,30-Jul-20,Regeneration & Growth,ARCO LTD,Regeneration And The Economy,220.22,Protective Clothing&Uniforms,2020-21Jul_PC00309
Sandwell Metropolitan Borough Council,http://www.sandwell.gov.uk/info/200202/performance_and_spending/3233/government_procurement_cards,30-Jul-20,Adult Social Care Health and Wellbeing - Total,OFFICE DEPOT UK,Total Adult Social Care,28.1,Printing Stationery&Gen Office,2020-21Jul_PC00310
Sandwell Metropolitan Borough Council,http://www.sandwell.gov.uk/info/200202/performance_and_spending/3233/government_procurement_cards,30-Jul-20,Adult Social Care Health and Wellbeing - Total,OFFICE DEPOT UK,Total Adult Social Care,12,Printing Stationery&Gen Office,2020-21Jul_PC00311
Sandwell Metropolitan Borough Council,http://www.sandwell.gov.uk/info/200202/performance_and_spending/3233/government_procurement_cards,30-Jul-20,Childrens Services,VIKING UK,Childrens Services,49.95,Materials & Consumables,2020-21Jul_PC00312
Sandwell Metropolitan Borough Council,http://www.sandwell.gov.uk/info/200202/performance_and_spending/3233/government_procurement_cards,30-Jul-20,Regeneration & Growth,THE POST OFFICE,Regeneration And The Economy,37.5,ICT,2020-21Jul_PC00313
Sandwell Metropolitan Borough Council,http://www.sandwell.gov.uk/info/200202/performance_and_spending/3233/government_procurement_cards,30-Jul-20,Adult Social Care Health and Wellbeing - Total,AMZNMktplace,Total Adult Social Care,161.96,Printing Stationery&Gen Office,2020-21Jul_PC00314
Sandwell Metropolitan Borough Council,http://www.sandwell.gov.uk/info/200202/performance_and_spending/3233/government_procurement_cards,30-Jul-20,Adult Social Care Health and Wellbeing - Total,XMA LTD,Public Health,98.84,ICT,2020-21Jul_PC00315
Sandwell Metropolitan Borough Council,http://www.sandwell.gov.uk/info/200202/performance_and_spending/3233/government_procurement_cards,31-Jul-20,Housing & Communities,POLYBAGS LTD,Neighbourhoods,144.97,Printing Stationery&Gen Office,2020-21Jul_PC00316
Sandwell Metropolitan Borough Council,http://www.sandwell.gov.uk/info/200202/performance_and_spending/3233/government_procurement_cards,31-Jul-20,Regeneration & Growth,AMZNMKTPLACE AMAZON.CO,Regeneration And The Economy,22.98,Printing Stationery&Gen Office,2020-21Jul_PC00317
Sandwell Metropolitan Borough Council,http://www.sandwell.gov.uk/info/200202/performance_and_spending/3233/government_procurement_cards,31-Jul-20,Adult Social Care Health and Wellbeing - Total,Amazon.co.uk C34EJ0QO5,Total Adult Social Care,37.49,Equipment & Furniture,2020-21Jul_PC00318
Sandwell Metropolitan Borough Council,http://www.sandwell.gov.uk/info/200202/performance_and_spending/3233/government_procurement_cards,31-Jul-20,Regeneration & Growth,AMZNMKTPLACE AMAZON.CO,Regeneration And The Economy,17.07,ICT,2020-21Jul_PC00319
Sandwell Metropolitan Borough Council,http://www.sandwell.gov.uk/info/200202/performance_and_spending/3233/government_procurement_cards,31-Jul-20,Housing & Communities,ROBINS AND DAY BHAM CE,Neighbourhoods,105,Fire Service Workshops,2020-21Jul_PC00320
Sandwell Metropolitan Borough Council,http://www.sandwell.gov.uk/info/200202/performance_and_spending/3233/government_procurement_cards,31-Jul-20,Resources (Inc SIU),OFFICE DEPOT UK,Assistant Chief Executive (Excl SIU),53.46,Printing Stationery&Gen Office,2020-21Jul_PC00321
Sandwell Metropolitan Borough Council,http://www.sandwell.gov.uk/info/200202/performance_and_spending/3233/government_procurement_cards,31-Jul-20,Resources (Inc SIU),OFFICE DEPOT UK,Assistant Chief Executive (Excl SIU),3.62,Printing Stationery&Gen Office,2020-21Jul_PC00322
Sandwell Metropolitan Borough Council,http://www.sandwell.gov.uk/info/200202/performance_and_spending/3233/government_procurement_cards,31-Jul-20,Total Housing Revenue Account,PAYPAL  TRAVELLERMO TR,Total Housing Revenue Account,35,Ind. Emp Exp-Staff Dev&Training,2020-21Jul_PC00323
Sandwell Metropolitan Borough Council,http://www.sandwell.gov.uk/info/200202/performance_and_spending/3233/government_procurement_cards,31-Jul-20,Total Housing Revenue Account,PAYPAL  TRAVELLERMO TR,Total Housing Revenue Account,35,Ind. Emp Exp-Staff Dev&Training,2020-21Jul_PC00324
Sandwell Metropolitan Borough Council,http://www.sandwell.gov.uk/info/200202/performance_and_spending/3233/government_procurement_cards,03-Aug-20,Housing & Communities,LIFTING GEAR DIRECT LT,Neighbourhoods,55.28,Fire Service Workshops,2020-21Jul_PC00325
Sandwell Metropolitan Borough Council,http://www.sandwell.gov.uk/info/200202/performance_and_spending/3233/government_procurement_cards,03-Aug-20,Childrens Services,SAFETYSUPPL,Childrens Services,-27.55,Materials & Consumables,2020-21Jul_PC00326
Sandwell Metropolitan Borough Council,http://www.sandwell.gov.uk/info/200202/performance_and_spending/3233/government_procurement_cards,03-Aug-20,Childrens Services,FACEBK  F5EKNSEV92,Childrens Services,49.56,Ind. Emp Exp-Advertising,2020-21Jul_PC00327
Sandwell Metropolitan Borough Council,http://www.sandwell.gov.uk/info/200202/performance_and_spending/3233/government_procurement_cards,04-Aug-20,Childrens Services,OFFICE DEPOT UK,Childrens Services,4.38,Printing Stationery&Gen Office,2020-21Aug_PC00001
Sandwell Metropolitan Borough Council,http://www.sandwell.gov.uk/info/200202/performance_and_spending/3233/government_procurement_cards,04-Aug-20,Housing & Communities,OFFICE DEPOT UK,Neighbourhoods,5.24,Materials & Consumables,2020-21Aug_PC00002
Sandwell Metropolitan Borough Council,http://www.sandwell.gov.uk/info/200202/performance_and_spending/3233/government_procurement_cards,04-Aug-20,Adult Social Care Health and Wellbeing - Total,OFFICE DEPOT UK,Total Adult Social Care,26.31,Printing Stationery&Gen Office,2020-21Aug_PC00003
Sandwell Metropolitan Borough Council,http://www.sandwell.gov.uk/info/200202/performance_and_spending/3233/government_procurement_cards,04-Aug-20,Housing & Communities,SQ  FIZZ POP SCIENCE B,Neighbourhoods,75,Advertising & Publicity,2020-21Aug_PC00004
Sandwell Metropolitan Borough Council,http://www.sandwell.gov.uk/info/200202/performance_and_spending/3233/government_procurement_cards,04-Aug-20,Childrens Services,SAINSBURYS SACAT 0640,Childrens Services,15.1,Materials & Consumables,2020-21Aug_PC00005
Sandwell Metropolitan Borough Council,http://www.sandwell.gov.uk/info/200202/performance_and_spending/3233/government_procurement_cards,04-Aug-20,Resources (Inc SIU),Amazon.co.uk 6N3RB8DO5,Assistant Chief Executive (Excl SIU),7.12,Printing Stationery&Gen Office,2020-21Aug_PC00006
Sandwell Metropolitan Borough Council,http://www.sandwell.gov.uk/info/200202/performance_and_spending/3233/government_procurement_cards,04-Aug-20,Resources (Inc SIU),Amazon.co.uk HQ6BR4505,Assistant Chief Executive (Excl SIU),7.12,Printing Stationery&Gen Office,2020-21Aug_PC00007
Sandwell Metropolitan Borough Council,http://www.sandwell.gov.uk/info/200202/performance_and_spending/3233/government_procurement_cards,04-Aug-20,Resources (Inc SIU),AMZNMktplace,Assistant Chief Executive (Excl SIU),35.83,ICT,2020-21Aug_PC00008
Sandwell Metropolitan Borough Council,http://www.sandwell.gov.uk/info/200202/performance_and_spending/3233/government_procurement_cards,04-Aug-20,Resources (Inc SIU),Amazon.co.uk L19455IM5,Assistant Chief Executive (Excl SIU),7.12,Printing Stationery&Gen Office,2020-21Aug_PC00009
Sandwell Metropolitan Borough Council,http://www.sandwell.gov.uk/info/200202/performance_and_spending/3233/government_procurement_cards,04-Aug-20,Resources (Inc SIU),AMZNMktplace,Assistant Chief Executive (Excl SIU),35.88,ICT,2020-21Aug_PC00010
Sandwell Metropolitan Borough Council,http://www.sandwell.gov.uk/info/200202/performance_and_spending/3233/government_procurement_cards,04-Aug-20,Housing & Communities,AMZNWarranty,Neighbourhoods,2.49,Telephones,2020-21Aug_PC00011
Sandwell Metropolitan Borough Council,http://www.sandwell.gov.uk/info/200202/performance_and_spending/3233/government_procurement_cards,04-Aug-20,Housing & Communities,COMMERCIAL WASHROOMS,Neighbourhoods,334,Hygiene Services,2020-21Aug_PC00012
Sandwell Metropolitan Borough Council,http://www.sandwell.gov.uk/info/200202/performance_and_spending/3233/government_procurement_cards,04-Aug-20,Childrens Services,AELP.ORG.UK,Childrens Services,-49,Ind. Emp Exp-Staff Dev&Training,2020-21Aug_PC00013
Sandwell Metropolitan Borough Council,http://www.sandwell.gov.uk/info/200202/performance_and_spending/3233/government_procurement_cards,05-Aug-20,Resources (Inc SIU),AMZNMKTPLACE AMAZON.CO,Assistant Chief Executive (Excl SIU),35.88,ICT,2020-21Aug_PC00014
Sandwell Metropolitan Borough Council,http://www.sandwell.gov.uk/info/200202/performance_and_spending/3233/government_procurement_cards,05-Aug-20,Childrens Services,WWW.ALBERT-HARRISON.CO,Childrens Services,-12.17,Materials & Consumables,2020-21Aug_PC00015
Sandwell Metropolitan Borough Council,http://www.sandwell.gov.uk/info/200202/performance_and_spending/3233/government_procurement_cards,05-Aug-20,Housing & Communities,Amazon.co.uk TB3Q895W5,Neighbourhoods,13.65,Equipment & Furniture,2020-21Aug_PC00016
Sandwell Metropolitan Borough Council,http://www.sandwell.gov.uk/info/200202/performance_and_spending/3233/government_procurement_cards,05-Aug-20,Adult Social Care Health and Wellbeing - Total,AMZNMKTPLACE AMAZON.CO,Total Adult Social Care,9.83,ICT,2020-21Aug_PC00017
Sandwell Metropolitan Borough Council,http://www.sandwell.gov.uk/info/200202/performance_and_spending/3233/government_procurement_cards,05-Aug-20,Adult Social Care Health and Wellbeing - Total,WOSZHOP,Total Adult Social Care,1,Materials & Consumables,2020-21Aug_PC00018
Sandwell Metropolitan Borough Council,http://www.sandwell.gov.uk/info/200202/performance_and_spending/3233/government_procurement_cards,05-Aug-20,Regeneration & Growth,Amazon.co.uk B96YC1YO5,Regeneration And The Economy,17.8,Printing Stationery&Gen Office,2020-21Aug_PC00019
Sandwell Metropolitan Borough Council,http://www.sandwell.gov.uk/info/200202/performance_and_spending/3233/government_procurement_cards,05-Aug-20,Housing & Communities,FACEBK 3V5S2T6P32,Neighbourhoods,14.17,Ind. Emp Exp-Advertising,2020-21Aug_PC00020
Sandwell Metropolitan Borough Council,http://www.sandwell.gov.uk/info/200202/performance_and_spending/3233/government_procurement_cards,06-Aug-20,Housing & Communities,OFFICE DEPOT UK,Neighbourhoods,141.72,ICT,2020-21Aug_PC00021
Sandwell Metropolitan Borough Council,http://www.sandwell.gov.uk/info/200202/performance_and_spending/3233/government_procurement_cards,06-Aug-20,Childrens Services,AMZNMKTPLACE AMAZON.CO,Childrens Services,14.83,Materials & Consumables,2020-21Aug_PC00022
Sandwell Metropolitan Borough Council,http://www.sandwell.gov.uk/info/200202/performance_and_spending/3233/government_procurement_cards,06-Aug-20,Childrens Services,AMZNMKTPLACE AMAZON.CO,Childrens Services,97.5,Telephones,2020-21Aug_PC00023
Sandwell Metropolitan Borough Council,http://www.sandwell.gov.uk/info/200202/performance_and_spending/3233/government_procurement_cards,06-Aug-20,Childrens Services,AMZNMktplace,Childrens Services,97.5,Telephones,2020-21Aug_PC00024
Sandwell Metropolitan Borough Council,http://www.sandwell.gov.uk/info/200202/performance_and_spending/3233/government_procurement_cards,06-Aug-20,Childrens Services,AMZNMKTPLACE AMAZON.CO,Childrens Services,97.5,Telephones,2020-21Aug_PC00025
Sandwell Metropolitan Borough Council,http://www.sandwell.gov.uk/info/200202/performance_and_spending/3233/government_procurement_cards,06-Aug-20,Regeneration & Growth,PROCONFERENCES.COM,Regeneration And The Economy,339.99,Ind. Emp Exp-Staff Dev&Training,2020-21Aug_PC00026
Sandwell Metropolitan Borough Council,http://www.sandwell.gov.uk/info/200202/performance_and_spending/3233/government_procurement_cards,06-Aug-20,Total Housing Revenue Account,CHILTERN INVADEX,Total Housing Revenue Account,158.5,Materials & Consumables,2020-21Aug_PC00027
Sandwell Metropolitan Borough Council,http://www.sandwell.gov.uk/info/200202/performance_and_spending/3233/government_procurement_cards,06-Aug-20,Housing & Communities,AMZNMktplace,Neighbourhoods,49.57,Equipment & Furniture,2020-21Aug_PC00028
Sandwell Metropolitan Borough Council,http://www.sandwell.gov.uk/info/200202/performance_and_spending/3233/government_procurement_cards,06-Aug-20,Total Housing Revenue Account,AMZNMKTPLACE AMAZON.CO,Total Housing Revenue Account,29.97,Equipment & Furniture,2020-21Aug_PC00029
Sandwell Metropolitan Borough Council,http://www.sandwell.gov.uk/info/200202/performance_and_spending/3233/government_procurement_cards,06-Aug-20,Total Housing Revenue Account,AMZNMktplace,Total Housing Revenue Account,37.03,Protective Clothing&Uniforms,2020-21Aug_PC00030
Sandwell Metropolitan Borough Council,http://www.sandwell.gov.uk/info/200202/performance_and_spending/3233/government_procurement_cards,06-Aug-20,Regeneration & Growth,SECURE RETAIL LTD,Regeneration And The Economy,66.95,Equipment & Furniture,2020-21Aug_PC00031
Sandwell Metropolitan Borough Council,http://www.sandwell.gov.uk/info/200202/performance_and_spending/3233/government_procurement_cards,06-Aug-20,Adult Social Care Health and Wellbeing - Total,TESCO STORES 2335,Total Adult Social Care,13.79,Materials & Consumables,2020-21Aug_PC00032
Sandwell Metropolitan Borough Council,http://www.sandwell.gov.uk/info/200202/performance_and_spending/3233/government_procurement_cards,06-Aug-20,Adult Social Care Health and Wellbeing - Total,ARGOS LTD,Total Adult Social Care,8.32,Printing Stationery&Gen Office,2020-21Aug_PC00033
Sandwell Metropolitan Borough Council,http://www.sandwell.gov.uk/info/200202/performance_and_spending/3233/government_procurement_cards,06-Aug-20,Adult Social Care Health and Wellbeing - Total,AMZNMktplace,Total Adult Social Care,8.32,Printing Stationery&Gen Office,2020-21Aug_PC00034
Sandwell Metropolitan Borough Council,http://www.sandwell.gov.uk/info/200202/performance_and_spending/3233/government_procurement_cards,06-Aug-20,Resources (Inc SIU),ROYAL COLLEGE OF NURSI,Assistant Chief Executive (Excl SIU),25,Ind. Emp Exp-Staff Dev&Training,2020-21Aug_PC00035
Sandwell Metropolitan Borough Council,http://www.sandwell.gov.uk/info/200202/performance_and_spending/3233/government_procurement_cards,06-Aug-20,Total Housing Revenue Account,AMZNMktplace,Total Housing Revenue Account,33.29,Protective Clothing&Uniforms,2020-21Aug_PC00036
Sandwell Metropolitan Borough Council,http://www.sandwell.gov.uk/info/200202/performance_and_spending/3233/government_procurement_cards,06-Aug-20,Adult Social Care Health and Wellbeing - Total,OFFICE DEPOT UK,Total Adult Social Care,42.74,Printing Stationery&Gen Office,2020-21Aug_PC00037
Sandwell Metropolitan Borough Council,http://www.sandwell.gov.uk/info/200202/performance_and_spending/3233/government_procurement_cards,07-Aug-20,Housing & Communities,AMZNMKTPLACE AMAZON.CO,Neighbourhoods,32.09,Equipment & Furniture,2020-21Aug_PC00038
Sandwell Metropolitan Borough Council,http://www.sandwell.gov.uk/info/200202/performance_and_spending/3233/government_procurement_cards,07-Aug-20,Adult Social Care Health and Wellbeing - Total,AMZNMKTPLACE AMAZON.CO,Total Adult Social Care,49.75,Protective Clothing&Uniforms,2020-21Aug_PC00039
Sandwell Metropolitan Borough Council,http://www.sandwell.gov.uk/info/200202/performance_and_spending/3233/government_procurement_cards,07-Aug-20,Housing & Communities,POLYBAGS LTD,Assistant Chief Executive (Excl SIU),206.72,Catering Provisions,2020-21Aug_PC00040
Sandwell Metropolitan Borough Council,http://www.sandwell.gov.uk/info/200202/performance_and_spending/3233/government_procurement_cards,07-Aug-20,Childrens Services,AMZNMKTPLACE AMAZON.CO,Childrens Services,97.5,Telephones,2020-21Aug_PC00041
Sandwell Metropolitan Borough Council,http://www.sandwell.gov.uk/info/200202/performance_and_spending/3233/government_procurement_cards,07-Aug-20,Childrens Services,AMZNMKTPLACE AMAZON.CO,Childrens Services,97.5,Telephones,2020-21Aug_PC00042
Sandwell Metropolitan Borough Council,http://www.sandwell.gov.uk/info/200202/performance_and_spending/3233/government_procurement_cards,07-Aug-20,Regeneration & Growth,TIMPSON LTD,Regeneration And The Economy,14.12,R & M - Security,2020-21Aug_PC00043
Sandwell Metropolitan Borough Council,http://www.sandwell.gov.uk/info/200202/performance_and_spending/3233/government_procurement_cards,07-Aug-20,Childrens Services,CLEOBURY PHARMACY,Childrens Services,5.18,Materials & Consumables,2020-21Aug_PC00044
Sandwell Metropolitan Borough Council,http://www.sandwell.gov.uk/info/200202/performance_and_spending/3233/government_procurement_cards,07-Aug-20,Total Housing Revenue Account,AMZNMktplace,Total Housing Revenue Account,60.62,Ind. Emp Exp-Emp. Welfare,2020-21Aug_PC00045
Sandwell Metropolitan Borough Council,http://www.sandwell.gov.uk/info/200202/performance_and_spending/3233/government_procurement_cards,07-Aug-20,Adult Social Care Health and Wellbeing - Total,Amazon.co.uk 7F7AQ16I5,Total Adult Social Care,27.04,Equipment & Furniture,2020-21Aug_PC00046
Sandwell Metropolitan Borough Council,http://www.sandwell.gov.uk/info/200202/performance_and_spending/3233/government_procurement_cards,07-Aug-20,Adult Social Care Health and Wellbeing - Total,CARESHOP,Total Adult Social Care,60,Protective Clothing&Uniforms,2020-21Aug_PC00047
Sandwell Metropolitan Borough Council,http://www.sandwell.gov.uk/info/200202/performance_and_spending/3233/government_procurement_cards,07-Aug-20,Adult Social Care Health and Wellbeing - Total,CARESHOP,Total Adult Social Care,75,Protective Clothing&Uniforms,2020-21Aug_PC00048
Sandwell Metropolitan Borough Council,http://www.sandwell.gov.uk/info/200202/performance_and_spending/3233/government_procurement_cards,07-Aug-20,Adult Social Care Health and Wellbeing - Total,CARESHOP,Total Adult Social Care,70,Protective Clothing&Uniforms,2020-21Aug_PC00049
Sandwell Metropolitan Borough Council,http://www.sandwell.gov.uk/info/200202/performance_and_spending/3233/government_procurement_cards,07-Aug-20,Adult Social Care Health and Wellbeing - Total,CARESHOP,Total Adult Social Care,70,Protective Clothing&Uniforms,2020-21Aug_PC00050
Sandwell Metropolitan Borough Council,http://www.sandwell.gov.uk/info/200202/performance_and_spending/3233/government_procurement_cards,07-Aug-20,Adult Social Care Health and Wellbeing - Total,CARESHOP,Total Adult Social Care,70,Protective Clothing&Uniforms,2020-21Aug_PC00051
Sandwell Metropolitan Borough Council,http://www.sandwell.gov.uk/info/200202/performance_and_spending/3233/government_procurement_cards,07-Aug-20,Adult Social Care Health and Wellbeing - Total,CARESHOP,Total Adult Social Care,495,Protective Clothing&Uniforms,2020-21Aug_PC00052
Sandwell Metropolitan Borough Council,http://www.sandwell.gov.uk/info/200202/performance_and_spending/3233/government_procurement_cards,07-Aug-20,Housing & Communities,PAYPAL  TOKOIN,Neighbourhoods,30.33,Materials & Consumables,2020-21Aug_PC00053
Sandwell Metropolitan Borough Council,http://www.sandwell.gov.uk/info/200202/performance_and_spending/3233/government_procurement_cards,07-Aug-20,Housing & Communities,PAINTINGS FRAMES ETC L,Neighbourhoods,62.84,Materials & Consumables,2020-21Aug_PC00054
Sandwell Metropolitan Borough Council,http://www.sandwell.gov.uk/info/200202/performance_and_spending/3233/government_procurement_cards,07-Aug-20,Childrens Services,HOMEBASE LTD 114,Childrens Services,58.54,R& M - Building Maint&Imp.,2020-21Aug_PC00055
Sandwell Metropolitan Borough Council,http://www.sandwell.gov.uk/info/200202/performance_and_spending/3233/government_procurement_cards,07-Aug-20,Childrens Services,SCREWFIX DIRECT,Childrens Services,21.1,R& M - Building Maint&Imp.,2020-21Aug_PC00056
Sandwell Metropolitan Borough Council,http://www.sandwell.gov.uk/info/200202/performance_and_spending/3233/government_procurement_cards,07-Aug-20,Resources (Inc SIU),Amazon.co.uk Q43LP8E85,Assistant Chief Executive (Excl SIU),14.21,Printing Stationery&Gen Office,2020-21Aug_PC00057
Sandwell Metropolitan Borough Council,http://www.sandwell.gov.uk/info/200202/performance_and_spending/3233/government_procurement_cards,07-Aug-20,Housing & Communities,OFFICE DEPOT UK,Neighbourhoods,2.3,Printing Stationery&Gen Office,2020-21Aug_PC00058
Sandwell Metropolitan Borough Council,http://www.sandwell.gov.uk/info/200202/performance_and_spending/3233/government_procurement_cards,07-Aug-20,Housing & Communities,OFFICE DEPOT UK,Neighbourhoods,175.8,Printing Stationery&Gen Office,2020-21Aug_PC00059
Sandwell Metropolitan Borough Council,http://www.sandwell.gov.uk/info/200202/performance_and_spending/3233/government_procurement_cards,07-Aug-20,Resources (Inc SIU),OFFICE DEPOT UK,Assistant Chief Executive (Excl SIU),48.11,Printing Stationery&Gen Office,2020-21Aug_PC00060
Sandwell Metropolitan Borough Council,http://www.sandwell.gov.uk/info/200202/performance_and_spending/3233/government_procurement_cards,07-Aug-20,Total Housing Revenue Account,WWW.EQUIP4WORK.CO.UK,Total Housing Revenue Account,220,Materials & Consumables,2020-21Aug_PC00061
Sandwell Metropolitan Borough Council,http://www.sandwell.gov.uk/info/200202/performance_and_spending/3233/government_procurement_cards,07-Aug-20,Adult Social Care Health and Wellbeing - Total,AMZNMktplace,Total Adult Social Care,16.03,Materials & Consumables,2020-21Aug_PC00062
Sandwell Metropolitan Borough Council,http://www.sandwell.gov.uk/info/200202/performance_and_spending/3233/government_procurement_cards,07-Aug-20,Adult Social Care Health and Wellbeing - Total,AMZNMktplace,Total Adult Social Care,54.8,Grounds Maint&Improvements,2020-21Aug_PC00063
Sandwell Metropolitan Borough Council,http://www.sandwell.gov.uk/info/200202/performance_and_spending/3233/government_procurement_cards,07-Aug-20,Adult Social Care Health and Wellbeing - Total,ARGOS LTD,Total Adult Social Care,-8.32,Printing Stationery&Gen Office,2020-21Aug_PC00064
Sandwell Metropolitan Borough Council,http://www.sandwell.gov.uk/info/200202/performance_and_spending/3233/government_procurement_cards,07-Aug-20,Adult Social Care Health and Wellbeing - Total,ARGOS LTD,Total Adult Social Care,11.62,Printing Stationery&Gen Office,2020-21Aug_PC00065
Sandwell Metropolitan Borough Council,http://www.sandwell.gov.uk/info/200202/performance_and_spending/3233/government_procurement_cards,07-Aug-20,Resources (Inc SIU),T J MORRIS LTD,Assistant Chief Executive (Excl SIU),5.97,Equipment & Furniture,2020-21Aug_PC00066
Sandwell Metropolitan Borough Council,http://www.sandwell.gov.uk/info/200202/performance_and_spending/3233/government_procurement_cards,07-Aug-20,Adult Social Care Health and Wellbeing - Total,WOSZHOP,Total Adult Social Care,39,Materials & Consumables,2020-21Aug_PC00067
Sandwell Metropolitan Borough Council,http://www.sandwell.gov.uk/info/200202/performance_and_spending/3233/government_procurement_cards,10-Aug-20,Childrens Services,AMZNMktplace,Childrens Services,33.32,Equipment & Furniture,2020-21Aug_PC00068
Sandwell Metropolitan Borough Council,http://www.sandwell.gov.uk/info/200202/performance_and_spending/3233/government_procurement_cards,10-Aug-20,Childrens Services,AMZNMktplace,Childrens Services,17.07,Printing Stationery&Gen Office,2020-21Aug_PC00069
Sandwell Metropolitan Borough Council,http://www.sandwell.gov.uk/info/200202/performance_and_spending/3233/government_procurement_cards,10-Aug-20,Adult Social Care Health and Wellbeing - Total,AMZNMktplace,Total Adult Social Care,103.29,Equipment & Furniture,2020-21Aug_PC00070
Sandwell Metropolitan Borough Council,http://www.sandwell.gov.uk/info/200202/performance_and_spending/3233/government_procurement_cards,10-Aug-20,Total Housing Revenue Account,VERICON SYSTEMS LTD,Total Housing Revenue Account,922.45,Equipment & Furniture,2020-21Aug_PC00071
Sandwell Metropolitan Borough Council,http://www.sandwell.gov.uk/info/200202/performance_and_spending/3233/government_procurement_cards,10-Aug-20,Housing & Communities,AMZNMKTPLACE AMAZON.CO,Neighbourhoods,-26.65,Materials & Consumables,2020-21Aug_PC00072
Sandwell Metropolitan Borough Council,http://www.sandwell.gov.uk/info/200202/performance_and_spending/3233/government_procurement_cards,10-Aug-20,Childrens Services,AMZNMktplace,Childrens Services,72.43,Printing Stationery&Gen Office,2020-21Aug_PC00073
Sandwell Metropolitan Borough Council,http://www.sandwell.gov.uk/info/200202/performance_and_spending/3233/government_procurement_cards,10-Aug-20,Adult Social Care Health and Wellbeing - Total,SAINSBURYS SACAT0558,Total Adult Social Care,8.33,Materials & Consumables,2020-21Aug_PC00074
Sandwell Metropolitan Borough Council,http://www.sandwell.gov.uk/info/200202/performance_and_spending/3233/government_procurement_cards,10-Aug-20,Housing & Communities,CAELIREFRIGERATION,Assistant Chief Executive (Excl SIU),2180,Catering Equipment,2020-21Aug_PC00075
Sandwell Metropolitan Borough Council,http://www.sandwell.gov.uk/info/200202/performance_and_spending/3233/government_procurement_cards,10-Aug-20,Childrens Services,AMZNMktplace,Childrens Services,34.12,Materials & Consumables,2020-21Aug_PC00076
Sandwell Metropolitan Borough Council,http://www.sandwell.gov.uk/info/200202/performance_and_spending/3233/government_procurement_cards,10-Aug-20,Housing & Communities,AMZNMktplace,Neighbourhoods,108.31,Telephones,2020-21Aug_PC00077
Sandwell Metropolitan Borough Council,http://www.sandwell.gov.uk/info/200202/performance_and_spending/3233/government_procurement_cards,10-Aug-20,Adult Social Care Health and Wellbeing - Total,WWW.ARCO.CO.UK,Total Adult Social Care,27.09,Protective Clothing&Uniforms,2020-21Aug_PC00078
Sandwell Metropolitan Borough Council,http://www.sandwell.gov.uk/info/200202/performance_and_spending/3233/government_procurement_cards,10-Aug-20,Housing & Communities,OFFICE DEPOT UK,Neighbourhoods,47.4,Equipment & Furniture,2020-21Aug_PC00079
Sandwell Metropolitan Borough Council,http://www.sandwell.gov.uk/info/200202/performance_and_spending/3233/government_procurement_cards,10-Aug-20,Total Housing Revenue Account,OFFICE DEPOT UK,Total Housing Revenue Account,62.24,Printing Stationery&Gen Office,2020-21Aug_PC00080
Sandwell Metropolitan Borough Council,http://www.sandwell.gov.uk/info/200202/performance_and_spending/3233/government_procurement_cards,10-Aug-20,Adult Social Care Health and Wellbeing - Total,AMZNMKTPLACE AMAZON.CO,Total Adult Social Care,8.31,Materials & Consumables,2020-21Aug_PC00081
Sandwell Metropolitan Borough Council,http://www.sandwell.gov.uk/info/200202/performance_and_spending/3233/government_procurement_cards,11-Aug-20,Childrens Services,Amazon.co.uk YY4P23IK5,Childrens Services,12.07,ICT,2020-21Aug_PC00082
Sandwell Metropolitan Borough Council,http://www.sandwell.gov.uk/info/200202/performance_and_spending/3233/government_procurement_cards,11-Aug-20,Housing & Communities,AMZNMktplace,Neighbourhoods,14.57,Equipment & Furniture,2020-21Aug_PC00083
Sandwell Metropolitan Borough Council,http://www.sandwell.gov.uk/info/200202/performance_and_spending/3233/government_procurement_cards,11-Aug-20,Housing & Communities,AMZNMktplace,Neighbourhoods,12.07,Equipment & Furniture,2020-21Aug_PC00084
Sandwell Metropolitan Borough Council,http://www.sandwell.gov.uk/info/200202/performance_and_spending/3233/government_procurement_cards,11-Aug-20,Childrens Services,AMZNMktplace,Childrens Services,10.82,Printing Stationery&Gen Office,2020-21Aug_PC00085
Sandwell Metropolitan Borough Council,http://www.sandwell.gov.uk/info/200202/performance_and_spending/3233/government_procurement_cards,11-Aug-20,Total Housing Revenue Account,Staffordshire Builders,Total Housing Revenue Account,81.9,Materials & Consumables,2020-21Aug_PC00086
Sandwell Metropolitan Borough Council,http://www.sandwell.gov.uk/info/200202/performance_and_spending/3233/government_procurement_cards,11-Aug-20,Adult Social Care Health and Wellbeing - Total,AMZNMKTPLACE AMAZON.CO,Total Adult Social Care,22.9,Printing Stationery&Gen Office,2020-21Aug_PC00087
Sandwell Metropolitan Borough Council,http://www.sandwell.gov.uk/info/200202/performance_and_spending/3233/government_procurement_cards,11-Aug-20,Childrens Services,AMZNMKTPLACE AMAZON.CO,Childrens Services,118.53,Equipment & Furniture,2020-21Aug_PC00088
Sandwell Metropolitan Borough Council,http://www.sandwell.gov.uk/info/200202/performance_and_spending/3233/government_procurement_cards,11-Aug-20,Adult Social Care Health and Wellbeing - Total,BEACON PET AQUARIUM,Total Adult Social Care,45.22,R& M - Building Maint&Imp.,2020-21Aug_PC00089
Sandwell Metropolitan Borough Council,http://www.sandwell.gov.uk/info/200202/performance_and_spending/3233/government_procurement_cards,11-Aug-20,Adult Social Care Health and Wellbeing - Total,BEACON PET AQUARIUM,Total Adult Social Care,32.5,R& M - Building Maint&Imp.,2020-21Aug_PC00090
Sandwell Metropolitan Borough Council,http://www.sandwell.gov.uk/info/200202/performance_and_spending/3233/government_procurement_cards,12-Aug-20,Housing & Communities,MAPLE FLEET SERVICES,Neighbourhoods,151.8,Fire Service Workshops,2020-21Aug_PC00091
Sandwell Metropolitan Borough Council,http://www.sandwell.gov.uk/info/200202/performance_and_spending/3233/government_procurement_cards,12-Aug-20,Resources (Inc SIU),T J MORRIS LTD,Assistant Chief Executive (Excl SIU),15.8,Equipment & Furniture,2020-21Aug_PC00092
Sandwell Metropolitan Borough Council,http://www.sandwell.gov.uk/info/200202/performance_and_spending/3233/government_procurement_cards,12-Aug-20,Adult Social Care Health and Wellbeing - Total,Amazon.co.uk QL5033HQ5,Total Adult Social Care,24.95,Printing Stationery&Gen Office,2020-21Aug_PC00093
Sandwell Metropolitan Borough Council,http://www.sandwell.gov.uk/info/200202/performance_and_spending/3233/government_procurement_cards,12-Aug-20,Housing & Communities,ZORO UK,Neighbourhoods,19.58,Hygiene Services,2020-21Aug_PC00094
Sandwell Metropolitan Borough Council,http://www.sandwell.gov.uk/info/200202/performance_and_spending/3233/government_procurement_cards,12-Aug-20,Total Housing Revenue Account,OFFICE DEPOT UK,Total Housing Revenue Account,14.51,Printing Stationery&Gen Office,2020-21Aug_PC00095
Sandwell Metropolitan Borough Council,http://www.sandwell.gov.uk/info/200202/performance_and_spending/3233/government_procurement_cards,12-Aug-20,Total Housing Revenue Account,OFFICE DEPOT UK,Total Housing Revenue Account,36.3,Materials & Consumables,2020-21Aug_PC00096
Sandwell Metropolitan Borough Council,http://www.sandwell.gov.uk/info/200202/performance_and_spending/3233/government_procurement_cards,12-Aug-20,Housing & Communities,DRI LENOVO,Neighbourhoods,16.25,Equipment & Furniture,2020-21Aug_PC00097
Sandwell Metropolitan Borough Council,http://www.sandwell.gov.uk/info/200202/performance_and_spending/3233/government_procurement_cards,12-Aug-20,Adult Social Care Health and Wellbeing - Total,RS COMPONENTS,Total Adult Social Care,13.49,Materials & Consumables,2020-21Aug_PC00098
Sandwell Metropolitan Borough Council,http://www.sandwell.gov.uk/info/200202/performance_and_spending/3233/government_procurement_cards,12-Aug-20,Housing & Communities,SP   GRANGE EUROPE LTD,Neighbourhoods,129,Hygiene Services,2020-21Aug_PC00099
Sandwell Metropolitan Borough Council,http://www.sandwell.gov.uk/info/200202/performance_and_spending/3233/government_procurement_cards,12-Aug-20,Adult Social Care Health and Wellbeing - Total,AMZNMKTPLACE AMAZON.CO,Total Adult Social Care,56.6,Equipment & Furniture,2020-21Aug_PC00100
Sandwell Metropolitan Borough Council,http://www.sandwell.gov.uk/info/200202/performance_and_spending/3233/government_procurement_cards,12-Aug-20,Adult Social Care Health and Wellbeing - Total,AMZNMKTPLACE AMAZON.CO,Total Adult Social Care,14.98,Catering Provisions,2020-21Aug_PC00101
Sandwell Metropolitan Borough Council,http://www.sandwell.gov.uk/info/200202/performance_and_spending/3233/government_procurement_cards,12-Aug-20,Adult Social Care Health and Wellbeing - Total,AMZNMktplace,Total Adult Social Care,8.7,Materials & Consumables,2020-21Aug_PC00102
Sandwell Metropolitan Borough Council,http://www.sandwell.gov.uk/info/200202/performance_and_spending/3233/government_procurement_cards,12-Aug-20,Regeneration & Growth,WESTERN POWER DISTRIBU,Regeneration And The Economy,350.87,Energy Costs-Electricity,2020-21Aug_PC00103
Sandwell Metropolitan Borough Council,http://www.sandwell.gov.uk/info/200202/performance_and_spending/3233/government_procurement_cards,12-Aug-20,Childrens Services,SCREWFIX DIRECT,Childrens Services,32.04,R& M - Building Maint&Imp.,2020-21Aug_PC00104
Sandwell Metropolitan Borough Council,http://www.sandwell.gov.uk/info/200202/performance_and_spending/3233/government_procurement_cards,12-Aug-20,Adult Social Care Health and Wellbeing - Total,Amazon Prime DS7PD3P75,Total Adult Social Care,7.99,Materials & Consumables,2020-21Aug_PC00105
Sandwell Metropolitan Borough Council,http://www.sandwell.gov.uk/info/200202/performance_and_spending/3233/government_procurement_cards,12-Aug-20,Adult Social Care Health and Wellbeing - Total,AMZNMktplace,Total Adult Social Care,148.77,Protective Clothing&Uniforms,2020-21Aug_PC00106
Sandwell Metropolitan Borough Council,http://www.sandwell.gov.uk/info/200202/performance_and_spending/3233/government_procurement_cards,12-Aug-20,Total Housing Revenue Account,AMZNMKTPLACE AMAZON.CO,Total Housing Revenue Account,89.91,ICT,2020-21Aug_PC00107
Sandwell Metropolitan Borough Council,http://www.sandwell.gov.uk/info/200202/performance_and_spending/3233/government_procurement_cards,12-Aug-20,Housing & Communities,STAMPIT.CO.UK,Neighbourhoods,273.3,Equipment & Furniture,2020-21Aug_PC00108
Sandwell Metropolitan Borough Council,http://www.sandwell.gov.uk/info/200202/performance_and_spending/3233/government_procurement_cards,12-Aug-20,Childrens Services,DECATHLON UK,Childrens Services,292.55,Equipment & Furniture,2020-21Aug_PC00109
Sandwell Metropolitan Borough Council,http://www.sandwell.gov.uk/info/200202/performance_and_spending/3233/government_procurement_cards,13-Aug-20,Regeneration & Growth,CARVER/WOLVERHAMPTON/L,Regeneration And The Economy,94.25,Materials & Consumables,2020-21Aug_PC00110
Sandwell Metropolitan Borough Council,http://www.sandwell.gov.uk/info/200202/performance_and_spending/3233/government_procurement_cards,13-Aug-20,Childrens Services,Amazon.co.uk WD5Y73G45,Childrens Services,32.5,Printing Stationery&Gen Office,2020-21Aug_PC00111
Sandwell Metropolitan Borough Council,http://www.sandwell.gov.uk/info/200202/performance_and_spending/3233/government_procurement_cards,13-Aug-20,Housing & Communities,TRODAT (UK) LTD,Neighbourhoods,52.9,Printing Stationery&Gen Office,2020-21Aug_PC00112
Sandwell Metropolitan Borough Council,http://www.sandwell.gov.uk/info/200202/performance_and_spending/3233/government_procurement_cards,13-Aug-20,Childrens Services,AMZNMKTPLACE AMAZON.CO,Childrens Services,48.89,Equipment & Furniture,2020-21Aug_PC00113
Sandwell Metropolitan Borough Council,http://www.sandwell.gov.uk/info/200202/performance_and_spending/3233/government_procurement_cards,13-Aug-20,Adult Social Care Health and Wellbeing - Total,AMZNMktplace,Total Adult Social Care,21.48,Equipment & Furniture,2020-21Aug_PC00114
Sandwell Metropolitan Borough Council,http://www.sandwell.gov.uk/info/200202/performance_and_spending/3233/government_procurement_cards,13-Aug-20,Regeneration & Growth,SMS CONNECTIONS,Regeneration And The Economy,1562.14,Energy Costs-Gas,2020-21Aug_PC00115
Sandwell Metropolitan Borough Council,http://www.sandwell.gov.uk/info/200202/performance_and_spending/3233/government_procurement_cards,13-Aug-20,Adult Social Care Health and Wellbeing - Total,PAYPAL  SCREWFIX,Total Adult Social Care,8.32,Materials & Consumables,2020-21Aug_PC00116
Sandwell Metropolitan Borough Council,http://www.sandwell.gov.uk/info/200202/performance_and_spending/3233/government_procurement_cards,13-Aug-20,Housing & Communities,Amazon Prime 0O0HV7R55,Neighbourhoods,6.66,Rent Allowances Local Scheme,2020-21Aug_PC00117
Sandwell Metropolitan Borough Council,http://www.sandwell.gov.uk/info/200202/performance_and_spending/3233/government_procurement_cards,13-Aug-20,Childrens Services,Trainline,Childrens Services,17.15,Public Transport,2020-21Aug_PC00118
Sandwell Metropolitan Borough Council,http://www.sandwell.gov.uk/info/200202/performance_and_spending/3233/government_procurement_cards,13-Aug-20,Childrens Services,OFFICE DEPOT UK,Childrens Services,33.62,Printing Stationery&Gen Office,2020-21Aug_PC00119
Sandwell Metropolitan Borough Council,http://www.sandwell.gov.uk/info/200202/performance_and_spending/3233/government_procurement_cards,13-Aug-20,Total Housing Revenue Account,AMZNMKTPLACE AMAZON.CO,Total Housing Revenue Account,11.65,Equipment & Furniture,2020-21Aug_PC00120
Sandwell Metropolitan Borough Council,http://www.sandwell.gov.uk/info/200202/performance_and_spending/3233/government_procurement_cards,13-Aug-20,Childrens Services,OFFICE DEPOT UK,Childrens Services,22.05,Printing Stationery&Gen Office,2020-21Aug_PC00121
Sandwell Metropolitan Borough Council,http://www.sandwell.gov.uk/info/200202/performance_and_spending/3233/government_procurement_cards,13-Aug-20,Adult Social Care Health and Wellbeing - Total,AMZNMKTPLACE AMAZON.CO,Total Adult Social Care,32.02,Equipment & Furniture,2020-21Aug_PC00122
Sandwell Metropolitan Borough Council,http://www.sandwell.gov.uk/info/200202/performance_and_spending/3233/government_procurement_cards,13-Aug-20,Adult Social Care Health and Wellbeing - Total,AMZNMKTPLACE AMAZON.CO,Total Adult Social Care,4.96,Materials & Consumables,2020-21Aug_PC00123
Sandwell Metropolitan Borough Council,http://www.sandwell.gov.uk/info/200202/performance_and_spending/3233/government_procurement_cards,13-Aug-20,Housing & Communities,Amazon.co.uk IB93H4J55,Neighbourhoods,98.82,Telephones,2020-21Aug_PC00124
Sandwell Metropolitan Borough Council,http://www.sandwell.gov.uk/info/200202/performance_and_spending/3233/government_procurement_cards,14-Aug-20,Adult Social Care Health and Wellbeing - Total,AMZNMktplace,Total Adult Social Care,83.23,Equipment & Furniture,2020-21Aug_PC00125
Sandwell Metropolitan Borough Council,http://www.sandwell.gov.uk/info/200202/performance_and_spending/3233/government_procurement_cards,14-Aug-20,Adult Social Care Health and Wellbeing - Total,AMZNMktplace,Total Adult Social Care,46.63,Catering Provisions,2020-21Aug_PC00126
Sandwell Metropolitan Borough Council,http://www.sandwell.gov.uk/info/200202/performance_and_spending/3233/government_procurement_cards,14-Aug-20,Adult Social Care Health and Wellbeing - Total,AMZNMktplace,Total Adult Social Care,21.55,Equipment & Furniture,2020-21Aug_PC00127
Sandwell Metropolitan Borough Council,http://www.sandwell.gov.uk/info/200202/performance_and_spending/3233/government_procurement_cards,14-Aug-20,Childrens Services,WH SMITH,Childrens Services,7.49,Printing Stationery&Gen Office,2020-21Aug_PC00128
Sandwell Metropolitan Borough Council,http://www.sandwell.gov.uk/info/200202/performance_and_spending/3233/government_procurement_cards,14-Aug-20,Childrens Services,AELP.ORG.UK,Childrens Services,49,Ind. Emp Exp-Staff Dev&Training,2020-21Aug_PC00129
Sandwell Metropolitan Borough Council,http://www.sandwell.gov.uk/info/200202/performance_and_spending/3233/government_procurement_cards,14-Aug-20,Childrens Services,VODAFONE LTD,Childrens Services,17.63,ICT,2020-21Aug_PC00130
Sandwell Metropolitan Borough Council,http://www.sandwell.gov.uk/info/200202/performance_and_spending/3233/government_procurement_cards,14-Aug-20,Childrens Services,AELP.ORG.UK,Childrens Services,100,Ind. Emp Exp-Staff Dev&Training,2020-21Aug_PC00131
Sandwell Metropolitan Borough Council,http://www.sandwell.gov.uk/info/200202/performance_and_spending/3233/government_procurement_cards,14-Aug-20,Adult Social Care Health and Wellbeing - Total,AMZ Amazon.co.uk,Total Adult Social Care,-23.72,Equipment & Furniture,2020-21Aug_PC00132
Sandwell Metropolitan Borough Council,http://www.sandwell.gov.uk/info/200202/performance_and_spending/3233/government_procurement_cards,14-Aug-20,Childrens Services,Spotify UK,Childrens Services,8.32,Licences,2020-21Aug_PC00133
Sandwell Metropolitan Borough Council,http://www.sandwell.gov.uk/info/200202/performance_and_spending/3233/government_procurement_cards,14-Aug-20,Regeneration & Growth,Amazon.co.uk BP2UB1EQ5,Regeneration And The Economy,4.17,Printing Stationery&Gen Office,2020-21Aug_PC00134
Sandwell Metropolitan Borough Council,http://www.sandwell.gov.uk/info/200202/performance_and_spending/3233/government_procurement_cards,14-Aug-20,Housing & Communities,FACEBK H8D9BT6P32,Neighbourhoods,7.5,Ind. Emp Exp-Advertising,2020-21Aug_PC00135
Sandwell Metropolitan Borough Council,http://www.sandwell.gov.uk/info/200202/performance_and_spending/3233/government_procurement_cards,14-Aug-20,Adult Social Care Health and Wellbeing - Total,OFFICE DEPOT UK,Total Adult Social Care,159.52,Printing Stationery&Gen Office,2020-21Aug_PC00136
Sandwell Metropolitan Borough Council,http://www.sandwell.gov.uk/info/200202/performance_and_spending/3233/government_procurement_cards,14-Aug-20,Childrens Services,Amazon.co.uk OW7O801P5,Childrens Services,99.99,Telephones,2020-21Aug_PC00137
Sandwell Metropolitan Borough Council,http://www.sandwell.gov.uk/info/200202/performance_and_spending/3233/government_procurement_cards,14-Aug-20,Regeneration & Growth,AMZNMktplace,Regeneration And The Economy,7.13,Materials & Consumables,2020-21Aug_PC00138
Sandwell Metropolitan Borough Council,http://www.sandwell.gov.uk/info/200202/performance_and_spending/3233/government_procurement_cards,17-Aug-20,Regeneration & Growth,AMZNMktplace,Regeneration And The Economy,11.66,Materials & Consumables,2020-21Aug_PC00139
Sandwell Metropolitan Borough Council,http://www.sandwell.gov.uk/info/200202/performance_and_spending/3233/government_procurement_cards,17-Aug-20,Childrens Services,AMZNMktplace,Childrens Services,17.45,Printing Stationery&Gen Office,2020-21Aug_PC00140
Sandwell Metropolitan Borough Council,http://www.sandwell.gov.uk/info/200202/performance_and_spending/3233/government_procurement_cards,17-Aug-20,Regeneration & Growth,Amazon.co.uk K20Q882G5,Regeneration And The Economy,124.99,Equipment & Furniture,2020-21Aug_PC00141
Sandwell Metropolitan Borough Council,http://www.sandwell.gov.uk/info/200202/performance_and_spending/3233/government_procurement_cards,17-Aug-20,Housing & Communities,KINGFISHERDIRECT,Neighbourhoods,128.2,Materials & Consumables,2020-21Aug_PC00142
Sandwell Metropolitan Borough Council,http://www.sandwell.gov.uk/info/200202/performance_and_spending/3233/government_procurement_cards,17-Aug-20,Housing & Communities,AMZNMKTPLACE AMAZON.CO,Neighbourhoods,16.65,Printing Stationery&Gen Office,2020-21Aug_PC00143
Sandwell Metropolitan Borough Council,http://www.sandwell.gov.uk/info/200202/performance_and_spending/3233/government_procurement_cards,17-Aug-20,Adult Social Care Health and Wellbeing - Total,OFFICE DEPOT UK,Total Adult Social Care,39.36,Printing Stationery&Gen Office,2020-21Aug_PC00144
Sandwell Metropolitan Borough Council,http://www.sandwell.gov.uk/info/200202/performance_and_spending/3233/government_procurement_cards,17-Aug-20,Regeneration & Growth,AMZNMktplace,Regeneration And The Economy,23.87,Materials & Consumables,2020-21Aug_PC00145
Sandwell Metropolitan Borough Council,http://www.sandwell.gov.uk/info/200202/performance_and_spending/3233/government_procurement_cards,17-Aug-20,Total Housing Revenue Account,HOLIDAY INNS,Total Housing Revenue Account,48.33,Tenants Expenses,2020-21Aug_PC00146
Sandwell Metropolitan Borough Council,http://www.sandwell.gov.uk/info/200202/performance_and_spending/3233/government_procurement_cards,17-Aug-20,Adult Social Care Health and Wellbeing - Total,PENTLAND WHOLESALE LTD,Total Adult Social Care,35.98,Fixtures & Fittings,2020-21Aug_PC00147
Sandwell Metropolitan Borough Council,http://www.sandwell.gov.uk/info/200202/performance_and_spending/3233/government_procurement_cards,17-Aug-20,Childrens Services,AMZNMktplace,Childrens Services,29.9,Printing Stationery&Gen Office,2020-21Aug_PC00148
Sandwell Metropolitan Borough Council,http://www.sandwell.gov.uk/info/200202/performance_and_spending/3233/government_procurement_cards,17-Aug-20,Adult Social Care Health and Wellbeing - Total,AMZNMKTPLACE AMAZON.CO,Total Adult Social Care,12.95,Printing Stationery&Gen Office,2020-21Aug_PC00149
Sandwell Metropolitan Borough Council,http://www.sandwell.gov.uk/info/200202/performance_and_spending/3233/government_procurement_cards,17-Aug-20,Adult Social Care Health and Wellbeing - Total,SAINSBURYS 0558,Total Adult Social Care,5,Materials & Consumables,2020-21Aug_PC00150
Sandwell Metropolitan Borough Council,http://www.sandwell.gov.uk/info/200202/performance_and_spending/3233/government_procurement_cards,17-Aug-20,Adult Social Care Health and Wellbeing - Total,TIMPSON LTD,Total Adult Social Care,17.5,Materials & Consumables,2020-21Aug_PC00151
Sandwell Metropolitan Borough Council,http://www.sandwell.gov.uk/info/200202/performance_and_spending/3233/government_procurement_cards,17-Aug-20,Adult Social Care Health and Wellbeing - Total,WOSZHOP,Total Adult Social Care,-35,Materials & Consumables,2020-21Aug_PC00152
Sandwell Metropolitan Borough Council,http://www.sandwell.gov.uk/info/200202/performance_and_spending/3233/government_procurement_cards,17-Aug-20,Childrens Services,AMZNMktplace,Childrens Services,215.34,Equipment & Furniture,2020-21Aug_PC00153
Sandwell Metropolitan Borough Council,http://www.sandwell.gov.uk/info/200202/performance_and_spending/3233/government_procurement_cards,17-Aug-20,Regeneration & Growth,FIRE GLASS UK LTD,Regeneration And The Economy,1409,Ind. Emp Exp-Staff Dev&Training,2020-21Aug_PC00154
Sandwell Metropolitan Borough Council,http://www.sandwell.gov.uk/info/200202/performance_and_spending/3233/government_procurement_cards,17-Aug-20,Adult Social Care Health and Wellbeing - Total,XMA LTD,Total Adult Social Care,109.79,ICT,2020-21Aug_PC00155
Sandwell Metropolitan Borough Council,http://www.sandwell.gov.uk/info/200202/performance_and_spending/3233/government_procurement_cards,17-Aug-20,Childrens Services,MYHERMES.CO.UK,Childrens Services,14.7,"Postages, Carriage & Courier Services",2020-21Aug_PC00156
Sandwell Metropolitan Borough Council,http://www.sandwell.gov.uk/info/200202/performance_and_spending/3233/government_procurement_cards,17-Aug-20,Housing & Communities,Amazon.co.uk 9D7P33NJ5,Neighbourhoods,33.1,Materials & Consumables,2020-21Aug_PC00157
Sandwell Metropolitan Borough Council,http://www.sandwell.gov.uk/info/200202/performance_and_spending/3233/government_procurement_cards,17-Aug-20,Adult Social Care Health and Wellbeing - Total,PAYPAL  DRI NOKIA.COM-,Total Adult Social Care,108.32,Equipment & Furniture,2020-21Aug_PC00158
Sandwell Metropolitan Borough Council,http://www.sandwell.gov.uk/info/200202/performance_and_spending/3233/government_procurement_cards,17-Aug-20,Adult Social Care Health and Wellbeing - Total,AMZNMktplace,Total Adult Social Care,3.32,Materials & Consumables,2020-21Aug_PC00159
Sandwell Metropolitan Borough Council,http://www.sandwell.gov.uk/info/200202/performance_and_spending/3233/government_procurement_cards,17-Aug-20,Adult Social Care Health and Wellbeing - Total,PAYPAL  SCREWFIX,Total Adult Social Care,32.47,Equipment & Furniture,2020-21Aug_PC00160
Sandwell Metropolitan Borough Council,http://www.sandwell.gov.uk/info/200202/performance_and_spending/3233/government_procurement_cards,17-Aug-20,Resources (Inc SIU),AMZNMktplace,Assistant Chief Executive (Excl SIU),20.98,Printing Stationery&Gen Office,2020-21Aug_PC00161
Sandwell Metropolitan Borough Council,http://www.sandwell.gov.uk/info/200202/performance_and_spending/3233/government_procurement_cards,17-Aug-20,Adult Social Care Health and Wellbeing - Total,OFFICE DEPOT UK,Total Adult Social Care,29.97,Printing Stationery&Gen Office,2020-21Aug_PC00162
Sandwell Metropolitan Borough Council,http://www.sandwell.gov.uk/info/200202/performance_and_spending/3233/government_procurement_cards,17-Aug-20,Regeneration & Growth,AMZNMktplace,Regeneration And The Economy,17.35,Printing Stationery&Gen Office,2020-21Aug_PC00163
Sandwell Metropolitan Borough Council,http://www.sandwell.gov.uk/info/200202/performance_and_spending/3233/government_procurement_cards,17-Aug-20,Total Housing Revenue Account,WWW.KANE.CO.UK,Total Housing Revenue Account,182.75,Equipment & Furniture,2020-21Aug_PC00164
Sandwell Metropolitan Borough Council,http://www.sandwell.gov.uk/info/200202/performance_and_spending/3233/government_procurement_cards,18-Aug-20,Childrens Services,AMZNMktplace,Childrens Services,37.49,Printing Stationery&Gen Office,2020-21Aug_PC00165
Sandwell Metropolitan Borough Council,http://www.sandwell.gov.uk/info/200202/performance_and_spending/3233/government_procurement_cards,18-Aug-20,Housing & Communities,Amazon.co.uk AZ0WA8PM5,Neighbourhoods,30.11,Materials & Consumables,2020-21Aug_PC00166
Sandwell Metropolitan Borough Council,http://www.sandwell.gov.uk/info/200202/performance_and_spending/3233/government_procurement_cards,18-Aug-20,Housing & Communities,AMZNMktplace,Neighbourhoods,24.96,Materials & Consumables,2020-21Aug_PC00167
Sandwell Metropolitan Borough Council,http://www.sandwell.gov.uk/info/200202/performance_and_spending/3233/government_procurement_cards,18-Aug-20,Total Housing Revenue Account,Amazon.co.uk GK16H5LE5,Total Housing Revenue Account,211.65,Telephones,2020-21Aug_PC00168
Sandwell Metropolitan Borough Council,http://www.sandwell.gov.uk/info/200202/performance_and_spending/3233/government_procurement_cards,18-Aug-20,Childrens Services,B & Q 1169,Childrens Services,91.67,R& M - Building Maint&Imp.,2020-21Aug_PC00169
Sandwell Metropolitan Borough Council,http://www.sandwell.gov.uk/info/200202/performance_and_spending/3233/government_procurement_cards,18-Aug-20,Adult Social Care Health and Wellbeing - Total,AMZNMKTPLACE AMAZON.CO,Total Adult Social Care,24.97,Equipment & Furniture,2020-21Aug_PC00170
Sandwell Metropolitan Borough Council,http://www.sandwell.gov.uk/info/200202/performance_and_spending/3233/government_procurement_cards,18-Aug-20,Childrens Services,OFFICE DEPOT UK,Childrens Services,3.6,Printing Stationery&Gen Office,2020-21Aug_PC00171
Sandwell Metropolitan Borough Council,http://www.sandwell.gov.uk/info/200202/performance_and_spending/3233/government_procurement_cards,18-Aug-20,Childrens Services,WWW.ALBERT-HARRISON.CO,Childrens Services,-12.16,Materials & Consumables,2020-21Aug_PC00172
Sandwell Metropolitan Borough Council,http://www.sandwell.gov.uk/info/200202/performance_and_spending/3233/government_procurement_cards,18-Aug-20,Regeneration & Growth,WWW.CSCS.UK.COM,Regeneration And The Economy,30,Ind. Emp Exp-Staff Dev&Training,2020-21Aug_PC00173
Sandwell Metropolitan Borough Council,http://www.sandwell.gov.uk/info/200202/performance_and_spending/3233/government_procurement_cards,18-Aug-20,Housing & Communities,AMZNMktplace,Neighbourhoods,33.85,Materials & Consumables,2020-21Aug_PC00174
Sandwell Metropolitan Borough Council,http://www.sandwell.gov.uk/info/200202/performance_and_spending/3233/government_procurement_cards,19-Aug-20,Housing & Communities,Amazon.co.uk 5Z1H074B5,Neighbourhoods,30.11,Materials & Consumables,2020-21Aug_PC00175
Sandwell Metropolitan Borough Council,http://www.sandwell.gov.uk/info/200202/performance_and_spending/3233/government_procurement_cards,19-Aug-20,Childrens Services,Amazon.co.uk B519N58P5,Childrens Services,12.06,Printing Stationery&Gen Office,2020-21Aug_PC00176
Sandwell Metropolitan Borough Council,http://www.sandwell.gov.uk/info/200202/performance_and_spending/3233/government_procurement_cards,19-Aug-20,Childrens Services,Amazon.co.uk RB9FS97R5,Childrens Services,12.06,Printing Stationery&Gen Office,2020-21Aug_PC00177
Sandwell Metropolitan Borough Council,http://www.sandwell.gov.uk/info/200202/performance_and_spending/3233/government_procurement_cards,19-Aug-20,Adult Social Care Health and Wellbeing - Total,AMZNMktplace,Total Adult Social Care,25.98,Equipment & Furniture,2020-21Aug_PC00178
Sandwell Metropolitan Borough Council,http://www.sandwell.gov.uk/info/200202/performance_and_spending/3233/government_procurement_cards,19-Aug-20,Adult Social Care Health and Wellbeing - Total,Amazon.co.uk O700616B5,Total Adult Social Care,134.97,ICT,2020-21Aug_PC00179
Sandwell Metropolitan Borough Council,http://www.sandwell.gov.uk/info/200202/performance_and_spending/3233/government_procurement_cards,19-Aug-20,Resources (Inc SIU),OFFICE DEPOT UK,Assistant Chief Executive (Excl SIU),7.08,Printing Stationery&Gen Office,2020-21Aug_PC00180
Sandwell Metropolitan Borough Council,http://www.sandwell.gov.uk/info/200202/performance_and_spending/3233/government_procurement_cards,19-Aug-20,Housing & Communities,OFFICE DEPOT UK,Neighbourhoods,111.42,Equipment & Furniture,2020-21Aug_PC00181
Sandwell Metropolitan Borough Council,http://www.sandwell.gov.uk/info/200202/performance_and_spending/3233/government_procurement_cards,19-Aug-20,Childrens Services,AMZNMktplace,Childrens Services,19.16,Printing Stationery&Gen Office,2020-21Aug_PC00182
Sandwell Metropolitan Borough Council,http://www.sandwell.gov.uk/info/200202/performance_and_spending/3233/government_procurement_cards,19-Aug-20,Housing & Communities,AMZNMktplace,Neighbourhoods,36.89,Materials & Consumables,2020-21Aug_PC00183
Sandwell Metropolitan Borough Council,http://www.sandwell.gov.uk/info/200202/performance_and_spending/3233/government_procurement_cards,19-Aug-20,Housing & Communities,POST OFFICE COUNTER,Neighbourhoods,8.8,"Postages, Carriage & Courier Services",2020-21Aug_PC00184
Sandwell Metropolitan Borough Council,http://www.sandwell.gov.uk/info/200202/performance_and_spending/3233/government_procurement_cards,19-Aug-20,Adult Social Care Health and Wellbeing - Total,PHOENIX LTD,Total Adult Social Care,999.99,Ind. Emp Exp-Staff Dev&Training,2020-21Aug_PC00185
Sandwell Metropolitan Borough Council,http://www.sandwell.gov.uk/info/200202/performance_and_spending/3233/government_procurement_cards,19-Aug-20,Total Housing Revenue Account,XMA LTD,Total Housing Revenue Account,139.54,Telephones,2020-21Aug_PC00186
Sandwell Metropolitan Borough Council,http://www.sandwell.gov.uk/info/200202/performance_and_spending/3233/government_procurement_cards,19-Aug-20,Total Housing Revenue Account,BOOTS HEARING CARE LTD,Total Housing Revenue Account,1000,Equipment & Furniture,2020-21Aug_PC00187
Sandwell Metropolitan Borough Council,http://www.sandwell.gov.uk/info/200202/performance_and_spending/3233/government_procurement_cards,19-Aug-20,Adult Social Care Health and Wellbeing - Total,AMZNMktplace,Total Adult Social Care,19.93,Equipment & Furniture,2020-21Aug_PC00188
Sandwell Metropolitan Borough Council,http://www.sandwell.gov.uk/info/200202/performance_and_spending/3233/government_procurement_cards,19-Aug-20,Adult Social Care Health and Wellbeing - Total,AMZ Amazon US,Total Adult Social Care,-3.72,Equipment & Furniture,2020-21Aug_PC00189
Sandwell Metropolitan Borough Council,http://www.sandwell.gov.uk/info/200202/performance_and_spending/3233/government_procurement_cards,20-Aug-20,Adult Social Care Health and Wellbeing - Total,AMZNMKTPLACE AMAZON.CO,Total Adult Social Care,21.48,Equipment & Furniture,2020-21Aug_PC00190
Sandwell Metropolitan Borough Council,http://www.sandwell.gov.uk/info/200202/performance_and_spending/3233/government_procurement_cards,20-Aug-20,Childrens Services,HSE,Childrens Services,715,Licences,2020-21Aug_PC00191
Sandwell Metropolitan Borough Council,http://www.sandwell.gov.uk/info/200202/performance_and_spending/3233/government_procurement_cards,20-Aug-20,Housing & Communities,WESTMINSTER INSIGHT,Neighbourhoods,225,Ind. Emp Exp-Staff Dev&Training,2020-21Aug_PC00192
Sandwell Metropolitan Borough Council,http://www.sandwell.gov.uk/info/200202/performance_and_spending/3233/government_procurement_cards,20-Aug-20,Adult Social Care Health and Wellbeing - Total,OFFICE DEPOT UK,Total Adult Social Care,19.45,Printing Stationery&Gen Office,2020-21Aug_PC00193
Sandwell Metropolitan Borough Council,http://www.sandwell.gov.uk/info/200202/performance_and_spending/3233/government_procurement_cards,20-Aug-20,Childrens Services,AMZNMKTPLACE AMAZON.CO,Childrens Services,103.33,Telephones,2020-21Aug_PC00194
Sandwell Metropolitan Borough Council,http://www.sandwell.gov.uk/info/200202/performance_and_spending/3233/government_procurement_cards,20-Aug-20,Childrens Services,SCREWFIX DIRECT,Childrens Services,11.64,R& M - Building Maint&Imp.,2020-21Aug_PC00195
Sandwell Metropolitan Borough Council,http://www.sandwell.gov.uk/info/200202/performance_and_spending/3233/government_procurement_cards,20-Aug-20,Housing & Communities,AMZNMKTPLACE AMAZON.CO,Neighbourhoods,104.16,Telephones,2020-21Aug_PC00196
Sandwell Metropolitan Borough Council,http://www.sandwell.gov.uk/info/200202/performance_and_spending/3233/government_procurement_cards,20-Aug-20,Resources (Inc SIU),AMZNMktplace,Assistant Chief Executive (Excl SIU),29.91,Printing Stationery&Gen Office,2020-21Aug_PC00197
Sandwell Metropolitan Borough Council,http://www.sandwell.gov.uk/info/200202/performance_and_spending/3233/government_procurement_cards,20-Aug-20,Childrens Services,AMZNMktplace,Childrens Services,13.45,ICT,2020-21Aug_PC00198
Sandwell Metropolitan Borough Council,http://www.sandwell.gov.uk/info/200202/performance_and_spending/3233/government_procurement_cards,20-Aug-20,Childrens Services,AMZNMktplace,Childrens Services,8.32,ICT,2020-21Aug_PC00199
Sandwell Metropolitan Borough Council,http://www.sandwell.gov.uk/info/200202/performance_and_spending/3233/government_procurement_cards,20-Aug-20,Childrens Services,AMZNMKTPLACE AMAZON.CO,Childrens Services,-25.06,Equipment & Furniture,2020-21Aug_PC00200
Sandwell Metropolitan Borough Council,http://www.sandwell.gov.uk/info/200202/performance_and_spending/3233/government_procurement_cards,20-Aug-20,Childrens Services,Dropbox,Childrens Services,36,Licences,2020-21Aug_PC00201
Sandwell Metropolitan Borough Council,http://www.sandwell.gov.uk/info/200202/performance_and_spending/3233/government_procurement_cards,20-Aug-20,Housing & Communities,AROMAPRIME,Neighbourhoods,220.68,Materials & Consumables,2020-21Aug_PC00202
Sandwell Metropolitan Borough Council,http://www.sandwell.gov.uk/info/200202/performance_and_spending/3233/government_procurement_cards,20-Aug-20,Childrens Services,WWW.PARKINGEYE.CO.UK,Childrens Services,60,Car Parking,2020-21Aug_PC00203
Sandwell Metropolitan Borough Council,http://www.sandwell.gov.uk/info/200202/performance_and_spending/3233/government_procurement_cards,21-Aug-20,Childrens Services,AMZNMKTPLACE AMAZON.CO,Childrens Services,29.99,Printing Stationery&Gen Office,2020-21Aug_PC00204
Sandwell Metropolitan Borough Council,http://www.sandwell.gov.uk/info/200202/performance_and_spending/3233/government_procurement_cards,21-Aug-20,Adult Social Care Health and Wellbeing - Total,Amazon.co.uk 0D7AZ8QL5,Total Adult Social Care,17.67,Printing Stationery&Gen Office,2020-21Aug_PC00205
Sandwell Metropolitan Borough Council,http://www.sandwell.gov.uk/info/200202/performance_and_spending/3233/government_procurement_cards,21-Aug-20,Adult Social Care Health and Wellbeing - Total,AMZNMktplace,Total Adult Social Care,220.77,Telephones,2020-21Aug_PC00206
Sandwell Metropolitan Borough Council,http://www.sandwell.gov.uk/info/200202/performance_and_spending/3233/government_procurement_cards,21-Aug-20,Childrens Services,Amazon.co.uk 2T4593QZ5,Childrens Services,12.06,Printing Stationery&Gen Office,2020-21Aug_PC00207
Sandwell Metropolitan Borough Council,http://www.sandwell.gov.uk/info/200202/performance_and_spending/3233/government_procurement_cards,21-Aug-20,Housing & Communities,Amazon Prime,Neighbourhoods,-6.66,Rent Allowances Local Scheme,2020-21Aug_PC00208
Sandwell Metropolitan Borough Council,http://www.sandwell.gov.uk/info/200202/performance_and_spending/3233/government_procurement_cards,21-Aug-20,Resources (Inc SIU),AMZNMKTPLACE AMAZON.CO,Assistant Chief Executive (Excl SIU),79.92,Printing Stationery&Gen Office,2020-21Aug_PC00209
Sandwell Metropolitan Borough Council,http://www.sandwell.gov.uk/info/200202/performance_and_spending/3233/government_procurement_cards,21-Aug-20,Childrens Services,AMZNMktplace,Childrens Services,27.93,Printing Stationery&Gen Office,2020-21Aug_PC00210
Sandwell Metropolitan Borough Council,http://www.sandwell.gov.uk/info/200202/performance_and_spending/3233/government_procurement_cards,21-Aug-20,Resources (Inc SIU),EB  ONLINE TRAINING CH,Assistant Chief Executive (Excl SIU),70,Conference Expenses,2020-21Aug_PC00211
Sandwell Metropolitan Borough Council,http://www.sandwell.gov.uk/info/200202/performance_and_spending/3233/government_procurement_cards,21-Aug-20,Resources (Inc SIU),EB  ONLINE TRAINING CH,Assistant Chief Executive (Excl SIU),70,Conference Expenses,2020-21Aug_PC00212
Sandwell Metropolitan Borough Council,http://www.sandwell.gov.uk/info/200202/performance_and_spending/3233/government_procurement_cards,21-Aug-20,Resources (Inc SIU),EB  ONLINE TRAINING PA,Assistant Chief Executive (Excl SIU),70,Conference Expenses,2020-21Aug_PC00213
Sandwell Metropolitan Borough Council,http://www.sandwell.gov.uk/info/200202/performance_and_spending/3233/government_procurement_cards,21-Aug-20,Resources (Inc SIU),EB  ONLINE TRAINING PR,Assistant Chief Executive (Excl SIU),95,Conference Expenses,2020-21Aug_PC00214
Sandwell Metropolitan Borough Council,http://www.sandwell.gov.uk/info/200202/performance_and_spending/3233/government_procurement_cards,21-Aug-20,Resources (Inc SIU),EB  ONLINE TRAINING PR,Assistant Chief Executive (Excl SIU),95,Conference Expenses,2020-21Aug_PC00215
Sandwell Metropolitan Borough Council,http://www.sandwell.gov.uk/info/200202/performance_and_spending/3233/government_procurement_cards,24-Aug-20,Adult Social Care Health and Wellbeing - Total,TRAVELODGE,Total Adult Social Care,110.62,Rent Allowances Local Scheme,2020-21Aug_PC00216
Sandwell Metropolitan Borough Council,http://www.sandwell.gov.uk/info/200202/performance_and_spending/3233/government_procurement_cards,24-Aug-20,Adult Social Care Health and Wellbeing - Total,COBDEN HOTEL LIMITED,Total Adult Social Care,291.2,Rent Allowances Local Scheme,2020-21Aug_PC00217
Sandwell Metropolitan Borough Council,http://www.sandwell.gov.uk/info/200202/performance_and_spending/3233/government_procurement_cards,24-Aug-20,Adult Social Care Health and Wellbeing - Total,Amazon.co.uk D16DY8G15,Total Adult Social Care,19.99,Materials & Consumables,2020-21Aug_PC00218
Sandwell Metropolitan Borough Council,http://www.sandwell.gov.uk/info/200202/performance_and_spending/3233/government_procurement_cards,24-Aug-20,Resources (Inc SIU),Amazon.co.uk UK3R34RZ5,Assistant Chief Executive (Excl SIU),55.62,Materials & Consumables,2020-21Aug_PC00219
Sandwell Metropolitan Borough Council,http://www.sandwell.gov.uk/info/200202/performance_and_spending/3233/government_procurement_cards,24-Aug-20,Resources (Inc SIU),AMZNMktplace,Assistant Chief Executive (Excl SIU),22.49,Materials & Consumables,2020-21Aug_PC00220
Sandwell Metropolitan Borough Council,http://www.sandwell.gov.uk/info/200202/performance_and_spending/3233/government_procurement_cards,24-Aug-20,Resources (Inc SIU),Amazon Prime 468145775,Assistant Chief Executive (Excl SIU),6.66,Subscriptions,2020-21Aug_PC00221
Sandwell Metropolitan Borough Council,http://www.sandwell.gov.uk/info/200202/performance_and_spending/3233/government_procurement_cards,24-Aug-20,Housing & Communities,OFFICE DEPOT UK,Neighbourhoods,67.26,Printing Stationery&Gen Office,2020-21Aug_PC00222
Sandwell Metropolitan Borough Council,http://www.sandwell.gov.uk/info/200202/performance_and_spending/3233/government_procurement_cards,24-Aug-20,Housing & Communities,TRAVELODGE,Neighbourhoods,35.68,Rents,2020-21Aug_PC00223
Sandwell Metropolitan Borough Council,http://www.sandwell.gov.uk/info/200202/performance_and_spending/3233/government_procurement_cards,24-Aug-20,Childrens Services,FH  RIVER SEVERN CANOE,Childrens Services,59.36,Materials & Consumables,2020-21Aug_PC00224
Sandwell Metropolitan Borough Council,http://www.sandwell.gov.uk/info/200202/performance_and_spending/3233/government_procurement_cards,24-Aug-20,Childrens Services,THE CALIBRATION CENTRE,Childrens Services,55,Grounds Maint&Improvements,2020-21Aug_PC00225
Sandwell Metropolitan Borough Council,http://www.sandwell.gov.uk/info/200202/performance_and_spending/3233/government_procurement_cards,24-Aug-20,Resources (Inc SIU),Amazon.co.uk 9Y8LC3OS5,Assistant Chief Executive (Excl SIU),31.99,Materials & Consumables,2020-21Aug_PC00226
Sandwell Metropolitan Borough Council,http://www.sandwell.gov.uk/info/200202/performance_and_spending/3233/government_procurement_cards,24-Aug-20,Housing & Communities,MAISEMORE APIARIES,Neighbourhoods,17.63,Materials & Consumables,2020-21Aug_PC00227
Sandwell Metropolitan Borough Council,http://www.sandwell.gov.uk/info/200202/performance_and_spending/3233/government_procurement_cards,24-Aug-20,Adult Social Care Health and Wellbeing - Total,XMA LTD,Total Adult Social Care,105.85,ICT,2020-21Aug_PC00228
Sandwell Metropolitan Borough Council,http://www.sandwell.gov.uk/info/200202/performance_and_spending/3233/government_procurement_cards,24-Aug-20,Resources (Inc SIU),AMZNMktplace,Assistant Chief Executive (Excl SIU),19.98,Printing Stationery&Gen Office,2020-21Aug_PC00229
Sandwell Metropolitan Borough Council,http://www.sandwell.gov.uk/info/200202/performance_and_spending/3233/government_procurement_cards,25-Aug-20,Housing & Communities,TRAVELODGE,Neighbourhoods,132.56,Rents,2020-21Aug_PC00230
Sandwell Metropolitan Borough Council,http://www.sandwell.gov.uk/info/200202/performance_and_spending/3233/government_procurement_cards,25-Aug-20,Resources (Inc SIU),B&M 022 - WEDNESBURY,Assistant Chief Executive (Excl SIU),9.97,Printing Stationery&Gen Office,2020-21Aug_PC00231
Sandwell Metropolitan Borough Council,http://www.sandwell.gov.uk/info/200202/performance_and_spending/3233/government_procurement_cards,25-Aug-20,Resources (Inc SIU),Amazon.co.uk TR9LF4KR5,Assistant Chief Executive (Excl SIU),31.99,Materials & Consumables,2020-21Aug_PC00232
Sandwell Metropolitan Borough Council,http://www.sandwell.gov.uk/info/200202/performance_and_spending/3233/government_procurement_cards,25-Aug-20,Housing & Communities,WWW.PCWB.COM,Neighbourhoods,91.97,Printing Stationery&Gen Office,2020-21Aug_PC00233
Sandwell Metropolitan Borough Council,http://www.sandwell.gov.uk/info/200202/performance_and_spending/3233/government_procurement_cards,25-Aug-20,Housing & Communities,TRAVELODGE,Neighbourhoods,121.52,Rents,2020-21Aug_PC00234
Sandwell Metropolitan Borough Council,http://www.sandwell.gov.uk/info/200202/performance_and_spending/3233/government_procurement_cards,25-Aug-20,Housing & Communities,SAFETYBUYER UK,Neighbourhoods,62.93,Grounds Maint&Improvements,2020-21Aug_PC00235
Sandwell Metropolitan Borough Council,http://www.sandwell.gov.uk/info/200202/performance_and_spending/3233/government_procurement_cards,25-Aug-20,Adult Social Care Health and Wellbeing - Total,COBDEN HOTEL LIMITED,Total Adult Social Care,639,Rent Allowances Local Scheme,2020-21Aug_PC00236
Sandwell Metropolitan Borough Council,http://www.sandwell.gov.uk/info/200202/performance_and_spending/3233/government_procurement_cards,25-Aug-20,Housing & Communities,SCREWFIX DIRECT,Neighbourhoods,95.2,R& M - Building Maint&Imp.,2020-21Aug_PC00237
Sandwell Metropolitan Borough Council,http://www.sandwell.gov.uk/info/200202/performance_and_spending/3233/government_procurement_cards,25-Aug-20,Adult Social Care Health and Wellbeing - Total,AMZNMktplace,Total Adult Social Care,29.16,ICT,2020-21Aug_PC00238
Sandwell Metropolitan Borough Council,http://www.sandwell.gov.uk/info/200202/performance_and_spending/3233/government_procurement_cards,25-Aug-20,Housing & Communities,Amazon.co.uk 7F4MI4WW5,Neighbourhoods,1.99,Fixtures & Fittings,2020-21Aug_PC00239
Sandwell Metropolitan Borough Council,http://www.sandwell.gov.uk/info/200202/performance_and_spending/3233/government_procurement_cards,25-Aug-20,Resources (Inc SIU),AMZNMKTPLACE AMAZON.CO,Assistant Chief Executive (Excl SIU),49.99,Materials & Consumables,2020-21Aug_PC00240
Sandwell Metropolitan Borough Council,http://www.sandwell.gov.uk/info/200202/performance_and_spending/3233/government_procurement_cards,25-Aug-20,Housing & Communities,TRAVELODGE,Neighbourhoods,70.53,Rents,2020-21Aug_PC00241
Sandwell Metropolitan Borough Council,http://www.sandwell.gov.uk/info/200202/performance_and_spending/3233/government_procurement_cards,25-Aug-20,Housing & Communities,TRAVELODGE,Neighbourhoods,22.08,Rents,2020-21Aug_PC00242
Sandwell Metropolitan Borough Council,http://www.sandwell.gov.uk/info/200202/performance_and_spending/3233/government_procurement_cards,25-Aug-20,Housing & Communities,THE PPE ONLINE SHOP,Neighbourhoods,2260,R& M - Building Maint&Imp.,2020-21Aug_PC00243
Sandwell Metropolitan Borough Council,http://www.sandwell.gov.uk/info/200202/performance_and_spending/3233/government_procurement_cards,25-Aug-20,Housing & Communities,TRAVELODGE,Neighbourhoods,226.89,Rents,2020-21Aug_PC00244
Sandwell Metropolitan Borough Council,http://www.sandwell.gov.uk/info/200202/performance_and_spending/3233/government_procurement_cards,26-Aug-20,Housing & Communities,Amazon.co.uk OR33F1865,Neighbourhoods,47.3,R& M - Building Maint&Imp.,2020-21Aug_PC00245
Sandwell Metropolitan Borough Council,http://www.sandwell.gov.uk/info/200202/performance_and_spending/3233/government_procurement_cards,26-Aug-20,Childrens Services,Amazon.co.uk UI8VC8DH5,Childrens Services,29.11,Protective Clothing&Uniforms,2020-21Aug_PC00246
Sandwell Metropolitan Borough Council,http://www.sandwell.gov.uk/info/200202/performance_and_spending/3233/government_procurement_cards,26-Aug-20,Housing & Communities,AMZNMKTPLACE AMAZON.CO,Neighbourhoods,26.65,Operational Services,2020-21Aug_PC00247
Sandwell Metropolitan Borough Council,http://www.sandwell.gov.uk/info/200202/performance_and_spending/3233/government_procurement_cards,26-Aug-20,Housing & Communities,OFFICE DEPOT UK,Neighbourhoods,32.78,Printing Stationery&Gen Office,2020-21Aug_PC00248
Sandwell Metropolitan Borough Council,http://www.sandwell.gov.uk/info/200202/performance_and_spending/3233/government_procurement_cards,26-Aug-20,Adult Social Care Health and Wellbeing - Total,OFFICE DEPOT UK,Total Adult Social Care,13.43,ICT,2020-21Aug_PC00249
Sandwell Metropolitan Borough Council,http://www.sandwell.gov.uk/info/200202/performance_and_spending/3233/government_procurement_cards,26-Aug-20,Resources (Inc SIU),AMZNMktplace,Assistant Chief Executive (Excl SIU),15.98,Printing Stationery&Gen Office,2020-21Aug_PC00250
Sandwell Metropolitan Borough Council,http://www.sandwell.gov.uk/info/200202/performance_and_spending/3233/government_procurement_cards,26-Aug-20,Housing & Communities,WWW.BUNZLCLEANINGSUPPL,Neighbourhoods,210.75,R& M - Building Maint&Imp.,2020-21Aug_PC00251
Sandwell Metropolitan Borough Council,http://www.sandwell.gov.uk/info/200202/performance_and_spending/3233/government_procurement_cards,26-Aug-20,Housing & Communities,Amazon.co.uk 973A349X5,Neighbourhoods,128.7,Operational Services,2020-21Aug_PC00252
Sandwell Metropolitan Borough Council,http://www.sandwell.gov.uk/info/200202/performance_and_spending/3233/government_procurement_cards,26-Aug-20,Childrens Services,WWW.BLOOMSBURY.COM,Childrens Services,134.95,Materials & Consumables,2020-21Aug_PC00253
Sandwell Metropolitan Borough Council,http://www.sandwell.gov.uk/info/200202/performance_and_spending/3233/government_procurement_cards,26-Aug-20,Total Housing Revenue Account,SECURITY INDUSTRY,Total Housing Revenue Account,158.33,Subscriptions,2020-21Aug_PC00254
Sandwell Metropolitan Borough Council,http://www.sandwell.gov.uk/info/200202/performance_and_spending/3233/government_procurement_cards,26-Aug-20,Housing & Communities,AMZNMktplace,Neighbourhoods,1.66,Equipment & Furniture,2020-21Aug_PC00255
Sandwell Metropolitan Borough Council,http://www.sandwell.gov.uk/info/200202/performance_and_spending/3233/government_procurement_cards,27-Aug-20,Adult Social Care Health and Wellbeing - Total,COBDEN HOTEL LIMITED,Total Adult Social Care,-322.6,Rent Allowances Local Scheme,2020-21Aug_PC00256
Sandwell Metropolitan Borough Council,http://www.sandwell.gov.uk/info/200202/performance_and_spending/3233/government_procurement_cards,27-Aug-20,Adult Social Care Health and Wellbeing - Total,OFFICE DEPOT UK,Total Adult Social Care,85.4,Printing Stationery&Gen Office,2020-21Aug_PC00257
Sandwell Metropolitan Borough Council,http://www.sandwell.gov.uk/info/200202/performance_and_spending/3233/government_procurement_cards,27-Aug-20,Regeneration & Growth,XACT CONSULTANCY & TRA,Regeneration And The Economy,2811.9,Ind. Emp Exp-Staff Dev&Training,2020-21Aug_PC00258
Sandwell Metropolitan Borough Council,http://www.sandwell.gov.uk/info/200202/performance_and_spending/3233/government_procurement_cards,27-Aug-20,Housing & Communities,WWW.BUNZLCLEANINGSUPPL,Neighbourhoods,224.4,Refuse Collection,2020-21Aug_PC00259
Sandwell Metropolitan Borough Council,http://www.sandwell.gov.uk/info/200202/performance_and_spending/3233/government_procurement_cards,27-Aug-20,Housing & Communities,AMZNMktplace,Neighbourhoods,24.97,R& M - Building Maint&Imp.,2020-21Aug_PC00260
Sandwell Metropolitan Borough Council,http://www.sandwell.gov.uk/info/200202/performance_and_spending/3233/government_procurement_cards,27-Aug-20,Housing & Communities,OFFICE DEPOT UK,Neighbourhoods,53.69,Printing Stationery&Gen Office,2020-21Aug_PC00261
Sandwell Metropolitan Borough Council,http://www.sandwell.gov.uk/info/200202/performance_and_spending/3233/government_procurement_cards,27-Aug-20,Adult Social Care Health and Wellbeing - Total,OFFICE DEPOT UK,Total Adult Social Care,4.7,Printing Stationery&Gen Office,2020-21Aug_PC00262
Sandwell Metropolitan Borough Council,http://www.sandwell.gov.uk/info/200202/performance_and_spending/3233/government_procurement_cards,27-Aug-20,Childrens Services,FH  RIVER SEVERN CANOE,Childrens Services,-59.36,Materials & Consumables,2020-21Aug_PC00263
Sandwell Metropolitan Borough Council,http://www.sandwell.gov.uk/info/200202/performance_and_spending/3233/government_procurement_cards,27-Aug-20,Housing & Communities,TRAVELODGE,Neighbourhoods,175.91,Rents,2020-21Aug_PC00264
Sandwell Metropolitan Borough Council,http://www.sandwell.gov.uk/info/200202/performance_and_spending/3233/government_procurement_cards,28-Aug-20,Housing & Communities,WWW.TOOLSTATION.COM,Neighbourhoods,1.66,Grounds Maint&Improvements,2020-21Aug_PC00265
Sandwell Metropolitan Borough Council,http://www.sandwell.gov.uk/info/200202/performance_and_spending/3233/government_procurement_cards,28-Aug-20,Housing & Communities,SCREWFIX DIRECT,Neighbourhoods,11.24,Grounds Maint&Improvements,2020-21Aug_PC00266
Sandwell Metropolitan Borough Council,http://www.sandwell.gov.uk/info/200202/performance_and_spending/3233/government_procurement_cards,28-Aug-20,Housing & Communities,SECURITY INDUSTRY,Neighbourhoods,158.33,Subscriptions,2020-21Aug_PC00267
Sandwell Metropolitan Borough Council,http://www.sandwell.gov.uk/info/200202/performance_and_spending/3233/government_procurement_cards,28-Aug-20,Adult Social Care Health and Wellbeing - Total,OFFICE DEPOT UK,Total Adult Social Care,14.1,Printing Stationery&Gen Office,2020-21Aug_PC00268
Sandwell Metropolitan Borough Council,http://www.sandwell.gov.uk/info/200202/performance_and_spending/3233/government_procurement_cards,28-Aug-20,Total Housing Revenue Account,AMZNMKTPLACE AMAZON.CO,Total Housing Revenue Account,68.31,Operational Services,2020-21Aug_PC00269
Sandwell Metropolitan Borough Council,http://www.sandwell.gov.uk/info/200202/performance_and_spending/3233/government_procurement_cards,28-Aug-20,Adult Social Care Health and Wellbeing - Total,OFFICE DEPOT UK,Total Adult Social Care,24.99,Materials & Consumables,2020-21Aug_PC00270
Sandwell Metropolitan Borough Council,http://www.sandwell.gov.uk/info/200202/performance_and_spending/3233/government_procurement_cards,28-Aug-20,Housing & Communities,HOMEBASE LTD 085,Neighbourhoods,26.67,R& M - Building Maint&Imp.,2020-21Aug_PC00271
Sandwell Metropolitan Borough Council,http://www.sandwell.gov.uk/info/200202/performance_and_spending/3233/government_procurement_cards,28-Aug-20,Adult Social Care Health and Wellbeing - Total,AMZNMKTPLACE AMAZON.CO,Total Adult Social Care,46.73,ICT,2020-21Aug_PC00272
Sandwell Metropolitan Borough Council,http://www.sandwell.gov.uk/info/200202/performance_and_spending/3233/government_procurement_cards,28-Aug-20,Total Housing Revenue Account,AMZNMktplace,Total Housing Revenue Account,22.47,Materials & Consumables,2020-21Aug_PC00273
Sandwell Metropolitan Borough Council,http://www.sandwell.gov.uk/info/200202/performance_and_spending/3233/government_procurement_cards,31-Aug-20,Adult Social Care Health and Wellbeing - Total,J R WOODISSE & CO LTD,Total Adult Social Care,398,Equipment & Furniture,2020-21Aug_PC00274
Sandwell Metropolitan Borough Council,http://www.sandwell.gov.uk/info/200202/performance_and_spending/3233/government_procurement_cards,31-Aug-20,Housing & Communities,AMZNMktplace,Neighbourhoods,14.98,Ind. Emp Exp-Emp. Welfare,2020-21Aug_PC00275
Sandwell Metropolitan Borough Council,http://www.sandwell.gov.uk/info/200202/performance_and_spending/3233/government_procurement_cards,31-Aug-20,Housing & Communities,POUNDSTRETCHER 328,Neighbourhoods,3.32,R& M - Building Maint&Imp.,2020-21Aug_PC00276
Sandwell Metropolitan Borough Council,http://www.sandwell.gov.uk/info/200202/performance_and_spending/3233/government_procurement_cards,31-Aug-20,Regeneration & Growth,Amazon.co.uk R91OR2L55,Regeneration And The Economy,24.99,ICT,2020-21Aug_PC00277
Sandwell Metropolitan Borough Council,http://www.sandwell.gov.uk/info/200202/performance_and_spending/3233/government_procurement_cards,31-Aug-20,Housing & Communities,AMZNMktplace,Neighbourhoods,7.29,Ind. Emp Exp-Emp. Welfare,2020-21Aug_PC00278
Sandwell Metropolitan Borough Council,http://www.sandwell.gov.uk/info/200202/performance_and_spending/3233/government_procurement_cards,31-Aug-20,Resources (Inc SIU),AMZNMKTPLACE AMAZON.CO,Assistant Chief Executive (Excl SIU),13.07,Materials & Consumables,2020-21Aug_PC00279
Sandwell Metropolitan Borough Council,http://www.sandwell.gov.uk/info/200202/performance_and_spending/3233/government_procurement_cards,31-Aug-20,Housing & Communities,TRITEK LTD,Neighbourhoods,68.49,Printing Stationery&Gen Office,2020-21Aug_PC00280
Sandwell Metropolitan Borough Council,http://www.sandwell.gov.uk/info/200202/performance_and_spending/3233/government_procurement_cards,31-Aug-20,Housing & Communities,SECURITY INDUSTRY,Neighbourhoods,158.33,Subscriptions,2020-21Aug_PC00281
Sandwell Metropolitan Borough Council,http://www.sandwell.gov.uk/info/200202/performance_and_spending/3233/government_procurement_cards,31-Aug-20,Housing & Communities,TRAVELODGE,Neighbourhoods,234.53,Rents,2020-21Aug_PC00282
Sandwell Metropolitan Borough Council,http://www.sandwell.gov.uk/info/200202/performance_and_spending/3233/government_procurement_cards,31-Aug-20,Regeneration & Growth,CHARTER OFFICE EQU,Regeneration And The Economy,314,Equipment & Furniture,2020-21Aug_PC00283
Sandwell Metropolitan Borough Council,http://www.sandwell.gov.uk/info/200202/performance_and_spending/3233/government_procurement_cards,31-Aug-20,Housing & Communities,AMZNMKTPLACE AMAZON.CO,Neighbourhoods,16.66,Operational Services,2020-21Aug_PC00284
Sandwell Metropolitan Borough Council,http://www.sandwell.gov.uk/info/200202/performance_and_spending/3233/government_procurement_cards,01-Sep-20,Childrens Services,WILKO RETAIL LIMITED,Childrens Services,7.5,Materials & Consumables,2020-21Aug_PC00285
Sandwell Metropolitan Borough Council,http://www.sandwell.gov.uk/info/200202/performance_and_spending/3233/government_procurement_cards,02-Sep-20,Childrens Services,SAVERS HEALTH & BEAUTY,Childrens Services,3.33,Materials & Consumables,2020-21Aug_PC00286
Sandwell Metropolitan Borough Council,http://www.sandwell.gov.uk/info/200202/performance_and_spending/3233/government_procurement_cards,02-Sep-20,Resources (Inc SIU),AMZNMktplace,Assistant Chief Executive (Excl SIU),79.98,Professional Services External,2020-21Aug_PC00287
Sandwell Metropolitan Borough Council,http://www.sandwell.gov.uk/info/200202/performance_and_spending/3233/government_procurement_cards,02-Sep-20,Resources (Inc SIU),AMZNMktplace,Assistant Chief Executive (Excl SIU),31.65,Professional Services External,2020-21Aug_PC00288
Sandwell Metropolitan Borough Council,http://www.sandwell.gov.uk/info/200202/performance_and_spending/3233/government_procurement_cards,02-Sep-20,Regeneration & Growth,Amazon.co.uk MY1MN9HG5,Regeneration And The Economy,90.83,ICT,2020-21Aug_PC00289
Sandwell Metropolitan Borough Council,http://www.sandwell.gov.uk/info/200202/performance_and_spending/3233/government_procurement_cards,02-Sep-20,Housing & Communities,AMZNMktplace,Neighbourhoods,103.72,Equipment & Furniture,2020-21Aug_PC00290
Sandwell Metropolitan Borough Council,http://www.sandwell.gov.uk/info/200202/performance_and_spending/3233/government_procurement_cards,02-Sep-20,Housing Revenue Account Capital,RICS COM UAE CYBS,Housing Revenue Account Capital,600,Subscriptions,2020-21Aug_PC00291
Sandwell Metropolitan Borough Council,http://www.sandwell.gov.uk/info/200202/performance_and_spending/3233/government_procurement_cards,02-Sep-20,Resources (Inc SIU),Amazon Prime 0H6XQ8X05,Assistant Chief Executive (Excl SIU),6.66,Subscriptions,2020-21Aug_PC00292
Sandwell Metropolitan Borough Council,http://www.sandwell.gov.uk/info/200202/performance_and_spending/3233/government_procurement_cards,02-Sep-20,Resources (Inc SIU),GOOGLE  CLOUD_01B69F-A,Assistant Chief Executive (Excl SIU),141.91,ICT,2020-21Aug_PC00293
Sandwell Metropolitan Borough Council,http://www.sandwell.gov.uk/info/200202/performance_and_spending/3233/government_procurement_cards,02-Sep-20,Housing & Communities,CADW WEBSITE,Neighbourhoods,20,Ind. Emp Exp-Staff Dev&Training,2020-21Aug_PC00294
Sandwell Metropolitan Borough Council,http://www.sandwell.gov.uk/info/200202/performance_and_spending/3233/government_procurement_cards,03-Sep-20,Childrens Services,SCREWFIX DIRECT,Childrens Services,38.31,Protective Clothing&Uniforms,2020-21Aug_PC00295
Sandwell Metropolitan Borough Council,http://www.sandwell.gov.uk/info/200202/performance_and_spending/3233/government_procurement_cards,03-Sep-20,Total Housing Revenue Account,Staffordshire Builders,Total Housing Revenue Account,108.66,Materials & Consumables,2020-21Aug_PC00296
Sandwell Metropolitan Borough Council,http://www.sandwell.gov.uk/info/200202/performance_and_spending/3233/government_procurement_cards,03-Sep-20,Adult Social Care Health and Wellbeing - Total,AMZNMKTPLACE AMAZON.CO,Total Adult Social Care,29.66,Equipment & Furniture,2020-21Aug_PC00297
Sandwell Metropolitan Borough Council,http://www.sandwell.gov.uk/info/200202/performance_and_spending/3233/government_procurement_cards,03-Sep-20,Housing & Communities,B&M 049 - ASTLE PARK,Neighbourhoods,14.93,Cleaning,2020-21Aug_PC00298
Sandwell Metropolitan Borough Council,http://www.sandwell.gov.uk/info/200202/performance_and_spending/3233/government_procurement_cards,03-Sep-20,Adult Social Care Health and Wellbeing - Total,TELEPHONEHEADSETS.NET,Total Adult Social Care,35.99,ICT,2020-21Aug_PC00299
Sandwell Metropolitan Borough Council,http://www.sandwell.gov.uk/info/200202/performance_and_spending/3233/government_procurement_cards,03-Sep-20,Adult Social Care Health and Wellbeing - Total,PMC ELECTRICS LIMI,Total Adult Social Care,84.7,ICT,2020-21Aug_PC00300
Sandwell Metropolitan Borough Council,http://www.sandwell.gov.uk/info/200202/performance_and_spending/3233/government_procurement_cards,04-Sep-20,Resources (Inc SIU),OFFICE DEPOT UK,Assistant Chief Executive (Excl SIU),44.99,Equipment & Furniture,2020-21Sep_PC00001
Sandwell Metropolitan Borough Council,http://www.sandwell.gov.uk/info/200202/performance_and_spending/3233/government_procurement_cards,04-Sep-20,Resources (Inc SIU),AMZNMktplace,Assistant Chief Executive (Excl SIU),17.28,ICT,2020-21Sep_PC00002
Sandwell Metropolitan Borough Council,http://www.sandwell.gov.uk/info/200202/performance_and_spending/3233/government_procurement_cards,04-Sep-20,Housing & Communities,AMZNWarranty,Neighbourhoods,2.99,Telephones,2020-21Sep_PC00003
Sandwell Metropolitan Borough Council,http://www.sandwell.gov.uk/info/200202/performance_and_spending/3233/government_procurement_cards,04-Sep-20,Adult Social Care Health and Wellbeing - Total,AMZNMktplace,Total Adult Social Care,132.92,Equipment & Furniture,2020-21Sep_PC00004
Sandwell Metropolitan Borough Council,http://www.sandwell.gov.uk/info/200202/performance_and_spending/3233/government_procurement_cards,04-Sep-20,Adult Social Care Health and Wellbeing - Total,AMZNMktplace,Total Adult Social Care,7.99,Printing Stationery&Gen Office,2020-21Sep_PC00005
Sandwell Metropolitan Borough Council,http://www.sandwell.gov.uk/info/200202/performance_and_spending/3233/government_procurement_cards,04-Sep-20,Total Housing Revenue Account,Amazon.co.uk 4650C6XY5,Total Housing Revenue Account,112.48,Operational Services,2020-21Sep_PC00006
Sandwell Metropolitan Borough Council,http://www.sandwell.gov.uk/info/200202/performance_and_spending/3233/government_procurement_cards,04-Sep-20,Housing & Communities,WILKO.COM,Neighbourhoods,87.5,Materials & Consumables,2020-21Sep_PC00007
Sandwell Metropolitan Borough Council,http://www.sandwell.gov.uk/info/200202/performance_and_spending/3233/government_procurement_cards,04-Sep-20,Housing & Communities,www.chemist-4-u.co,Neighbourhoods,99.97,Materials & Consumables,2020-21Sep_PC00008
Sandwell Metropolitan Borough Council,http://www.sandwell.gov.uk/info/200202/performance_and_spending/3233/government_procurement_cards,04-Sep-20,Housing & Communities,WILKO.COM,Neighbourhoods,87.5,Materials & Consumables,2020-21Sep_PC00009
Sandwell Metropolitan Borough Council,http://www.sandwell.gov.uk/info/200202/performance_and_spending/3233/government_procurement_cards,04-Sep-20,Housing & Communities,www.chemist-4-u.co,Neighbourhoods,99.97,Materials & Consumables,2020-21Sep_PC00010
Sandwell Metropolitan Borough Council,http://www.sandwell.gov.uk/info/200202/performance_and_spending/3233/government_procurement_cards,04-Sep-20,Resources (Inc SIU),AMZNMKTPLACE AMAZON.CO,Assistant Chief Executive (Excl SIU),40.23,Equipment & Furniture,2020-21Sep_PC00011
Sandwell Metropolitan Borough Council,http://www.sandwell.gov.uk/info/200202/performance_and_spending/3233/government_procurement_cards,04-Sep-20,Total Housing Revenue Account,EB  WHAT IS VICTIM BLA,Total Housing Revenue Account,25,Ind. Emp Exp-Staff Dev&Training,2020-21Sep_PC00012
Sandwell Metropolitan Borough Council,http://www.sandwell.gov.uk/info/200202/performance_and_spending/3233/government_procurement_cards,04-Sep-20,Total Housing Revenue Account,HOUSING 2020,Total Housing Revenue Account,225,Conference Expenses,2020-21Sep_PC00013
Sandwell Metropolitan Borough Council,http://www.sandwell.gov.uk/info/200202/performance_and_spending/3233/government_procurement_cards,07-Sep-20,Housing & Communities,WWW.MYPOSTSHOP.COM,Neighbourhoods,43.32,Materials & Consumables,2020-21Sep_PC00014
Sandwell Metropolitan Borough Council,http://www.sandwell.gov.uk/info/200202/performance_and_spending/3233/government_procurement_cards,07-Sep-20,Housing & Communities,WWW.MYPOSTSHOP.COM,Neighbourhoods,43.32,Materials & Consumables,2020-21Sep_PC00015
Sandwell Metropolitan Borough Council,http://www.sandwell.gov.uk/info/200202/performance_and_spending/3233/government_procurement_cards,07-Sep-20,Housing & Communities,DRI LENOVO,Neighbourhoods,18.39,Equipment & Furniture,2020-21Sep_PC00016
Sandwell Metropolitan Borough Council,http://www.sandwell.gov.uk/info/200202/performance_and_spending/3233/government_procurement_cards,07-Sep-20,Housing & Communities,Amazon.co.uk OJ34I2VT5,Neighbourhoods,15.23,ICT,2020-21Sep_PC00017
Sandwell Metropolitan Borough Council,http://www.sandwell.gov.uk/info/200202/performance_and_spending/3233/government_procurement_cards,07-Sep-20,Housing & Communities,Amazon.co.uk 010US75F5,Neighbourhoods,15.23,ICT,2020-21Sep_PC00018
Sandwell Metropolitan Borough Council,http://www.sandwell.gov.uk/info/200202/performance_and_spending/3233/government_procurement_cards,07-Sep-20,Housing & Communities,SECURITY INDUSTRY,Neighbourhoods,158.33,Subscriptions,2020-21Sep_PC00019
Sandwell Metropolitan Borough Council,http://www.sandwell.gov.uk/info/200202/performance_and_spending/3233/government_procurement_cards,07-Sep-20,Resources (Inc SIU),AMZNMktplace,Assistant Chief Executive (Excl SIU),54.08,Printing Stationery&Gen Office,2020-21Sep_PC00020
Sandwell Metropolitan Borough Council,http://www.sandwell.gov.uk/info/200202/performance_and_spending/3233/government_procurement_cards,07-Sep-20,Adult Social Care Health and Wellbeing - Total,XMA LTD,Total Adult Social Care,105.85,ICT,2020-21Sep_PC00021
Sandwell Metropolitan Borough Council,http://www.sandwell.gov.uk/info/200202/performance_and_spending/3233/government_procurement_cards,07-Sep-20,Childrens Services,AMZ Amazon.co.uk,Childrens Services,-99.99,Telephones,2020-21Sep_PC00022
Sandwell Metropolitan Borough Council,http://www.sandwell.gov.uk/info/200202/performance_and_spending/3233/government_procurement_cards,07-Sep-20,Resources (Inc SIU),AMZNMKTPLACE AMAZON.CO,Assistant Chief Executive (Excl SIU),24.92,Printing Stationery&Gen Office,2020-21Sep_PC00023
Sandwell Metropolitan Borough Council,http://www.sandwell.gov.uk/info/200202/performance_and_spending/3233/government_procurement_cards,07-Sep-20,Resources (Inc SIU),Amazon.co.uk S36JO62N5,Assistant Chief Executive (Excl SIU),10.1,ICT,2020-21Sep_PC00024
Sandwell Metropolitan Borough Council,http://www.sandwell.gov.uk/info/200202/performance_and_spending/3233/government_procurement_cards,07-Sep-20,Childrens Services,WILKO RETAIL LIMITED,Childrens Services,12,Equipment & Furniture,2020-21Sep_PC00025
Sandwell Metropolitan Borough Council,http://www.sandwell.gov.uk/info/200202/performance_and_spending/3233/government_procurement_cards,08-Sep-20,Adult Social Care Health and Wellbeing - Total,AMZNMKTPLACE AMAZON.CO,Total Adult Social Care,12.98,Protective Clothing&Uniforms,2020-21Sep_PC00026
Sandwell Metropolitan Borough Council,http://www.sandwell.gov.uk/info/200202/performance_and_spending/3233/government_procurement_cards,08-Sep-20,Resources (Inc SIU),AMZNMktplace,Assistant Chief Executive (Excl SIU),23.38,Printing Stationery&Gen Office,2020-21Sep_PC00027
Sandwell Metropolitan Borough Council,http://www.sandwell.gov.uk/info/200202/performance_and_spending/3233/government_procurement_cards,08-Sep-20,Childrens Services,SAVERS HEALTH & BEAUTY,Childrens Services,20,Materials & Consumables,2020-21Sep_PC00028
Sandwell Metropolitan Borough Council,http://www.sandwell.gov.uk/info/200202/performance_and_spending/3233/government_procurement_cards,08-Sep-20,Adult Social Care Health and Wellbeing - Total,SANDWELL M.B.C.,Total Adult Social Care,9.17,Materials & Consumables,2020-21Sep_PC00029
Sandwell Metropolitan Borough Council,http://www.sandwell.gov.uk/info/200202/performance_and_spending/3233/government_procurement_cards,08-Sep-20,Childrens Services,GOVERNMENT EVENTS,Childrens Services,311.2,Ind. Emp Exp-Staff Dev&Training,2020-21Sep_PC00030
Sandwell Metropolitan Borough Council,http://www.sandwell.gov.uk/info/200202/performance_and_spending/3233/government_procurement_cards,08-Sep-20,Resources (Inc SIU),Amazon Prime,Assistant Chief Executive (Excl SIU),-6.66,Subscriptions,2020-21Sep_PC00031
Sandwell Metropolitan Borough Council,http://www.sandwell.gov.uk/info/200202/performance_and_spending/3233/government_procurement_cards,08-Sep-20,Adult Social Care Health and Wellbeing - Total,AMZNMktplace,Total Adult Social Care,33.32,Materials & Consumables,2020-21Sep_PC00032
Sandwell Metropolitan Borough Council,http://www.sandwell.gov.uk/info/200202/performance_and_spending/3233/government_procurement_cards,08-Sep-20,Adult Social Care Health and Wellbeing - Total,PAYPAL  ACCLAIMHAND,Total Adult Social Care,428,Equipment & Furniture,2020-21Sep_PC00033
Sandwell Metropolitan Borough Council,http://www.sandwell.gov.uk/info/200202/performance_and_spending/3233/government_procurement_cards,08-Sep-20,Housing & Communities,WWW.TRODAT.CO.UK,Neighbourhoods,16.45,Printing Stationery&Gen Office,2020-21Sep_PC00034
Sandwell Metropolitan Borough Council,http://www.sandwell.gov.uk/info/200202/performance_and_spending/3233/government_procurement_cards,08-Sep-20,Housing & Communities,ARGOS LTD,Neighbourhoods,78.28,ICT,2020-21Sep_PC00035
Sandwell Metropolitan Borough Council,http://www.sandwell.gov.uk/info/200202/performance_and_spending/3233/government_procurement_cards,08-Sep-20,Resources (Inc SIU),CURRYS ONLINE,Assistant Chief Executive (Excl SIU),43.32,Printing Stationery&Gen Office,2020-21Sep_PC00036
Sandwell Metropolitan Borough Council,http://www.sandwell.gov.uk/info/200202/performance_and_spending/3233/government_procurement_cards,08-Sep-20,Resources (Inc SIU),CURRYS ONLINE,Assistant Chief Executive (Excl SIU),16.65,Printing Stationery&Gen Office,2020-21Sep_PC00037
Sandwell Metropolitan Borough Council,http://www.sandwell.gov.uk/info/200202/performance_and_spending/3233/government_procurement_cards,08-Sep-20,Resources (Inc SIU),EB  ONLINE TRAINING PA,Assistant Chief Executive (Excl SIU),-70,Conference Expenses,2020-21Sep_PC00038
Sandwell Metropolitan Borough Council,http://www.sandwell.gov.uk/info/200202/performance_and_spending/3233/government_procurement_cards,08-Sep-20,Resources (Inc SIU),SERVICE MANAGEMENT ASS,Assistant Chief Executive (Excl SIU),590,ICT,2020-21Sep_PC00039
Sandwell Metropolitan Borough Council,http://www.sandwell.gov.uk/info/200202/performance_and_spending/3233/government_procurement_cards,08-Sep-20,Childrens Services,WWW.HIGHFIELDS.CO.UK,Childrens Services,10,Professional Services External,2020-21Sep_PC00040
Sandwell Metropolitan Borough Council,http://www.sandwell.gov.uk/info/200202/performance_and_spending/3233/government_procurement_cards,08-Sep-20,Childrens Services,AELP.ORG.UK,Childrens Services,49,Ind. Emp Exp-Staff Dev&Training,2020-21Sep_PC00041
Sandwell Metropolitan Borough Council,http://www.sandwell.gov.uk/info/200202/performance_and_spending/3233/government_procurement_cards,08-Sep-20,Total Housing Revenue Account,AMZNMktplace,Total Housing Revenue Account,125.99,Employee Expenses,2020-21Sep_PC00042
Sandwell Metropolitan Borough Council,http://www.sandwell.gov.uk/info/200202/performance_and_spending/3233/government_procurement_cards,08-Sep-20,Adult Social Care Health and Wellbeing - Total,TELEPHONEHEADSETS.NET,Total Adult Social Care,239.92,ICT,2020-21Sep_PC00043
Sandwell Metropolitan Borough Council,http://www.sandwell.gov.uk/info/200202/performance_and_spending/3233/government_procurement_cards,08-Sep-20,Housing & Communities,MYMEMORY LTD,Neighbourhoods,20.44,Equipment & Furniture,2020-21Sep_PC00044
Sandwell Metropolitan Borough Council,http://www.sandwell.gov.uk/info/200202/performance_and_spending/3233/government_procurement_cards,09-Sep-20,Childrens Services,J S PENDLEBURY AND SON,Childrens Services,8.67,Fuel,2020-21Sep_PC00045
Sandwell Metropolitan Borough Council,http://www.sandwell.gov.uk/info/200202/performance_and_spending/3233/government_procurement_cards,09-Sep-20,Adult Social Care Health and Wellbeing - Total,OFFICE DEPOT UK,Total Adult Social Care,48.74,Printing Stationery&Gen Office,2020-21Sep_PC00046
Sandwell Metropolitan Borough Council,http://www.sandwell.gov.uk/info/200202/performance_and_spending/3233/government_procurement_cards,09-Sep-20,Housing & Communities,OFFICE DEPOT UK,Neighbourhoods,221.76,Printing Stationery&Gen Office,2020-21Sep_PC00047
Sandwell Metropolitan Borough Council,http://www.sandwell.gov.uk/info/200202/performance_and_spending/3233/government_procurement_cards,09-Sep-20,Housing & Communities,NICKELODEON WEDNESFIEL,Neighbourhoods,25.59,Ind. Emp Exp-Staff Dev&Training,2020-21Sep_PC00048
Sandwell Metropolitan Borough Council,http://www.sandwell.gov.uk/info/200202/performance_and_spending/3233/government_procurement_cards,09-Sep-20,Housing & Communities,NICKELODEON WEDNESFIEL,Neighbourhoods,4,Ind. Emp Exp-Staff Dev&Training,2020-21Sep_PC00049
Sandwell Metropolitan Borough Council,http://www.sandwell.gov.uk/info/200202/performance_and_spending/3233/government_procurement_cards,09-Sep-20,Housing & Communities,AMZNMktplace,Neighbourhoods,27.48,Equipment & Furniture,2020-21Sep_PC00050
Sandwell Metropolitan Borough Council,http://www.sandwell.gov.uk/info/200202/performance_and_spending/3233/government_procurement_cards,09-Sep-20,Childrens Services,APPLIANCEDIRECT CO,Childrens Services,158.3,Catering Equipment,2020-21Sep_PC00051
Sandwell Metropolitan Borough Council,http://www.sandwell.gov.uk/info/200202/performance_and_spending/3233/government_procurement_cards,09-Sep-20,Housing & Communities,MAPLE FLEET SERVICES,Neighbourhoods,-54.8,Fire Service Workshops,2020-21Sep_PC00052
Sandwell Metropolitan Borough Council,http://www.sandwell.gov.uk/info/200202/performance_and_spending/3233/government_procurement_cards,09-Sep-20,Resources (Inc SIU),Amazon Prime,Assistant Chief Executive (Excl SIU),-6.66,Subscriptions,2020-21Sep_PC00053
Sandwell Metropolitan Borough Council,http://www.sandwell.gov.uk/info/200202/performance_and_spending/3233/government_procurement_cards,09-Sep-20,Adult Social Care Health and Wellbeing - Total,Amazon.co.uk 1F16142I5,Total Adult Social Care,26.58,Materials & Consumables,2020-21Sep_PC00054
Sandwell Metropolitan Borough Council,http://www.sandwell.gov.uk/info/200202/performance_and_spending/3233/government_procurement_cards,09-Sep-20,Housing & Communities,AMZNMktplace,Neighbourhoods,54.63,Materials & Consumables,2020-21Sep_PC00055
Sandwell Metropolitan Borough Council,http://www.sandwell.gov.uk/info/200202/performance_and_spending/3233/government_procurement_cards,09-Sep-20,Housing & Communities,AMZNMktplace,Neighbourhoods,8.85,Protective Clothing&Uniforms,2020-21Sep_PC00056
Sandwell Metropolitan Borough Council,http://www.sandwell.gov.uk/info/200202/performance_and_spending/3233/government_procurement_cards,09-Sep-20,Childrens Services,AMZNMktplace,Childrens Services,49.78,Printing Stationery&Gen Office,2020-21Sep_PC00057
Sandwell Metropolitan Borough Council,http://www.sandwell.gov.uk/info/200202/performance_and_spending/3233/government_procurement_cards,09-Sep-20,Total Housing Revenue Account,EB  INTRODUCTION TO SE,Total Housing Revenue Account,25,Ind. Emp Exp-Staff Dev&Training,2020-21Sep_PC00058
Sandwell Metropolitan Borough Council,http://www.sandwell.gov.uk/info/200202/performance_and_spending/3233/government_procurement_cards,09-Sep-20,Total Housing Revenue Account,EB  WHAT IS VICTIM BLA,Total Housing Revenue Account,25,Ind. Emp Exp-Staff Dev&Training,2020-21Sep_PC00059
Sandwell Metropolitan Borough Council,http://www.sandwell.gov.uk/info/200202/performance_and_spending/3233/government_procurement_cards,09-Sep-20,Total Housing Revenue Account,POST OFFICE COUNTER,Total Housing Revenue Account,47.12,Printing Stationery&Gen Office,2020-21Sep_PC00060
Sandwell Metropolitan Borough Council,http://www.sandwell.gov.uk/info/200202/performance_and_spending/3233/government_procurement_cards,09-Sep-20,Childrens Services,MAUDESPORT LTD,Childrens Services,30.26,Equipment & Furniture,2020-21Sep_PC00061
Sandwell Metropolitan Borough Council,http://www.sandwell.gov.uk/info/200202/performance_and_spending/3233/government_procurement_cards,09-Sep-20,Childrens Services,BISHOPSPORT,Childrens Services,118.95,Materials & Consumables,2020-21Sep_PC00062
Sandwell Metropolitan Borough Council,http://www.sandwell.gov.uk/info/200202/performance_and_spending/3233/government_procurement_cards,09-Sep-20,Childrens Services,AMZNMktplace,Childrens Services,9.99,Materials & Consumables,2020-21Sep_PC00063
Sandwell Metropolitan Borough Council,http://www.sandwell.gov.uk/info/200202/performance_and_spending/3233/government_procurement_cards,10-Sep-20,Adult Social Care Health and Wellbeing - Total,OFFICE DEPOT UK,Total Adult Social Care,14.09,Printing Stationery&Gen Office,2020-21Sep_PC00064
Sandwell Metropolitan Borough Council,http://www.sandwell.gov.uk/info/200202/performance_and_spending/3233/government_procurement_cards,10-Sep-20,Housing & Communities,AMZNMKTPLACE AMAZON.CO,Neighbourhoods,14.98,Ind. Emp Exp-Emp. Welfare,2020-21Sep_PC00065
Sandwell Metropolitan Borough Council,http://www.sandwell.gov.uk/info/200202/performance_and_spending/3233/government_procurement_cards,10-Sep-20,Resources (Inc SIU),OFFICE DEPOT UK,Assistant Chief Executive (Excl SIU),113.42,Printing Stationery&Gen Office,2020-21Sep_PC00066
Sandwell Metropolitan Borough Council,http://www.sandwell.gov.uk/info/200202/performance_and_spending/3233/government_procurement_cards,10-Sep-20,Housing & Communities,JOHNSTONES DEC CENTRE,Neighbourhoods,78.46,R& M - Building Maint&Imp.,2020-21Sep_PC00067
Sandwell Metropolitan Borough Council,http://www.sandwell.gov.uk/info/200202/performance_and_spending/3233/government_procurement_cards,10-Sep-20,Regeneration & Growth,AMZNMktplace,Regeneration And The Economy,109.87,Hygiene Services,2020-21Sep_PC00068
Sandwell Metropolitan Borough Council,http://www.sandwell.gov.uk/info/200202/performance_and_spending/3233/government_procurement_cards,10-Sep-20,Regeneration & Growth,OFFICE DEPOT UK,Regeneration And The Economy,95.4,Printing Stationery&Gen Office,2020-21Sep_PC00069
Sandwell Metropolitan Borough Council,http://www.sandwell.gov.uk/info/200202/performance_and_spending/3233/government_procurement_cards,10-Sep-20,Housing & Communities,AQUAID WATERCOOLERS,Neighbourhoods,31.25,Catering Provisions,2020-21Sep_PC00070
Sandwell Metropolitan Borough Council,http://www.sandwell.gov.uk/info/200202/performance_and_spending/3233/government_procurement_cards,10-Sep-20,Housing & Communities,AQUAID WATERCOOLERS,Neighbourhoods,127.25,Catering Provisions,2020-21Sep_PC00071
Sandwell Metropolitan Borough Council,http://www.sandwell.gov.uk/info/200202/performance_and_spending/3233/government_procurement_cards,10-Sep-20,Housing & Communities,AMZNMktplace,Neighbourhoods,24.78,Equipment & Furniture,2020-21Sep_PC00072
Sandwell Metropolitan Borough Council,http://www.sandwell.gov.uk/info/200202/performance_and_spending/3233/government_procurement_cards,10-Sep-20,Childrens Services,SNOWDONIA FIRE PROTECT,Childrens Services,49.6,R & M - Security,2020-21Sep_PC00073
Sandwell Metropolitan Borough Council,http://www.sandwell.gov.uk/info/200202/performance_and_spending/3233/government_procurement_cards,10-Sep-20,Childrens Services,SNOWDONIA FIRE PROTECT,Childrens Services,47.8,R & M - Security,2020-21Sep_PC00074
Sandwell Metropolitan Borough Council,http://www.sandwell.gov.uk/info/200202/performance_and_spending/3233/government_procurement_cards,10-Sep-20,Childrens Services,SNOWDONIA FIRE PROTECT,Childrens Services,80,R & M - Security,2020-21Sep_PC00075
Sandwell Metropolitan Borough Council,http://www.sandwell.gov.uk/info/200202/performance_and_spending/3233/government_procurement_cards,10-Sep-20,Resources (Inc SIU),GLOBAL INSIGHT CONFERE,Assistant Chief Executive (Excl SIU),307.97,Ind. Emp Exp-Staff Dev&Training,2020-21Sep_PC00076
Sandwell Metropolitan Borough Council,http://www.sandwell.gov.uk/info/200202/performance_and_spending/3233/government_procurement_cards,10-Sep-20,Housing & Communities,STAR AUTO RECOVERY,Neighbourhoods,270,Fire Service Workshops,2020-21Sep_PC00077
Sandwell Metropolitan Borough Council,http://www.sandwell.gov.uk/info/200202/performance_and_spending/3233/government_procurement_cards,10-Sep-20,Housing & Communities,Amazon.co.uk JP9U51YA5,Neighbourhoods,14.66,ICT,2020-21Sep_PC00078
Sandwell Metropolitan Borough Council,http://www.sandwell.gov.uk/info/200202/performance_and_spending/3233/government_procurement_cards,10-Sep-20,Housing & Communities,Amazon.co.uk R73FV0KK5,Neighbourhoods,14.66,ICT,2020-21Sep_PC00079
Sandwell Metropolitan Borough Council,http://www.sandwell.gov.uk/info/200202/performance_and_spending/3233/government_procurement_cards,10-Sep-20,Resources (Inc SIU),Amazon.co.uk MO1ZL6HJ5,Assistant Chief Executive (Excl SIU),20.2,ICT,2020-21Sep_PC00080
Sandwell Metropolitan Borough Council,http://www.sandwell.gov.uk/info/200202/performance_and_spending/3233/government_procurement_cards,10-Sep-20,Adult Social Care Health and Wellbeing - Total,COSTCUTTER OLDBURY,Total Adult Social Care,8.45,Materials & Consumables,2020-21Sep_PC00081
Sandwell Metropolitan Borough Council,http://www.sandwell.gov.uk/info/200202/performance_and_spending/3233/government_procurement_cards,10-Sep-20,Adult Social Care Health and Wellbeing - Total,AMZNMktplace,Total Adult Social Care,24.96,Materials & Consumables,2020-21Sep_PC00082
Sandwell Metropolitan Borough Council,http://www.sandwell.gov.uk/info/200202/performance_and_spending/3233/government_procurement_cards,10-Sep-20,Adult Social Care Health and Wellbeing - Total,POUNDSTRETCHER 328,Total Adult Social Care,26.32,Materials & Consumables,2020-21Sep_PC00083
Sandwell Metropolitan Borough Council,http://www.sandwell.gov.uk/info/200202/performance_and_spending/3233/government_procurement_cards,10-Sep-20,Adult Social Care Health and Wellbeing - Total,Amazon.co.uk R87KD2UP5,Total Adult Social Care,16.58,Materials & Consumables,2020-21Sep_PC00084
Sandwell Metropolitan Borough Council,http://www.sandwell.gov.uk/info/200202/performance_and_spending/3233/government_procurement_cards,10-Sep-20,Resources (Inc SIU),RYMAN,Assistant Chief Executive (Excl SIU),14.94,Printing Stationery&Gen Office,2020-21Sep_PC00085
Sandwell Metropolitan Borough Council,http://www.sandwell.gov.uk/info/200202/performance_and_spending/3233/government_procurement_cards,10-Sep-20,Resources (Inc SIU),RYMAN,Assistant Chief Executive (Excl SIU),7.98,Printing Stationery&Gen Office,2020-21Sep_PC00086
Sandwell Metropolitan Borough Council,http://www.sandwell.gov.uk/info/200202/performance_and_spending/3233/government_procurement_cards,10-Sep-20,Regeneration & Growth,TIMPSON LTD,Regeneration And The Economy,5,R & M - Security,2020-21Sep_PC00087
Sandwell Metropolitan Borough Council,http://www.sandwell.gov.uk/info/200202/performance_and_spending/3233/government_procurement_cards,10-Sep-20,Childrens Services,AMZNMKTPLACE AMAZON.CO,Childrens Services,74.17,Hygiene Services,2020-21Sep_PC00088
Sandwell Metropolitan Borough Council,http://www.sandwell.gov.uk/info/200202/performance_and_spending/3233/government_procurement_cards,10-Sep-20,Childrens Services,AMZNMKTPLACE AMAZON.CO,Childrens Services,104.16,Telephones,2020-21Sep_PC00089
Sandwell Metropolitan Borough Council,http://www.sandwell.gov.uk/info/200202/performance_and_spending/3233/government_procurement_cards,10-Sep-20,Childrens Services,AMZNMktplace,Childrens Services,50.8,Materials & Consumables,2020-21Sep_PC00090
Sandwell Metropolitan Borough Council,http://www.sandwell.gov.uk/info/200202/performance_and_spending/3233/government_procurement_cards,10-Sep-20,Childrens Services,MILTONS (WALLPAPER,Childrens Services,18.9,Equipment & Furniture,2020-21Sep_PC00091
Sandwell Metropolitan Borough Council,http://www.sandwell.gov.uk/info/200202/performance_and_spending/3233/government_procurement_cards,11-Sep-20,Housing & Communities,AMZNMKTPLACE AMAZON.CO,Neighbourhoods,45.79,Materials & Consumables,2020-21Sep_PC00092
Sandwell Metropolitan Borough Council,http://www.sandwell.gov.uk/info/200202/performance_and_spending/3233/government_procurement_cards,11-Sep-20,Childrens Services,AMZNMKTPLACE AMAZON.CO,Childrens Services,52.05,Protective Clothing&Uniforms,2020-21Sep_PC00093
Sandwell Metropolitan Borough Council,http://www.sandwell.gov.uk/info/200202/performance_and_spending/3233/government_procurement_cards,11-Sep-20,Adult Social Care Health and Wellbeing - Total,OFFICE DEPOT UK,Total Adult Social Care,24.98,Materials & Consumables,2020-21Sep_PC00094
Sandwell Metropolitan Borough Council,http://www.sandwell.gov.uk/info/200202/performance_and_spending/3233/government_procurement_cards,11-Sep-20,Resources (Inc SIU),IKEA LTD SHOP ONLINE,Assistant Chief Executive (Excl SIU),147.5,Printing Stationery&Gen Office,2020-21Sep_PC00095
Sandwell Metropolitan Borough Council,http://www.sandwell.gov.uk/info/200202/performance_and_spending/3233/government_procurement_cards,11-Sep-20,Resources (Inc SIU),OFFICE DEPOT UK,Assistant Chief Executive (Excl SIU),-44.99,Equipment & Furniture,2020-21Sep_PC00096
Sandwell Metropolitan Borough Council,http://www.sandwell.gov.uk/info/200202/performance_and_spending/3233/government_procurement_cards,11-Sep-20,Adult Social Care Health and Wellbeing - Total,OFFICE DEPOT UK,Total Adult Social Care,43.44,Printing Stationery&Gen Office,2020-21Sep_PC00097
Sandwell Metropolitan Borough Council,http://www.sandwell.gov.uk/info/200202/performance_and_spending/3233/government_procurement_cards,11-Sep-20,Housing & Communities,Amazon.co.uk 533I97IF5,Neighbourhoods,18.74,Hygiene Services,2020-21Sep_PC00098
Sandwell Metropolitan Borough Council,http://www.sandwell.gov.uk/info/200202/performance_and_spending/3233/government_procurement_cards,11-Sep-20,Housing & Communities,AMZNMktplace,Neighbourhoods,27.14,Equipment & Furniture,2020-21Sep_PC00099
Sandwell Metropolitan Borough Council,http://www.sandwell.gov.uk/info/200202/performance_and_spending/3233/government_procurement_cards,11-Sep-20,Housing & Communities,DVLA PR ONLINE,Neighbourhoods,80,Licences&Test Fees,2020-21Sep_PC00100
Sandwell Metropolitan Borough Council,http://www.sandwell.gov.uk/info/200202/performance_and_spending/3233/government_procurement_cards,11-Sep-20,Housing & Communities,ARGOS LTD,Neighbourhoods,-3.29,ICT,2020-21Sep_PC00101
Sandwell Metropolitan Borough Council,http://www.sandwell.gov.uk/info/200202/performance_and_spending/3233/government_procurement_cards,11-Sep-20,Resources (Inc SIU),Amazon.co.uk PF2KM2065,Assistant Chief Executive (Excl SIU),3.82,Printing Stationery&Gen Office,2020-21Sep_PC00102
Sandwell Metropolitan Borough Council,http://www.sandwell.gov.uk/info/200202/performance_and_spending/3233/government_procurement_cards,11-Sep-20,Total Housing Revenue Account,WWW.UPVCSPARES4REPAIRS,Total Housing Revenue Account,28.12,Materials & Consumables,2020-21Sep_PC00103
Sandwell Metropolitan Borough Council,http://www.sandwell.gov.uk/info/200202/performance_and_spending/3233/government_procurement_cards,11-Sep-20,Total Housing Revenue Account,THE WINDOW AND DOOR RE,Total Housing Revenue Account,26.77,Materials & Consumables,2020-21Sep_PC00104
Sandwell Metropolitan Borough Council,http://www.sandwell.gov.uk/info/200202/performance_and_spending/3233/government_procurement_cards,14-Sep-20,Housing & Communities,OFFICE DEPOT UK,Neighbourhoods,2.98,Printing Stationery&Gen Office,2020-21Sep_PC00105
Sandwell Metropolitan Borough Council,http://www.sandwell.gov.uk/info/200202/performance_and_spending/3233/government_procurement_cards,14-Sep-20,Regeneration & Growth,OFFICE DEPOT UK,Regeneration And The Economy,69.3,Printing Stationery&Gen Office,2020-21Sep_PC00106
Sandwell Metropolitan Borough Council,http://www.sandwell.gov.uk/info/200202/performance_and_spending/3233/government_procurement_cards,14-Sep-20,Housing & Communities,AMZNMKTPLACE AMAZON.CO,Neighbourhoods,54.95,Materials & Consumables,2020-21Sep_PC00107
Sandwell Metropolitan Borough Council,http://www.sandwell.gov.uk/info/200202/performance_and_spending/3233/government_procurement_cards,14-Sep-20,Resources (Inc SIU),OFFICE DEPOT UK,Assistant Chief Executive (Excl SIU),11.92,Printing Stationery&Gen Office,2020-21Sep_PC00108
Sandwell Metropolitan Borough Council,http://www.sandwell.gov.uk/info/200202/performance_and_spending/3233/government_procurement_cards,14-Sep-20,Resources (Inc SIU),OFFICE DEPOT UK,Assistant Chief Executive (Excl SIU),84.42,Printing Stationery&Gen Office,2020-21Sep_PC00109
Sandwell Metropolitan Borough Council,http://www.sandwell.gov.uk/info/200202/performance_and_spending/3233/government_procurement_cards,14-Sep-20,Resources (Inc SIU),AMZNMKTPLACE AMAZON.CO,Assistant Chief Executive (Excl SIU),114.97,Printing Stationery&Gen Office,2020-21Sep_PC00110
Sandwell Metropolitan Borough Council,http://www.sandwell.gov.uk/info/200202/performance_and_spending/3233/government_procurement_cards,14-Sep-20,Housing & Communities,COSMESTON COUNTRY PARK,Neighbourhoods,15.3,Ind. Emp Exp-Staff Dev&Training,2020-21Sep_PC00111
Sandwell Metropolitan Borough Council,http://www.sandwell.gov.uk/info/200202/performance_and_spending/3233/government_procurement_cards,14-Sep-20,Childrens Services,AMZNMKTPLACE AMAZON.CO,Childrens Services,17.07,Materials & Consumables,2020-21Sep_PC00112
Sandwell Metropolitan Borough Council,http://www.sandwell.gov.uk/info/200202/performance_and_spending/3233/government_procurement_cards,14-Sep-20,Childrens Services,AMZNMktplace,Childrens Services,17.07,Materials & Consumables,2020-21Sep_PC00113
Sandwell Metropolitan Borough Council,http://www.sandwell.gov.uk/info/200202/performance_and_spending/3233/government_procurement_cards,14-Sep-20,Adult Social Care Health and Wellbeing - Total,OFFICE DEPOT UK,Total Adult Social Care,23.8,Printing Stationery&Gen Office,2020-21Sep_PC00114
Sandwell Metropolitan Borough Council,http://www.sandwell.gov.uk/info/200202/performance_and_spending/3233/government_procurement_cards,14-Sep-20,Adult Social Care Health and Wellbeing - Total,OFFICE DEPOT UK,Total Adult Social Care,31.45,Printing Stationery&Gen Office,2020-21Sep_PC00115
Sandwell Metropolitan Borough Council,http://www.sandwell.gov.uk/info/200202/performance_and_spending/3233/government_procurement_cards,14-Sep-20,Housing & Communities,OFFICE DEPOT UK,Neighbourhoods,41.22,Printing Stationery&Gen Office,2020-21Sep_PC00116
Sandwell Metropolitan Borough Council,http://www.sandwell.gov.uk/info/200202/performance_and_spending/3233/government_procurement_cards,14-Sep-20,Resources (Inc SIU),CURRYS ONLINE,Assistant Chief Executive (Excl SIU),64.97,Materials & Consumables,2020-21Sep_PC00117
Sandwell Metropolitan Borough Council,http://www.sandwell.gov.uk/info/200202/performance_and_spending/3233/government_procurement_cards,14-Sep-20,Adult Social Care Health and Wellbeing - Total,CURRYS ONLINE,Total Adult Social Care,43.32,ICT,2020-21Sep_PC00118
Sandwell Metropolitan Borough Council,http://www.sandwell.gov.uk/info/200202/performance_and_spending/3233/government_procurement_cards,14-Sep-20,Childrens Services,AMZNMKTPLACE AMAZON.CO,Childrens Services,17.07,Equipment & Furniture,2020-21Sep_PC00119
Sandwell Metropolitan Borough Council,http://www.sandwell.gov.uk/info/200202/performance_and_spending/3233/government_procurement_cards,14-Sep-20,Adult Social Care Health and Wellbeing - Total,Adobe.com,Public Health,41.62,Advertising & Publicity,2020-21Sep_PC00120
Sandwell Metropolitan Borough Council,http://www.sandwell.gov.uk/info/200202/performance_and_spending/3233/government_procurement_cards,14-Sep-20,Adult Social Care Health and Wellbeing - Total,Amazon Prime ZP2DG4ZQ5,Total Adult Social Care,6.66,"Postages, Carriage & Courier Services",2020-21Sep_PC00121
Sandwell Metropolitan Borough Council,http://www.sandwell.gov.uk/info/200202/performance_and_spending/3233/government_procurement_cards,14-Sep-20,Resources Capital,Amazon.co.uk 882591C75,Resources Capital,14.57,ICT,2020-21Sep_PC00122
Sandwell Metropolitan Borough Council,http://www.sandwell.gov.uk/info/200202/performance_and_spending/3233/government_procurement_cards,14-Sep-20,Resources Capital,Amazon.co.uk 0504A5PI5,Resources Capital,14.57,ICT,2020-21Sep_PC00123
Sandwell Metropolitan Borough Council,http://www.sandwell.gov.uk/info/200202/performance_and_spending/3233/government_procurement_cards,14-Sep-20,Regeneration & Growth,Amazon.co.uk WL3K87MV5,Regeneration And The Economy,90.55,Printing Stationery&Gen Office,2020-21Sep_PC00124
Sandwell Metropolitan Borough Council,http://www.sandwell.gov.uk/info/200202/performance_and_spending/3233/government_procurement_cards,14-Sep-20,Housing & Communities,AMZNMKTPLACE AMAZON.CO,Neighbourhoods,46.62,Hygiene Services,2020-21Sep_PC00125
Sandwell Metropolitan Borough Council,http://www.sandwell.gov.uk/info/200202/performance_and_spending/3233/government_procurement_cards,14-Sep-20,Adult Social Care Health and Wellbeing - Total,AMZ Amazon.co.uk,Total Adult Social Care,-16.58,Materials & Consumables,2020-21Sep_PC00126
Sandwell Metropolitan Borough Council,http://www.sandwell.gov.uk/info/200202/performance_and_spending/3233/government_procurement_cards,14-Sep-20,Adult Social Care Health and Wellbeing - Total,Amazon.co.uk VO84L3O05,Total Adult Social Care,29.94,Materials & Consumables,2020-21Sep_PC00127
Sandwell Metropolitan Borough Council,http://www.sandwell.gov.uk/info/200202/performance_and_spending/3233/government_procurement_cards,15-Sep-20,Housing & Communities,Amazon.co.uk J91P91W85,Neighbourhoods,24.69,Hygiene Services,2020-21Sep_PC00128
Sandwell Metropolitan Borough Council,http://www.sandwell.gov.uk/info/200202/performance_and_spending/3233/government_procurement_cards,15-Sep-20,Housing & Communities,Amazon.co.uk 981N83O55,Neighbourhoods,19.5,Hygiene Services,2020-21Sep_PC00129
Sandwell Metropolitan Borough Council,http://www.sandwell.gov.uk/info/200202/performance_and_spending/3233/government_procurement_cards,15-Sep-20,Total Housing Revenue Account,AMZNMktplace,Total Housing Revenue Account,77.23,Protective Clothing&Uniforms,2020-21Sep_PC00130
Sandwell Metropolitan Borough Council,http://www.sandwell.gov.uk/info/200202/performance_and_spending/3233/government_procurement_cards,15-Sep-20,Childrens Services,BUXTONS LTD,Childrens Services,88.4,Grounds Maint&Improvements,2020-21Sep_PC00131
